OrganisationNameLabel,OrganisationURI,EffectiveDate,Directorate/ServiceWhereExpenditureIncurred,ServiceCategoryLabel,ServiceCategoryURI,Supplier,SupplierRegisteredCompany Number,PaymentDate,TransactionNumber,NetAmount,IrrecoverableVAT,PurposeOfSpend,ProcurementClassification:ProclassLabel,ProcrementClassification:ProClassCode
South Lakeland District Council,http://opendatacommunities.org/id/district-council/south-lakeland,01/11/2016,Policy & Partnerships,Cultural Environmental Regulatory & Planning Services,http://opendatacommunities.org/def/concept/finance/sercop/objective/104,Ulverston Lantern Festival,,31/10/2016,61390,500,0,Arts & Events funding 2015-2017 (Year 1),201700,Financial Services Grants
South Lakeland District Council,http://opendatacommunities.org/id/district-council/south-lakeland,01/11/2016,Kendal Town Hall,Highways & Transport Services,http://opendatacommunities.org/def/concept/finance/sercop/objective/107,ADECCO UK LIMITED,593232,05/10/2016,61470,160.72,0,To provide parking marshals for,261400,HR Temporary & Agency Staff
South Lakeland District Council,http://opendatacommunities.org/id/district-council/south-lakeland,01/11/2016,Social Enterprise Admin,Highways & Transport Services,http://opendatacommunities.org/def/concept/finance/sercop/objective/107,METRIC GROUP LIMITED,2560839,05/10/2016,61581,71.3,0,Machine maintenance contract from 1,359999,Street & Traffic Not Elsewhere Classifie
South Lakeland District Council,http://opendatacommunities.org/id/district-council/south-lakeland,01/11/2016,Social Enterprise Admin,Highways & Transport Services,http://opendatacommunities.org/def/concept/finance/sercop/objective/107,METRIC GROUP LIMITED,2560839,05/10/2016,61581,71.3,0,Machine maintenance contract from 1,359999,Street & Traffic Not Elsewhere Classifie
South Lakeland District Council,http://opendatacommunities.org/id/district-council/south-lakeland,01/11/2016,Social Enterprise Admin,Highways & Transport Services,http://opendatacommunities.org/def/concept/finance/sercop/objective/107,METRIC GROUP LIMITED,2560839,05/10/2016,61581,71.3,0,Machine maintenance contract from 1,359999,Street & Traffic Not Elsewhere Classifie
South Lakeland District Council,http://opendatacommunities.org/id/district-council/south-lakeland,01/11/2016,Social Enterprise Admin,Highways & Transport Services,http://opendatacommunities.org/def/concept/finance/sercop/objective/107,METRIC GROUP LIMITED,2560839,05/10/2016,61581,142.6,0,Machine maintenance contract from 1,359999,Street & Traffic Not Elsewhere Classifie
South Lakeland District Council,http://opendatacommunities.org/id/district-council/south-lakeland,01/11/2016,Social Enterprise Admin,Highways & Transport Services,http://opendatacommunities.org/def/concept/finance/sercop/objective/107,METRIC GROUP LIMITED,2560839,05/10/2016,61581,131.35,0,Machine maintenance contract from 1,359999,Street & Traffic Not Elsewhere Classifie
South Lakeland District Council,http://opendatacommunities.org/id/district-council/south-lakeland,01/11/2016,Social Enterprise Admin,Highways & Transport Services,http://opendatacommunities.org/def/concept/finance/sercop/objective/107,METRIC GROUP LIMITED,2560839,05/10/2016,61581,142.6,0,Machine maintenance contract from 1,359999,Street & Traffic Not Elsewhere Classifie
South Lakeland District Council,http://opendatacommunities.org/id/district-council/south-lakeland,01/11/2016,Social Enterprise Admin,Highways & Transport Services,http://opendatacommunities.org/def/concept/finance/sercop/objective/107,METRIC GROUP LIMITED,2560839,05/10/2016,61581,71.3,0,Machine maintenance contract from 1,359999,Street & Traffic Not Elsewhere Classifie
South Lakeland District Council,http://opendatacommunities.org/id/district-council/south-lakeland,01/11/2016,Social Enterprise Admin,Highways & Transport Services,http://opendatacommunities.org/def/concept/finance/sercop/objective/107,METRIC GROUP LIMITED,2560839,05/10/2016,61581,285.2,0,Machine maintenance contract from 1,359999,Street & Traffic Not Elsewhere Classifie
South Lakeland District Council,http://opendatacommunities.org/id/district-council/south-lakeland,01/11/2016,Social Enterprise Admin,Highways & Transport Services,http://opendatacommunities.org/def/concept/finance/sercop/objective/107,METRIC GROUP LIMITED,2560839,05/10/2016,61581,142.6,0,Machine maintenance contract from 1,359999,Street & Traffic Not Elsewhere Classifie
South Lakeland District Council,http://opendatacommunities.org/id/district-council/south-lakeland,01/11/2016,Social Enterprise Admin,Highways & Transport Services,http://opendatacommunities.org/def/concept/finance/sercop/objective/107,METRIC GROUP LIMITED,2560839,05/10/2016,61581,142.6,0,Machine maintenance contract from 1,359999,Street & Traffic Not Elsewhere Classifie
South Lakeland District Council,http://opendatacommunities.org/id/district-council/south-lakeland,01/11/2016,Social Enterprise Admin,Highways & Transport Services,http://opendatacommunities.org/def/concept/finance/sercop/objective/107,METRIC GROUP LIMITED,2560839,05/10/2016,61581,71.3,0,Machine maintenance contract from 1,359999,Street & Traffic Not Elsewhere Classifie
South Lakeland District Council,http://opendatacommunities.org/id/district-council/south-lakeland,01/11/2016,Social Enterprise Admin,Highways & Transport Services,http://opendatacommunities.org/def/concept/finance/sercop/objective/107,METRIC GROUP LIMITED,2560839,05/10/2016,61581,213.9,0,Machine maintenance contract from 1,359999,Street & Traffic Not Elsewhere Classifie
South Lakeland District Council,http://opendatacommunities.org/id/district-council/south-lakeland,01/11/2016,Social Enterprise Admin,Highways & Transport Services,http://opendatacommunities.org/def/concept/finance/sercop/objective/107,METRIC GROUP LIMITED,2560839,05/10/2016,61581,71.3,0,Machine maintenance contract from 1,359999,Street & Traffic Not Elsewhere Classifie
South Lakeland District Council,http://opendatacommunities.org/id/district-council/south-lakeland,01/11/2016,Social Enterprise Admin,Highways & Transport Services,http://opendatacommunities.org/def/concept/finance/sercop/objective/107,METRIC GROUP LIMITED,2560839,05/10/2016,61581,71.3,0,Machine maintenance contract from 1,359999,Street & Traffic Not Elsewhere Classifie
South Lakeland District Council,http://opendatacommunities.org/id/district-council/south-lakeland,01/11/2016,Social Enterprise Admin,Highways & Transport Services,http://opendatacommunities.org/def/concept/finance/sercop/objective/107,METRIC GROUP LIMITED,2560839,05/10/2016,61581,71.3,0,Machine maintenance contract from 1,359999,Street & Traffic Not Elsewhere Classifie
South Lakeland District Council,http://opendatacommunities.org/id/district-council/south-lakeland,01/11/2016,Social Enterprise Admin,Highways & Transport Services,http://opendatacommunities.org/def/concept/finance/sercop/objective/107,METRIC GROUP LIMITED,2560839,05/10/2016,61581,213.9,0,Machine maintenance contract from 1,359999,Street & Traffic Not Elsewhere Classifie
South Lakeland District Council,http://opendatacommunities.org/id/district-council/south-lakeland,01/11/2016,Social Enterprise Admin,Highways & Transport Services,http://opendatacommunities.org/def/concept/finance/sercop/objective/107,METRIC GROUP LIMITED,2560839,05/10/2016,61581,71.3,0,Machine maintenance contract from 1,359999,Street & Traffic Not Elsewhere Classifie
South Lakeland District Council,http://opendatacommunities.org/id/district-council/south-lakeland,01/11/2016,Social Enterprise Admin,Highways & Transport Services,http://opendatacommunities.org/def/concept/finance/sercop/objective/107,METRIC GROUP LIMITED,2560839,05/10/2016,61581,213.9,0,Machine maintenance contract from 1,359999,Street & Traffic Not Elsewhere Classifie
South Lakeland District Council,http://opendatacommunities.org/id/district-council/south-lakeland,01/11/2016,Social Enterprise Admin,Highways & Transport Services,http://opendatacommunities.org/def/concept/finance/sercop/objective/107,METRIC GROUP LIMITED,2560839,05/10/2016,61581,71.3,0,Machine maintenance contract from 1,359999,Street & Traffic Not Elsewhere Classifie
South Lakeland District Council,http://opendatacommunities.org/id/district-council/south-lakeland,01/11/2016,Social Enterprise Admin,Highways & Transport Services,http://opendatacommunities.org/def/concept/finance/sercop/objective/107,METRIC GROUP LIMITED,2560839,05/10/2016,61581,71.3,0,Machine maintenance contract from 1,359999,Street & Traffic Not Elsewhere Classifie
South Lakeland District Council,http://opendatacommunities.org/id/district-council/south-lakeland,01/11/2016,Social Enterprise Admin,Highways & Transport Services,http://opendatacommunities.org/def/concept/finance/sercop/objective/107,METRIC GROUP LIMITED,2560839,05/10/2016,61581,142.6,0,Machine maintenance contract from 1,359999,Street & Traffic Not Elsewhere Classifie
South Lakeland District Council,http://opendatacommunities.org/id/district-council/south-lakeland,01/11/2016,Social Enterprise Admin,Highways & Transport Services,http://opendatacommunities.org/def/concept/finance/sercop/objective/107,METRIC GROUP LIMITED,2560839,05/10/2016,61581,71.3,0,Machine maintenance contract from 1,359999,Street & Traffic Not Elsewhere Classifie
South Lakeland District Council,http://opendatacommunities.org/id/district-council/south-lakeland,01/11/2016,Social Enterprise Admin,Highways & Transport Services,http://opendatacommunities.org/def/concept/finance/sercop/objective/107,METRIC GROUP LIMITED,2560839,05/10/2016,61581,71.3,0,Machine maintenance contract from 1,359999,Street & Traffic Not Elsewhere Classifie
South Lakeland District Council,http://opendatacommunities.org/id/district-council/south-lakeland,01/11/2016,Social Enterprise Admin,Highways & Transport Services,http://opendatacommunities.org/def/concept/finance/sercop/objective/107,METRIC GROUP LIMITED,2560839,05/10/2016,61581,71.3,0,Machine maintenance contract from 1,359999,Street & Traffic Not Elsewhere Classifie
South Lakeland District Council,http://opendatacommunities.org/id/district-council/south-lakeland,01/11/2016,Social Enterprise Admin,Highways & Transport Services,http://opendatacommunities.org/def/concept/finance/sercop/objective/107,METRIC GROUP LIMITED,2560839,05/10/2016,61581,142.6,0,Machine maintenance contract from 1,359999,Street & Traffic Not Elsewhere Classifie
South Lakeland District Council,http://opendatacommunities.org/id/district-council/south-lakeland,01/11/2016,Social Enterprise Admin,Highways & Transport Services,http://opendatacommunities.org/def/concept/finance/sercop/objective/107,METRIC GROUP LIMITED,2560839,05/10/2016,61581,142.6,0,Machine maintenance contract from 1,359999,Street & Traffic Not Elsewhere Classifie
South Lakeland District Council,http://opendatacommunities.org/id/district-council/south-lakeland,01/11/2016,Social Enterprise Admin,Highways & Transport Services,http://opendatacommunities.org/def/concept/finance/sercop/objective/107,METRIC GROUP LIMITED,2560839,05/10/2016,61581,71.3,0,Machine maintenance contract from 1,359999,Street & Traffic Not Elsewhere Classifie
South Lakeland District Council,http://opendatacommunities.org/id/district-council/south-lakeland,01/11/2016,Social Enterprise Admin,Highways & Transport Services,http://opendatacommunities.org/def/concept/finance/sercop/objective/107,METRIC GROUP LIMITED,2560839,05/10/2016,61581,71.3,0,Machine maintenance contract from 1,359999,Street & Traffic Not Elsewhere Classifie
South Lakeland District Council,http://opendatacommunities.org/id/district-council/south-lakeland,01/11/2016,Social Enterprise Admin,Highways & Transport Services,http://opendatacommunities.org/def/concept/finance/sercop/objective/107,METRIC GROUP LIMITED,2560839,05/10/2016,61581,71.3,0,Machine maintenance contract from 1,359999,Street & Traffic Not Elsewhere Classifie
South Lakeland District Council,http://opendatacommunities.org/id/district-council/south-lakeland,01/11/2016,Social Enterprise Admin,Highways & Transport Services,http://opendatacommunities.org/def/concept/finance/sercop/objective/107,METRIC GROUP LIMITED,2560839,05/10/2016,61581,356.5,0,Machine maintenance contract from 1,359999,Street & Traffic Not Elsewhere Classifie
South Lakeland District Council,http://opendatacommunities.org/id/district-council/south-lakeland,01/11/2016,Social Enterprise Admin,Highways & Transport Services,http://opendatacommunities.org/def/concept/finance/sercop/objective/107,METRIC GROUP LIMITED,2560839,05/10/2016,61581,71.3,0,Machine maintenance contract from 1,359999,Street & Traffic Not Elsewhere Classifie
South Lakeland District Council,http://opendatacommunities.org/id/district-council/south-lakeland,01/11/2016,Social Enterprise Admin,Highways & Transport Services,http://opendatacommunities.org/def/concept/finance/sercop/objective/107,METRIC GROUP LIMITED,2560839,05/10/2016,61581,71.3,0,Machine maintenance contract from 1,359999,Street & Traffic Not Elsewhere Classifie
South Lakeland District Council,http://opendatacommunities.org/id/district-council/south-lakeland,01/11/2016,Social Enterprise Admin,Highways & Transport Services,http://opendatacommunities.org/def/concept/finance/sercop/objective/107,METRIC GROUP LIMITED,2560839,05/10/2016,61581,142.6,0,Machine maintenance contract from 1,359999,Street & Traffic Not Elsewhere Classifie
South Lakeland District Council,http://opendatacommunities.org/id/district-council/south-lakeland,01/11/2016,Social Enterprise Admin,Highways & Transport Services,http://opendatacommunities.org/def/concept/finance/sercop/objective/107,METRIC GROUP LIMITED,2560839,05/10/2016,61581,142.6,0,Machine maintenance contract from 1,359999,Street & Traffic Not Elsewhere Classifie
South Lakeland District Council,http://opendatacommunities.org/id/district-council/south-lakeland,01/11/2016,Social Enterprise Admin,Highways & Transport Services,http://opendatacommunities.org/def/concept/finance/sercop/objective/107,METRIC GROUP LIMITED,2560839,05/10/2016,61581,142.6,0,Machine maintenance contract from 1,359999,Street & Traffic Not Elsewhere Classifie
South Lakeland District Council,http://opendatacommunities.org/id/district-council/south-lakeland,01/11/2016,Social Enterprise Admin,Highways & Transport Services,http://opendatacommunities.org/def/concept/finance/sercop/objective/107,METRIC GROUP LIMITED,2560839,05/10/2016,61581,356.5,0,Machine maintenance contract from 1,359999,Street & Traffic Not Elsewhere Classifie
South Lakeland District Council,http://opendatacommunities.org/id/district-council/south-lakeland,01/11/2016,Social Enterprise Admin,Highways & Transport Services,http://opendatacommunities.org/def/concept/finance/sercop/objective/107,METRIC GROUP LIMITED,2560839,05/10/2016,61581,71.3,0,Machine maintenance contract from 1,359999,Street & Traffic Not Elsewhere Classifie
South Lakeland District Council,http://opendatacommunities.org/id/district-council/south-lakeland,01/11/2016,Social Enterprise Admin,Highways & Transport Services,http://opendatacommunities.org/def/concept/finance/sercop/objective/107,METRIC GROUP LIMITED,2560839,05/10/2016,61581,71.3,0,Machine maintenance contract from 1,359999,Street & Traffic Not Elsewhere Classifie
South Lakeland District Council,http://opendatacommunities.org/id/district-council/south-lakeland,01/11/2016,Business Support Community Services,Internal Trading Accounts,,BILL MOORE LIFTING TACKLE LTD,1482196,31/10/2016,61666,80,0,LOLER inspection,181812,Environment Technical Equip Testing
South Lakeland District Council,http://opendatacommunities.org/id/district-council/south-lakeland,01/11/2016,Business Support Community Services,Cultural Environmental Regulatory & Planning Services,http://opendatacommunities.org/def/concept/finance/sercop/objective/104,KEEP BRITAIN TIDY,3496361,31/10/2016,61668,1995,0,Expert Membership partnership agreement,181600,Environment Street Cleansing
South Lakeland District Council,http://opendatacommunities.org/id/district-council/south-lakeland,01/11/2016,Kendal Town Hall,Highways & Transport Services,http://opendatacommunities.org/def/concept/finance/sercop/objective/107,ADECCO UK LIMITED,593232,10/10/2016,61726,344.4,0,Agency cover for WMMSCP,261400,HR Temporary & Agency Staff
South Lakeland District Council,http://opendatacommunities.org/id/district-council/south-lakeland,01/11/2016,Kendal Town Hall,Highways & Transport Services,http://opendatacommunities.org/def/concept/finance/sercop/objective/107,ADECCO UK LIMITED,593232,05/10/2016,61728,241.08,0,To provide parking marshals for,261400,HR Temporary & Agency Staff
South Lakeland District Council,http://opendatacommunities.org/id/district-council/south-lakeland,01/11/2016,Kendal Town Hall,Highways & Transport Services,http://opendatacommunities.org/def/concept/finance/sercop/objective/107,ADECCO UK LIMITED,593232,10/10/2016,61729,160.72,0,To provide parking marshals for,261400,HR Temporary & Agency Staff
South Lakeland District Council,http://opendatacommunities.org/id/district-council/south-lakeland,01/11/2016,Kendal Town Hall,Highways & Transport Services,http://opendatacommunities.org/def/concept/finance/sercop/objective/107,ADECCO UK LIMITED,593232,10/10/2016,61730,80.36,0,To provide parking marshals for,261400,HR Temporary & Agency Staff
South Lakeland District Council,http://opendatacommunities.org/id/district-council/south-lakeland,01/11/2016,Kendal Town Hall,Highways & Transport Services,http://opendatacommunities.org/def/concept/finance/sercop/objective/107,ADECCO UK LIMITED,593232,10/10/2016,61754,126.28,0,Agency cover for WMMSCP,261400,HR Temporary & Agency Staff
South Lakeland District Council,http://opendatacommunities.org/id/district-council/south-lakeland,01/11/2016,Business Support Community Services,Internal Trading Accounts,,TAYLOR ENGINEERING & FABRICATIONS LTD,4989359,19/10/2016,61812,23.35,0,Joints,391200,Construction Engineering
South Lakeland District Council,http://opendatacommunities.org/id/district-council/south-lakeland,01/11/2016,Kendal Town Hall,Highways & Transport Services,http://opendatacommunities.org/def/concept/finance/sercop/objective/107,ADECCO UK LIMITED,593232,05/10/2016,61906,591.22,0,Agency cover for WMMSCP,261400,HR Temporary & Agency Staff
South Lakeland District Council,http://opendatacommunities.org/id/district-council/south-lakeland,01/11/2016,Development Management,Cultural Environmental Regulatory & Planning Services,http://opendatacommunities.org/def/concept/finance/sercop/objective/104,CARLISLE CITY COUNCIL,,03/10/2016,61911,2408.33,0,Share of BSI IHS Database for Cumbria,908000,Public Bodies Council support services
South Lakeland District Council,http://opendatacommunities.org/id/district-council/south-lakeland,01/11/2016,Kendal Town Hall,Highways & Transport Services,http://opendatacommunities.org/def/concept/finance/sercop/objective/107,ADECCO UK LIMITED,593232,05/10/2016,61916,510.86,0,Agency cover for WMMSCP,261400,HR Temporary & Agency Staff
South Lakeland District Council,http://opendatacommunities.org/id/district-council/south-lakeland,01/11/2016,Kendal Town Hall,Culture and Related Serv,http://opendatacommunities.org/def/concept/finance/sercop/objective/104,BILL MOORE LIFTING TACKLE LTD,1482196,03/10/2016,61925,5200,0,Installation of mast hoist as per quote,181812,Environment Technical Equip Testing
South Lakeland District Council,http://opendatacommunities.org/id/district-council/south-lakeland,01/11/2016,Social Enterprise Admin,Highways & Transport Services,http://opendatacommunities.org/def/concept/finance/sercop/objective/107,ACS BPS LTD,,10/10/2016,61938,5032.44,0,Quarterly maintenance charges for,111200,Catering Food & Beverages
South Lakeland District Council,http://opendatacommunities.org/id/district-council/south-lakeland,01/11/2016,Social Enterprise Admin,Central Services,http://opendatacommunities.org/def/concept/finance/sercop/objective/102,HYGIENE CLEANING SUPPLIES LTD,4753934,05/10/2016,61942,388.62,0,4 boxes C Fold paper hand towels Blue 1,131011,Cleaning & Janitorial Cleaning Materials
South Lakeland District Council,http://opendatacommunities.org/id/district-council/south-lakeland,01/11/2016,Kendal Town Hall,Highways & Transport Services,http://opendatacommunities.org/def/concept/finance/sercop/objective/107,BEMROSE BOOTH PARAGON LTD,4891375,03/10/2016,61943,464,0,100 x PCN Rolls,191600,Facilities Printing
South Lakeland District Council,http://opendatacommunities.org/id/district-council/south-lakeland,01/11/2016,Kendal Town Hall,Highways & Transport Services,http://opendatacommunities.org/def/concept/finance/sercop/objective/107,HYGIENE CLEANING SUPPLIES LTD,4753934,03/10/2016,61944,38.32,0,2 x Jangro Bulk Toilet Tissue,131011,Cleaning & Janitorial Cleaning Materials
South Lakeland District Council,http://opendatacommunities.org/id/district-council/south-lakeland,01/11/2016,Social Enterprise Admin,Central Services,http://opendatacommunities.org/def/concept/finance/sercop/objective/102,HYGIENE CLEANING SUPPLIES LTD,4753934,05/10/2016,61952,50.16,0,4 boxes C Fold paper hand towels Blue 1,131011,Cleaning & Janitorial Cleaning Materials
South Lakeland District Council,http://opendatacommunities.org/id/district-council/south-lakeland,01/11/2016,Business Support Community Services,SLDC as Agent,,CUMBRIA COUNTY COUNCIL,,24/10/2016,61979,54,0,DBS Checks,908000,Public Bodies Council support services
South Lakeland District Council,http://opendatacommunities.org/id/district-council/south-lakeland,01/11/2016,Human Resources,Central Services,http://opendatacommunities.org/def/concept/finance/sercop/objective/102,FLORENCE MADDEN,,03/10/2016,61999,438.7,0,NLP Coaching Diploma 16th-17th &,261500,HR Training & Conferences
South Lakeland District Council,http://opendatacommunities.org/id/district-council/south-lakeland,01/11/2016,Social Enterprise Admin,Cultural Environmental Regulatory & Planning Services,http://opendatacommunities.org/def/concept/finance/sercop/objective/104,NEWSQUEST MEDIA GROUP LTD,3102566,10/10/2016,62021,113,0,PUBLIC NOTICES FOR PLANNING 1 APRIL - 31,191000,Facilities Advertising
South Lakeland District Council,http://opendatacommunities.org/id/district-council/south-lakeland,01/11/2016,Business Support Community Services,Internal Trading Accounts,,QPS PLASTIC LTD,,24/10/2016,62091,154.75,0,Bumper,109999,Building Not Elsewhere Classified
South Lakeland District Council,http://opendatacommunities.org/id/district-council/south-lakeland,01/11/2016,Environment and Housing,Housing Services,http://opendatacommunities.org/def/concept/finance/sercop/objective/108,SOUTH LAKES HOUSING,IP031419,10/10/2016,62095,47.3,0,No description recorded,191700,Facilities Property Management
South Lakeland District Council,http://opendatacommunities.org/id/district-council/south-lakeland,01/11/2016,Environment and Housing,Housing Services,http://opendatacommunities.org/def/concept/finance/sercop/objective/108,SOUTH LAKES HOUSING,IP031419,10/10/2016,62095,35.1,0,No description recorded,191700,Facilities Property Management
South Lakeland District Council,http://opendatacommunities.org/id/district-council/south-lakeland,01/11/2016,Human Resources,Central Services,http://opendatacommunities.org/def/concept/finance/sercop/objective/102,CUMBRIA COUNTY COUNCIL,,10/10/2016,62097,54,0,DBS Checks to Cumbria County Council,908000,Public Bodies Council support services
South Lakeland District Council,http://opendatacommunities.org/id/district-council/south-lakeland,01/11/2016,Human Resources,Central Services,http://opendatacommunities.org/def/concept/finance/sercop/objective/102,CUMBRIA COUNTY COUNCIL,,10/10/2016,62098,54,0,DBS Checks to Cumbria County Council,908000,Public Bodies Council support services
South Lakeland District Council,http://opendatacommunities.org/id/district-council/south-lakeland,01/11/2016,Democratic and Member Services,Central Services,http://opendatacommunities.org/def/concept/finance/sercop/objective/102,H Hogarth,,10/10/2016,62107,34.17,0,valuation of chairman and vice chairman,201700,Financial Services Grants
South Lakeland District Council,http://opendatacommunities.org/id/district-council/south-lakeland,01/11/2016,Business Support Community Services,Internal Trading Accounts,,BRIAN ARMISTEAD LTD T/A SINKFALL RECYCLI,4133280,10/10/2016,62135,1500.19,0,Green waste tipping - 2016/17,391110,Construction Buildings Construction
South Lakeland District Council,http://opendatacommunities.org/id/district-council/south-lakeland,01/11/2016,Business Support Community Services,Housing Services,http://opendatacommunities.org/def/concept/finance/sercop/objective/108,KENDAL SECURITY CENTRE LTD,3179893,10/10/2016,62136,55,0,Repair for the lock at 37 Chambers Close,192212,Facilities Security Equipment
South Lakeland District Council,http://opendatacommunities.org/id/district-council/south-lakeland,01/11/2016,Business Support Community Services,Cultural Environmental Regulatory & Planning Services,http://opendatacommunities.org/def/concept/finance/sercop/objective/104,OCS GROUP LTD T/A CANNON HYGIENE LTD,1298292,03/10/2016,62143,409.52,0,Clinical waste collections - 2016/17,131011,Cleaning & Janitorial Cleaning Materials
South Lakeland District Council,http://opendatacommunities.org/id/district-council/south-lakeland,01/11/2016,Social Enterprise Admin,Cultural Environmental Regulatory & Planning Services,http://opendatacommunities.org/def/concept/finance/sercop/objective/104,AMENITY TREE CARE LTD,4141279,10/10/2016,62154,3450,0,Stockbridge Lane Car park -Fell five,241600,Horticultural Trees & Shrubs
South Lakeland District Council,http://opendatacommunities.org/id/district-council/south-lakeland,01/11/2016,Social Enterprise Admin,Cultural Environmental Regulatory & Planning Services,http://opendatacommunities.org/def/concept/finance/sercop/objective/104,AMENITY TREE CARE LTD,4141279,10/10/2016,62155,1150,0,Tree work for Birthwaite Windermere,241600,Horticultural Trees & Shrubs
South Lakeland District Council,http://opendatacommunities.org/id/district-council/south-lakeland,01/11/2016,Social Enterprise Admin,Cultural Environmental Regulatory & Planning Services,http://opendatacommunities.org/def/concept/finance/sercop/objective/104,AMENITY TREE CARE LTD,4141279,10/10/2016,62156,234,0,Stockbridge Lane Car park -Fell five,241600,Horticultural Trees & Shrubs
South Lakeland District Council,http://opendatacommunities.org/id/district-council/south-lakeland,01/11/2016,Social Enterprise Admin,Cultural Environmental Regulatory & Planning Services,http://opendatacommunities.org/def/concept/finance/sercop/objective/104,AMENITY TREE CARE LTD,4141279,10/10/2016,62157,1505,0,Fell Maple with decay at union,241600,Horticultural Trees & Shrubs
South Lakeland District Council,http://opendatacommunities.org/id/district-council/south-lakeland,01/11/2016,Social Enterprise Admin,Cultural Environmental Regulatory & Planning Services,http://opendatacommunities.org/def/concept/finance/sercop/objective/104,AMENITY TREE CARE LTD,4141279,10/10/2016,62158,2300,0,Stockbridge Lane Car park -Fell five,241600,Horticultural Trees & Shrubs
South Lakeland District Council,http://opendatacommunities.org/id/district-council/south-lakeland,01/11/2016,Social Enterprise Admin,Cultural Environmental Regulatory & Planning Services,http://opendatacommunities.org/def/concept/finance/sercop/objective/104,AMENITY TREE CARE LTD,4141279,10/10/2016,62160,1150,0,Tree work for Birthwaite Windermere,241600,Horticultural Trees & Shrubs
South Lakeland District Council,http://opendatacommunities.org/id/district-council/south-lakeland,01/11/2016,Printing Section,Central Services,http://opendatacommunities.org/def/concept/finance/sercop/objective/102,Konica Minolta Bus Solutions (UK) Ltd,,10/10/2016,62161,3338.67,0,Konica Embedded License,192000,Facilities Reprographics
South Lakeland District Council,http://opendatacommunities.org/id/district-council/south-lakeland,01/11/2016,Kendal Town Hall,Cultural Environmental Regulatory & Planning Services,http://opendatacommunities.org/def/concept/finance/sercop/objective/104,HYGIENE CLEANING SUPPLIES LTD,4753934,05/10/2016,62171,200.06,0,JP07  10 pack mini jumbo toilet rolls,131011,Cleaning & Janitorial Cleaning Materials
South Lakeland District Council,http://opendatacommunities.org/id/district-council/south-lakeland,01/11/2016,Social Enterprise Admin,Central Services,http://opendatacommunities.org/def/concept/finance/sercop/objective/102,GATES TRAVEL SERVICE,,10/10/2016,62177,67.5,0,Travel to Manchster LABAC Course for,261600,HR Travel & Subsistence
South Lakeland District Council,http://opendatacommunities.org/id/district-council/south-lakeland,01/11/2016,Leisure and Wellbeing,Cultural Environmental Regulatory & Planning Services,http://opendatacommunities.org/def/concept/finance/sercop/objective/104,Cleartrack (EvL) Ltd,3881690,24/10/2016,62179,1500,0,Clearance of fallen oak tree in Rothay,199999,Facilities Not Elsewhere Classified
South Lakeland District Council,http://opendatacommunities.org/id/district-council/south-lakeland,01/11/2016,Business Support Community Services,Housing Services,http://opendatacommunities.org/def/concept/finance/sercop/objective/108,PHS GROUP PLC,,05/10/2016,62181,251.96,0,Washroom products and non hazardous,131312,Cleaning & Janitorial Washroom Sanitat
South Lakeland District Council,http://opendatacommunities.org/id/district-council/south-lakeland,01/11/2016,Business Support Community Services,Housing Services,http://opendatacommunities.org/def/concept/finance/sercop/objective/108,PHS GROUP PLC,,10/10/2016,62182,24.21,0,Annual Duty of Care 01/10/16 - 30/09/17,131312,Cleaning & Janitorial Washroom Sanitat
South Lakeland District Council,http://opendatacommunities.org/id/district-council/south-lakeland,01/11/2016,Business Support Community Services,Housing Services,http://opendatacommunities.org/def/concept/finance/sercop/objective/108,Landlord,,03/10/2016,62188,600,0,Monthly rent ,250000,Housing
South Lakeland District Council,http://opendatacommunities.org/id/district-council/south-lakeland,01/11/2016,Business Support Community Services,Housing Services,http://opendatacommunities.org/def/concept/finance/sercop/objective/108,Landlord,,03/10/2016,62189,400,0,Monthly rent ,250000,Housing
South Lakeland District Council,http://opendatacommunities.org/id/district-council/south-lakeland,01/11/2016,Business Support Community Services,Housing Services,http://opendatacommunities.org/def/concept/finance/sercop/objective/108,Landlord,,03/10/2016,62190,400,0,Monthly rent ,250010,Housing Letting Agents
South Lakeland District Council,http://opendatacommunities.org/id/district-council/south-lakeland,01/11/2016,Business Support Community Services,Housing Services,http://opendatacommunities.org/def/concept/finance/sercop/objective/108,SOUTH LAKES HOUSING RENT A/C,,03/10/2016,62191,590.9,0,Ref 147330111250,191700,Facilities Property Management
South Lakeland District Council,http://opendatacommunities.org/id/district-council/south-lakeland,01/11/2016,Development Implementation,Cultural Environmental Regulatory & Planning Services,http://opendatacommunities.org/def/concept/finance/sercop/objective/104,Ruby Tuesday,,05/10/2016,62195,400,0,"Shop Front Grant for 38 Finkle Street,",201711,Financial Services-Grants-Non Charity
South Lakeland District Council,http://opendatacommunities.org/id/district-council/south-lakeland,01/11/2016,Development Implementation,Cultural Environmental Regulatory & Planning Services,http://opendatacommunities.org/def/concept/finance/sercop/objective/104,HBN Restaurants Ltd,4184849,05/10/2016,62196,550,0,Participation in the Kendal Courtesy,201700,Financial Services Grants
South Lakeland District Council,http://opendatacommunities.org/id/district-council/south-lakeland,01/11/2016,Revenues and Benefits,Central Services,http://opendatacommunities.org/def/concept/finance/sercop/objective/102,IRRV (L & C BRANCH),,05/10/2016,62197,300,0,Motivational Workshop'  -  28.09.16,201700,Financial Services Grants
South Lakeland District Council,http://opendatacommunities.org/id/district-council/south-lakeland,01/11/2016,Social Enterprise Admin,Cultural Environmental Regulatory & Planning Services,http://opendatacommunities.org/def/concept/finance/sercop/objective/104,TREVOR ROBERTS ASSOCIATES,3737519,05/10/2016,62198,195,0,TRAINING MANCHESTER 13/10/2016 - A FORUM,261500,HR Training & Conferences
South Lakeland District Council,http://opendatacommunities.org/id/district-council/south-lakeland,01/11/2016,Business Support Community Services,Cultural Environmental Regulatory & Planning Services,http://opendatacommunities.org/def/concept/finance/sercop/objective/104,UNITED UTILITIES WATER PLC,2366678,10/10/2016,62199,906.56,0,Private Water Analysis - August 2016,371300,Utilities Water
South Lakeland District Council,http://opendatacommunities.org/id/district-council/south-lakeland,01/11/2016,Development Implementation,Cultural Environmental Regulatory & Planning Services,http://opendatacommunities.org/def/concept/finance/sercop/objective/104,BREWERY ARTS CENTRE,,10/10/2016,62200,4975,0,Development Options for Brewery Arts,291000,Arts & Leisure Services Events
South Lakeland District Council,http://opendatacommunities.org/id/district-council/south-lakeland,01/11/2016,Development Implementation,Cultural Environmental Regulatory & Planning Services,http://opendatacommunities.org/def/concept/finance/sercop/objective/104,BREWERY ARTS CENTRE,,10/10/2016,62201,550,0,Participation in the Kendal Courtesy,291000,Arts & Leisure Services Events
South Lakeland District Council,http://opendatacommunities.org/id/district-council/south-lakeland,01/11/2016,ICT Group,Central Services,http://opendatacommunities.org/def/concept/finance/sercop/objective/102,Insight Direct (Uk) Ltd,2579852,05/10/2016,62203,592.85,0,65270771BC01A12 Creative Cloud for teams,271200,ICT Hardware
South Lakeland District Council,http://opendatacommunities.org/id/district-council/south-lakeland,01/11/2016,ICT Group,Central Services,http://opendatacommunities.org/def/concept/finance/sercop/objective/102,Insight Direct (Uk) Ltd,2579852,05/10/2016,62204,253.2,0,65270771BC01A12 Creative Cloud for teams,271200,ICT Hardware
South Lakeland District Council,http://opendatacommunities.org/id/district-council/south-lakeland,01/11/2016,Legal Services,Internal Trading Accounts,,PENNINGTONS (KENDAL) LIMITED,434649,05/10/2016,62205,2500,0,Annual Charge for use of Link Road at,182013,Environment Waste Mgt Waste Collection
South Lakeland District Council,http://opendatacommunities.org/id/district-council/south-lakeland,01/11/2016,Social Enterprise Admin,Highways & Transport Services,http://opendatacommunities.org/def/concept/finance/sercop/objective/107,METRIC GROUP LIMITED,2560839,05/10/2016,62206,693,0,Web hosting and web tariff editor for 66,359999,Street & Traffic Not Elsewhere Classifie
South Lakeland District Council,http://opendatacommunities.org/id/district-council/south-lakeland,01/11/2016,ICT Group,Central Services,http://opendatacommunities.org/def/concept/finance/sercop/objective/102,OPTECH FIBRES LTD,5442069,12/10/2016,62207,2376.81,0,Installation of a new 8 core OM3 fibre,271200,ICT Hardware
South Lakeland District Council,http://opendatacommunities.org/id/district-council/south-lakeland,01/11/2016,Social Enterprise Admin,Highways & Transport Services,http://opendatacommunities.org/def/concept/finance/sercop/objective/107,PATROL,,10/10/2016,62220,112.7,0,Charges for Traffic Penalty Tribunal,192214,Facilities Security Street Wardens
South Lakeland District Council,http://opendatacommunities.org/id/district-council/south-lakeland,01/11/2016,Development Implementation,Cultural Environmental Regulatory & Planning Services,http://opendatacommunities.org/def/concept/finance/sercop/objective/104,CUMBRIA COUNTY COUNCIL,,10/10/2016,62221,250,0,Contribution to Furness Line Community,908000,Public Bodies Council support services
South Lakeland District Council,http://opendatacommunities.org/id/district-council/south-lakeland,01/11/2016,Development Implementation,Cultural Environmental Regulatory & Planning Services,http://opendatacommunities.org/def/concept/finance/sercop/objective/104,CUMBRIA COUNTY COUNCIL,,10/10/2016,62222,250,0,Contribution to Lakes Line Community,908000,Public Bodies Council support services
South Lakeland District Council,http://opendatacommunities.org/id/district-council/south-lakeland,01/11/2016,Development Implementation,Cultural Environmental Regulatory & Planning Services,http://opendatacommunities.org/def/concept/finance/sercop/objective/104,FURNESS NEWSPAPERS LTD,1155841,10/10/2016,62223,1500,0,Choose Cumbria,191000,Facilities Advertising
South Lakeland District Council,http://opendatacommunities.org/id/district-council/south-lakeland,01/11/2016,Social Enterprise Admin,Central Services,http://opendatacommunities.org/def/concept/finance/sercop/objective/102,MARGARET BARROW INTERIORS LTD T/A MBI,,12/10/2016,62224,140,0,1 x chair with arms T106HA Havana Black,211200,Furniture & Soft Furn Office Furniture
South Lakeland District Council,http://opendatacommunities.org/id/district-council/south-lakeland,01/11/2016,Human Resources,Central Services,http://opendatacommunities.org/def/concept/finance/sercop/objective/102,KENTDALE FIRST AID TRAINING,,10/10/2016,62225,90,0,To attend an Emergency,261500,HR Training & Conferences
South Lakeland District Council,http://opendatacommunities.org/id/district-council/south-lakeland,01/11/2016,Business Support Community Services,Housing Services,http://opendatacommunities.org/def/concept/finance/sercop/objective/108,Blue Star Taxis (Kendal) Ltd,6464607,10/10/2016,62226,35.56,0,Taxi  from Grange Railway,361600,Public Transport Taxi Services Home to S
South Lakeland District Council,http://opendatacommunities.org/id/district-council/south-lakeland,01/11/2016,Business Support Community Services,Housing Services,http://opendatacommunities.org/def/concept/finance/sercop/objective/108,Blue Star Taxis (Kendal) Ltd,6464607,10/10/2016,62227,35.56,0,Taxi  from Grange Railway,361600,Public Transport Taxi Services Home to S
South Lakeland District Council,http://opendatacommunities.org/id/district-council/south-lakeland,01/11/2016,Business Support Community Services,Housing Services,http://opendatacommunities.org/def/concept/finance/sercop/objective/108,My Dream Cleaners Ltd,9839482,10/10/2016,62228,907.5,0,Cleaning at Town View Fields Hostel,131320,Cleaning & Janitorial Cleaning Service
South Lakeland District Council,http://opendatacommunities.org/id/district-council/south-lakeland,01/11/2016,Policy & Partnerships,Central Services,http://opendatacommunities.org/def/concept/finance/sercop/objective/102,Health & Safety Executive,,10/10/2016,62229,477.3,0,Regulations 2015 health and Safety Fee,281300,Legal Services Legal Opinion
South Lakeland District Council,http://opendatacommunities.org/id/district-council/south-lakeland,01/11/2016,Policy & Partnerships,Central Services,http://opendatacommunities.org/def/concept/finance/sercop/objective/102,GOVNET COMMUNICATIONS,4970168,10/10/2016,62230,395,0,Understanding ModernGov and,261500,HR Training & Conferences
South Lakeland District Council,http://opendatacommunities.org/id/district-council/south-lakeland,01/11/2016,Policy & Partnerships,Cultural Environmental Regulatory & Planning Services,http://opendatacommunities.org/def/concept/finance/sercop/objective/104,ARNSIDE EDUCATIONAL INSTITUTE,,10/10/2016,62231,25,0,Cost of room hire for Arnside,192110,Facilities Room Hire
South Lakeland District Council,http://opendatacommunities.org/id/district-council/south-lakeland,01/11/2016,Development Management,Central Services,http://opendatacommunities.org/def/concept/finance/sercop/objective/102,LABC,,10/10/2016,62232,300,0,"Building Control Admin Support training,",202100,Financial Services Subscriptions
South Lakeland District Council,http://opendatacommunities.org/id/district-council/south-lakeland,01/11/2016,Development Implementation,Cultural Environmental Regulatory & Planning Services,http://opendatacommunities.org/def/concept/finance/sercop/objective/104,P Casey (Land Reclamation) Ltd,1122137,10/10/2016,62233,5766.68,0,Flood Damage Work at Waterhead,231700,Highways Street Furniture & Ironworks
South Lakeland District Council,http://opendatacommunities.org/id/district-council/south-lakeland,01/11/2016,Development Implementation,Planning and Development,,P Casey (Land Reclamation) Ltd,1122137,10/10/2016,62234,102965.14,0,Waterhead Improvement Scheme -,231700,Highways Street Furniture & Ironworks
South Lakeland District Council,http://opendatacommunities.org/id/district-council/south-lakeland,01/11/2016,Business Support Community Services,Cultural Environmental Regulatory & Planning Services,http://opendatacommunities.org/def/concept/finance/sercop/objective/104,Buckingham Futures,8329499,10/10/2016,62235,1105.35,0,Supply 1 Full Time Private Water Officer,182030,Environment Water Assessment & Treatment
South Lakeland District Council,http://opendatacommunities.org/id/district-council/south-lakeland,01/11/2016,Lake Wardens,Cultural Environmental Regulatory & Planning Services,http://opendatacommunities.org/def/concept/finance/sercop/objective/104,PHS GROUP PLC,,10/10/2016,62237,24.21,0,Annual Contract Fee for Sanitary,131312,Cleaning & Janitorial Washroom Sanitat
South Lakeland District Council,http://opendatacommunities.org/id/district-council/south-lakeland,01/11/2016,Human Resources,Central Services,http://opendatacommunities.org/def/concept/finance/sercop/objective/102,GBS Corporate Training,6452080,10/10/2016,62238,995,0,Effective Customer Service,261500,HR Training & Conferences
South Lakeland District Council,http://opendatacommunities.org/id/district-council/south-lakeland,01/11/2016,Policy & Partnerships,Central Services,http://opendatacommunities.org/def/concept/finance/sercop/objective/102,MERITEC LTD,3224622,10/10/2016,62239,26000,0,"Secure MPLS data link between Penrith,",391200,Construction Engineering
South Lakeland District Council,http://opendatacommunities.org/id/district-council/south-lakeland,01/11/2016,Business Support Community Services,Cultural Environmental Regulatory & Planning Services,http://opendatacommunities.org/def/concept/finance/sercop/objective/104,WA Products (UK) Ltd,5655413,24/10/2016,62240,58,0,1 pack of 100,181100,Environment Forensic & Laboratory
South Lakeland District Council,http://opendatacommunities.org/id/district-council/south-lakeland,01/11/2016,ICT Group,Central Services,http://opendatacommunities.org/def/concept/finance/sercop/objective/102,LAN2LAN Limited,,10/10/2016,62242,327,0,Fortinet FortiWifi 60E Appliance,279999,ICT Not Elsewhere Classified
South Lakeland District Council,http://opendatacommunities.org/id/district-council/south-lakeland,01/11/2016,ICT Group,Central Services,http://opendatacommunities.org/def/concept/finance/sercop/objective/102,LAN2LAN Limited,,10/10/2016,62242,1695,0,Fortinet FortiWifi 60E Appliance,279999,ICT Not Elsewhere Classified
South Lakeland District Council,http://opendatacommunities.org/id/district-council/south-lakeland,01/11/2016,Development Implementation,Cultural Environmental Regulatory & Planning Services,http://opendatacommunities.org/def/concept/finance/sercop/objective/104,CUMBRIA MAILING SERVICES LTD,3136821,19/10/2016,62244,557.77,0,Mailing for SLDC (quote no. 3946),301200,Mail Services� Postage
South Lakeland District Council,http://opendatacommunities.org/id/district-council/south-lakeland,01/11/2016,Development Implementation,Cultural Environmental Regulatory & Planning Services,http://opendatacommunities.org/def/concept/finance/sercop/objective/104,CUMBRIA MAILING SERVICES LTD,3136821,12/10/2016,62245,1046.08,0,Mailing for SLDC (quote no. 3946),301200,Mail Services� Postage
South Lakeland District Council,http://opendatacommunities.org/id/district-council/south-lakeland,01/11/2016,Social Enterprise Admin,Central Services,http://opendatacommunities.org/def/concept/finance/sercop/objective/102,LABC,,10/10/2016,62246,150,0,BUILDING CONTROL ADMIN SUPPORT TRAINING,202100,Financial Services Subscriptions
South Lakeland District Council,http://opendatacommunities.org/id/district-council/south-lakeland,01/11/2016,Kendal Town Hall,Cultural Environmental Regulatory & Planning Services,http://opendatacommunities.org/def/concept/finance/sercop/objective/104,LDA Cleaning Services Ltd,8917986,10/10/2016,62247,175,0,Cleaning Ferry Nab public toilets until,131310,Cleaning & Janitorial Cleaning Service
South Lakeland District Council,http://opendatacommunities.org/id/district-council/south-lakeland,01/11/2016,Human Resources,Central Services,http://opendatacommunities.org/def/concept/finance/sercop/objective/102,Legal Counsel Ltd,10147194,05/10/2016,62250,1440,0,Bill Mitchell Legal Services,281200,Legal Services General Support
South Lakeland District Council,http://opendatacommunities.org/id/district-council/south-lakeland,01/11/2016,Legal Services,Central Services,http://opendatacommunities.org/def/concept/finance/sercop/objective/102,Eventus Legal Recruitment,,05/10/2016,62251,234,0,Commission Fees for W.Mitchell from,261300,HR Recruitment & Assessment
South Lakeland District Council,http://opendatacommunities.org/id/district-council/south-lakeland,01/11/2016,Development Implementation,Cultural Environmental Regulatory & Planning Services,http://opendatacommunities.org/def/concept/finance/sercop/objective/104,Frazer PA Services,,12/10/2016,62254,200,0,Reception Duties at 124 Highgate,150000,Consultancy
South Lakeland District Council,http://opendatacommunities.org/id/district-council/south-lakeland,01/11/2016,Business Support Community Services,Central Services,http://opendatacommunities.org/def/concept/finance/sercop/objective/102,CRAEMER UK LTD,2574815,10/10/2016,62255,11856,0,"240L Plastic Wheeld Bin, Fully Compliant",182012,Environment Waste Management Recycling
South Lakeland District Council,http://opendatacommunities.org/id/district-council/south-lakeland,01/11/2016,Business Support Community Services,Internal Trading Accounts,,ETS UK LIMITED,2588203,10/10/2016,62256,1254.7,0,Repair VU11 HRA,381500,Vehicle Mgt Parts
South Lakeland District Council,http://opendatacommunities.org/id/district-council/south-lakeland,01/11/2016,Business Support Community Services,Central Services,http://opendatacommunities.org/def/concept/finance/sercop/objective/102,MYERSCOUGH COLLEGE,,10/10/2016,62257,925,0,Level III Certificate in Principles of,908999,Public Bodies Not Elsewhere Classified
South Lakeland District Council,http://opendatacommunities.org/id/district-council/south-lakeland,01/11/2016,Business Support Community Services,Internal Trading Accounts,,ARCO LIMITED,133804,10/10/2016,62258,46.44,0,Cleaning materials,141100,Clothing Protective
South Lakeland District Council,http://opendatacommunities.org/id/district-council/south-lakeland,01/11/2016,Policy & Partnerships,Central Services,http://opendatacommunities.org/def/concept/finance/sercop/objective/102,ACT NOW TRAINING LTD,,10/10/2016,62259,285,0,The General Data Protection Regulation,261500,HR Training & Conferences
South Lakeland District Council,http://opendatacommunities.org/id/district-council/south-lakeland,01/11/2016,Policy & Partnerships,Central Services,http://opendatacommunities.org/def/concept/finance/sercop/objective/102,ASSOCIATION OF ELECTORAL ADMINISTRATORS,2406897,17/10/2016,62260,335,0,Cost of Community Governance Review,202100,Financial Services Subscriptions
South Lakeland District Council,http://opendatacommunities.org/id/district-council/south-lakeland,01/11/2016,Business Support Community Services,Internal Trading Accounts,,C T HAYTON LTD,1212766,10/10/2016,62261,19.6,0,Fittings,391200,Construction Engineering
South Lakeland District Council,http://opendatacommunities.org/id/district-council/south-lakeland,01/11/2016,Social Enterprise Admin,Cultural Environmental Regulatory & Planning Services,http://opendatacommunities.org/def/concept/finance/sercop/objective/104,NEWSQUEST MEDIA GROUP LTD,3102566,10/10/2016,62262,131,0,PUBLIC NOTICES FOR PLANNING 1 APRIL - 31,191000,Facilities Advertising
South Lakeland District Council,http://opendatacommunities.org/id/district-council/south-lakeland,01/11/2016,Business Support Community Services,Internal Trading Accounts,,CUMBRIA TRUCK CENTRE LTD,4298488,10/10/2016,62263,96.47,0,Pipe,381300,Vehicle Mgt Industrial
South Lakeland District Council,http://opendatacommunities.org/id/district-council/south-lakeland,01/11/2016,ICT Group,Central Services,http://opendatacommunities.org/def/concept/finance/sercop/objective/102,CABLE & WIRELESS UK (VODAFONE),,10/10/2016,62264,2881.02,0,Gsi Convergence Framework/PSN. Covers,271700,ICT Telecommunications Fixed
South Lakeland District Council,http://opendatacommunities.org/id/district-council/south-lakeland,01/11/2016,Business Support Community Services,Internal Trading Accounts,,CUMBRIA TRUCK CENTRE LTD,4298488,10/10/2016,62265,33.76,0,Pipe,381300,Vehicle Mgt Industrial
South Lakeland District Council,http://opendatacommunities.org/id/district-council/south-lakeland,01/11/2016,Revenues and Benefits,Central Services,http://opendatacommunities.org/def/concept/finance/sercop/objective/102,BADENOCH & CLARK,1356186,10/10/2016,62266,520.07,0,Revs and Bens  (April & May 2016),261300,HR Recruitment & Assessment
South Lakeland District Council,http://opendatacommunities.org/id/district-council/south-lakeland,01/11/2016,Revenues and Benefits,Central Services,http://opendatacommunities.org/def/concept/finance/sercop/objective/102,BADENOCH & CLARK,1356186,10/10/2016,62267,426.72,0,Revs and Bens  (April & May 2016),261300,HR Recruitment & Assessment
South Lakeland District Council,http://opendatacommunities.org/id/district-council/south-lakeland,01/11/2016,Revenues and Benefits,Central Services,http://opendatacommunities.org/def/concept/finance/sercop/objective/102,BADENOCH & CLARK,1356186,10/10/2016,62268,486.73,0,Revs and Bens  (April & May 2016),261300,HR Recruitment & Assessment
South Lakeland District Council,http://opendatacommunities.org/id/district-council/south-lakeland,01/11/2016,Revenues and Benefits,Central Services,http://opendatacommunities.org/def/concept/finance/sercop/objective/102,BADENOCH & CLARK,1356186,10/10/2016,62269,533.4,0,Revs and Bens  (April & May 2016),261300,HR Recruitment & Assessment
South Lakeland District Council,http://opendatacommunities.org/id/district-council/south-lakeland,01/11/2016,Revenues and Benefits,Central Services,http://opendatacommunities.org/def/concept/finance/sercop/objective/102,BADENOCH & CLARK,1356186,10/10/2016,62270,560.07,0,Revs and Bens  (April & May 2016),261300,HR Recruitment & Assessment
South Lakeland District Council,http://opendatacommunities.org/id/district-council/south-lakeland,01/11/2016,Revenues and Benefits,Central Services,http://opendatacommunities.org/def/concept/finance/sercop/objective/102,BADENOCH & CLARK,1356186,10/10/2016,62271,540.07,0,Revs and Bens  (April & May 2016),261300,HR Recruitment & Assessment
South Lakeland District Council,http://opendatacommunities.org/id/district-council/south-lakeland,01/11/2016,Revenues and Benefits,Central Services,http://opendatacommunities.org/def/concept/finance/sercop/objective/102,BADENOCH & CLARK,1356186,10/10/2016,62272,546.74,0,Revs and Bens  (April & May 2016),261300,HR Recruitment & Assessment
South Lakeland District Council,http://opendatacommunities.org/id/district-council/south-lakeland,01/11/2016,Business Support Community Services,Housing Services,http://opendatacommunities.org/def/concept/finance/sercop/objective/108,Ashberry Recruitment,7202591,17/10/2016,62273,284.24,0,Agency temp at Town View Fields Hostel,261300,HR Recruitment & Assessment
South Lakeland District Council,http://opendatacommunities.org/id/district-council/south-lakeland,01/11/2016,Human Resources,Central Services,http://opendatacommunities.org/def/concept/finance/sercop/objective/102,THE QUAKER TAPESTRY KENDAL LTD,,10/10/2016,62274,161,0,Room Hire for Violence and Aggression -,291400,Arts & Leisure Services Sport & Fitness
South Lakeland District Council,http://opendatacommunities.org/id/district-council/south-lakeland,01/11/2016,ICT Group,Central Services,http://opendatacommunities.org/def/concept/finance/sercop/objective/102,BRITISH TELECOMMUNICATIONS PLC (DD),,01/10/2016,62275,60.53,0,Town View Fields Broadband,279999,ICT Not Elsewhere Classified
South Lakeland District Council,http://opendatacommunities.org/id/district-council/south-lakeland,01/11/2016,Business Support Community Services,Internal Trading Accounts,,BRIAN ARMISTEAD LTD T/A SINKFALL RECYCLI,4133280,17/10/2016,62276,1663.78,0,Green waste tipping - 2016/17,391110,Construction Buildings Construction
South Lakeland District Council,http://opendatacommunities.org/id/district-council/south-lakeland,01/11/2016,Revenues and Benefits,Central Services,http://opendatacommunities.org/def/concept/finance/sercop/objective/102,ROYAL MAIL GROUP PLC,,10/10/2016,62277,145.84,0,2016 - 2017  Postal Charges a/c,301200,Mail Services� Postage
South Lakeland District Council,http://opendatacommunities.org/id/district-council/south-lakeland,01/11/2016,Revenues and Benefits,SLDC as Agent,,ROYAL MAIL GROUP PLC,,10/10/2016,62278,1071.45,0,2016 - 17  Postal Charges a/c 0198123013,301200,Mail Services� Postage
South Lakeland District Council,http://opendatacommunities.org/id/district-council/south-lakeland,01/11/2016,Kendal Town Hall,Highways & Transport Services,http://opendatacommunities.org/def/concept/finance/sercop/objective/107,ADECCO UK LIMITED,593232,19/10/2016,62279,344.4,0,Agency cover for WMMSCP,261400,HR Temporary & Agency Staff
South Lakeland District Council,http://opendatacommunities.org/id/district-council/south-lakeland,01/11/2016,Development Implementation,Cultural Environmental Regulatory & Planning Services,http://opendatacommunities.org/def/concept/finance/sercop/objective/104,ADECCO UK LIMITED,593232,12/10/2016,62280,384,0,SLDC Project Officer - ,261400,HR Temporary & Agency Staff
South Lakeland District Council,http://opendatacommunities.org/id/district-council/south-lakeland,01/11/2016,Kendal Town Hall,Highways & Transport Services,http://opendatacommunities.org/def/concept/finance/sercop/objective/107,ADECCO UK LIMITED,593232,10/10/2016,62281,378.84,0,Agency cover for WMMSCP,261400,HR Temporary & Agency Staff
South Lakeland District Council,http://opendatacommunities.org/id/district-council/south-lakeland,01/11/2016,Lake Wardens,Cultural Environmental Regulatory & Planning Services,http://opendatacommunities.org/def/concept/finance/sercop/objective/104,SMS (SALCOMBE) LTD,4558962,10/10/2016,62282,17.44,0,"2 x Skin Fittings 1"" BSP",381500,Vehicle Mgt Parts
South Lakeland District Council,http://opendatacommunities.org/id/district-council/south-lakeland,01/11/2016,Lake Wardens,Cultural Environmental Regulatory & Planning Services,http://opendatacommunities.org/def/concept/finance/sercop/objective/104,SMS (SALCOMBE) LTD,4558962,10/10/2016,62283,201.36,0,"2 x Skin Fittings 1"" BSP",381500,Vehicle Mgt Parts
South Lakeland District Council,http://opendatacommunities.org/id/district-council/south-lakeland,01/11/2016,Printing Section,Central Services,http://opendatacommunities.org/def/concept/finance/sercop/objective/102,ROSEFOX PAPER LIMITED,1655083,10/10/2016,62284,390,0,Paper One A4 80gsm,341000,Stationery Paper
South Lakeland District Council,http://opendatacommunities.org/id/district-council/south-lakeland,01/11/2016,Printing Section,Central Services,http://opendatacommunities.org/def/concept/finance/sercop/objective/102,ROSEFOX PAPER LIMITED,1655083,10/10/2016,62285,55.95,0,Paper One A4 80gsm,341000,Stationery Paper
South Lakeland District Council,http://opendatacommunities.org/id/district-council/south-lakeland,01/11/2016,Kendal Town Hall,Highways & Transport Services,http://opendatacommunities.org/def/concept/finance/sercop/objective/107,BEMROSE BOOTH PARAGON LTD,4891375,12/10/2016,62286,385.75,0,Blank Aura Self-Adhesive tickets for P&D,191600,Facilities Printing
South Lakeland District Council,http://opendatacommunities.org/id/district-council/south-lakeland,01/11/2016,Human Resources,Central Services,http://opendatacommunities.org/def/concept/finance/sercop/objective/102,Your Jobs In,,17/10/2016,62287,55,0,Your Jobs in Cumbria Advertisement -,261300,HR Recruitment & Assessment
South Lakeland District Council,http://opendatacommunities.org/id/district-council/south-lakeland,01/11/2016,Social Enterprise Admin,Cultural Environmental Regulatory & Planning Services,http://opendatacommunities.org/def/concept/finance/sercop/objective/104,THOMAS GRAHAM & SONS (IRON & STEEL) LTD,656879,17/10/2016,62288,122.74,0,4 x strips stainless steel 40mm x 6mm,101400,Building General Materials
South Lakeland District Council,http://opendatacommunities.org/id/district-council/south-lakeland,01/11/2016,Social Enterprise Admin,Internal Trading Accounts,,THOMAS GRAHAM & SONS (IRON & STEEL) LTD,656879,17/10/2016,62288,139.2,0,4 x strips stainless steel 40mm x 6mm,101400,Building General Materials
South Lakeland District Council,http://opendatacommunities.org/id/district-council/south-lakeland,01/11/2016,Social Enterprise Admin,Internal Trading Accounts,,THOMAS GRAHAM & SONS (IRON & STEEL) LTD,656879,17/10/2016,62288,7.27,0,4 x strips stainless steel 40mm x 6mm,101400,Building General Materials
South Lakeland District Council,http://opendatacommunities.org/id/district-council/south-lakeland,01/11/2016,Kendal Town Hall,Central Services,http://opendatacommunities.org/def/concept/finance/sercop/objective/102,BERENDSEN UK LTD,228604,12/10/2016,62289,82.5,0,Monthly rental of anti- slip mats for,161000,Domestic Goods Commercial
South Lakeland District Council,http://opendatacommunities.org/id/district-council/south-lakeland,01/11/2016,Kendal Town Hall,Cultural Environmental Regulatory & Planning Services,http://opendatacommunities.org/def/concept/finance/sercop/objective/104,BERENDSEN UK LTD,228604,12/10/2016,62289,19.67,0,Monthly rental of anti- slip mats for,161000,Domestic Goods Commercial
South Lakeland District Council,http://opendatacommunities.org/id/district-council/south-lakeland,01/11/2016,Democratic and Member Services,Central Services,http://opendatacommunities.org/def/concept/finance/sercop/objective/102,ROYAL TOWN PLANNING INSTITUTE,,10/10/2016,62290,25,0,training course for Cllr,908999,Public Bodies Not Elsewhere Classified
South Lakeland District Council,http://opendatacommunities.org/id/district-council/south-lakeland,01/11/2016,Business Support Community Services,Internal Trading Accounts,,DENNIS EAGLE LTD,3794455,10/10/2016,62291,80.48,0,Shock absorber,381300,Vehicle Mgt Industrial
South Lakeland District Council,http://opendatacommunities.org/id/district-council/south-lakeland,01/11/2016,Business Support Community Services,Internal Trading Accounts,,DENNIS EAGLE LTD,3794455,10/10/2016,62292,95.68,0,Joystick,381300,Vehicle Mgt Industrial
South Lakeland District Council,http://opendatacommunities.org/id/district-council/south-lakeland,01/11/2016,Business Support Community Services,Internal Trading Accounts,,DENNIS EAGLE LTD,3794455,10/10/2016,62293,40.49,0,Joystick,381300,Vehicle Mgt Industrial
South Lakeland District Council,http://opendatacommunities.org/id/district-council/south-lakeland,01/11/2016,Business Support Community Services,Internal Trading Accounts,,DENNIS EAGLE LTD,3794455,10/10/2016,62294,95.68,0,Joystick,381300,Vehicle Mgt Industrial
South Lakeland District Council,http://opendatacommunities.org/id/district-council/south-lakeland,01/11/2016,Business Support Community Services,Internal Trading Accounts,,AINSWORTH'S GARAGE,,10/10/2016,62295,340,0,Recover SL014,381400,Vehicle Mgt Maintenance
South Lakeland District Council,http://opendatacommunities.org/id/district-council/south-lakeland,01/11/2016,Business Support Community Services,Internal Trading Accounts,,BERENDSEN UK LTD,228604,10/10/2016,62296,229.57,0,Workwear hire 29/03/16 - 28/03/17,161000,Domestic Goods Commercial
South Lakeland District Council,http://opendatacommunities.org/id/district-council/south-lakeland,01/11/2016,Business Support Community Services,Internal Trading Accounts,,ALLSTAR BUSINESS SOLUTIONS LTD (NCR),2631112,01/10/2016,62297,3945.06,0,Fuel to 30/09,381600,Vehicle Mgt Leasing
South Lakeland District Council,http://opendatacommunities.org/id/district-council/south-lakeland,01/11/2016,Business Support Community Services,Internal Trading Accounts,,ALLSTAR BUSINESS SOLUTIONS LTD (NCR),2631112,01/10/2016,62297,41.63,0,Fuel to 30/09,381600,Vehicle Mgt Leasing
South Lakeland District Council,http://opendatacommunities.org/id/district-council/south-lakeland,01/11/2016,Business Support Community Services,Internal Trading Accounts,,ALLSTAR BUSINESS SOLUTIONS LTD (NCR),2631112,01/10/2016,62297,14693.91,0,Fuel to 30/09,381600,Vehicle Mgt Leasing
South Lakeland District Council,http://opendatacommunities.org/id/district-council/south-lakeland,01/11/2016,Business Support Community Services,Cultural Environmental Regulatory & Planning Services,http://opendatacommunities.org/def/concept/finance/sercop/objective/104,OCS GROUP LTD T/A CANNON HYGIENE LTD,1298292,10/10/2016,62298,2517.9,0,Clinical waste collections - 2016/17,131011,Cleaning & Janitorial Cleaning Materials
South Lakeland District Council,http://opendatacommunities.org/id/district-council/south-lakeland,01/11/2016,Kendal Town Hall,Cultural Environmental Regulatory & Planning Services,http://opendatacommunities.org/def/concept/finance/sercop/objective/104,Borderloos,3350965,10/10/2016,62299,3535.72,0,Hire of Luxury 4 berth shower trailer,199999,Facilities Not Elsewhere Classified
South Lakeland District Council,http://opendatacommunities.org/id/district-council/south-lakeland,01/11/2016,Legal Services,Central Services,http://opendatacommunities.org/def/concept/finance/sercop/objective/102,Whiteheads Solicitors Ltd,5954961,10/10/2016,62300,1199,0,Case details to be confirmed by NH,281300,Legal Services Legal Opinion
South Lakeland District Council,http://opendatacommunities.org/id/district-council/south-lakeland,01/11/2016,Democratic and Member Services,Central Services,http://opendatacommunities.org/def/concept/finance/sercop/objective/102,RIVERBANK HOSPITALITY CATERING,,10/10/2016,62301,39.65,0,SAFEGUARDING BRIEFING BUFFET,111000,Catering Banquet & Catering
South Lakeland District Council,http://opendatacommunities.org/id/district-council/south-lakeland,01/11/2016,Kendal Town Hall,Central Services,http://opendatacommunities.org/def/concept/finance/sercop/objective/102,LTT VENDING GROUP LTD,3021756,10/10/2016,62302,551.54,0,3 BOXES OF RICH COFFEE,111400,Catering Vending Machines & Dispensers
South Lakeland District Council,http://opendatacommunities.org/id/district-council/south-lakeland,01/11/2016,Customer Services,Central Services,http://opendatacommunities.org/def/concept/finance/sercop/objective/102,NORTHGATE VEHICLE HIRE LTD,1434157,10/10/2016,62303,30.28,0,hire of small car for Lola from Kendal,381600,Vehicle Mgt Leasing
South Lakeland District Council,http://opendatacommunities.org/id/district-council/south-lakeland,01/11/2016,Revenues and Benefits,Central Services,http://opendatacommunities.org/def/concept/finance/sercop/objective/102,BADENOCH & CLARK,1356186,10/10/2016,62304,306.71,0,Revs and Bens  (April & May 2016),261300,HR Recruitment & Assessment
South Lakeland District Council,http://opendatacommunities.org/id/district-council/south-lakeland,01/11/2016,Revenues and Benefits,Central Services,http://opendatacommunities.org/def/concept/finance/sercop/objective/102,BADENOCH & CLARK,1356186,10/10/2016,62305,493.4,0,Revs and Bens  (April & May 2016),261300,HR Recruitment & Assessment
South Lakeland District Council,http://opendatacommunities.org/id/district-council/south-lakeland,01/11/2016,Development Implementation,Cultural Environmental Regulatory & Planning Services,http://opendatacommunities.org/def/concept/finance/sercop/objective/104,HYGIENE CLEANING SUPPLIES LTD,4753934,17/10/2016,62306,61.81,0,Supply of Paper Towels (P372 x 3 boxes),131011,Cleaning & Janitorial Cleaning Materials
South Lakeland District Council,http://opendatacommunities.org/id/district-council/south-lakeland,01/11/2016,Business Support Community Services,Cultural Environmental Regulatory & Planning Services,http://opendatacommunities.org/def/concept/finance/sercop/objective/104,EPC-UK,84170,17/10/2016,62307,460.99,0,Calibration of Vibrograph,180000,Environmental Services
South Lakeland District Council,http://opendatacommunities.org/id/district-council/south-lakeland,01/11/2016,Business Support Community Services,Internal Trading Accounts,,ARCO LIMITED,133804,10/10/2016,62308,63.95,0,Cleaning materials,141100,Clothing Protective
South Lakeland District Council,http://opendatacommunities.org/id/district-council/south-lakeland,01/11/2016,Business Support Community Services,Internal Trading Accounts,,Harry Park Tyres Ltd,8131208,10/10/2016,62309,45,0,Tyres - 8,381500,Vehicle Mgt Parts
South Lakeland District Council,http://opendatacommunities.org/id/district-council/south-lakeland,01/11/2016,Business Support Community Services,Internal Trading Accounts,,GARWOOD EUROPE LTD,4333504,10/10/2016,62310,112.28,0,Cylinder,182011,Environment Waste Management Consumables
South Lakeland District Council,http://opendatacommunities.org/id/district-council/south-lakeland,01/11/2016,Business Support Community Services,Internal Trading Accounts,,GARWOOD EUROPE LTD,4333504,10/10/2016,62311,700,0,Cylinder,182011,Environment Waste Management Consumables
South Lakeland District Council,http://opendatacommunities.org/id/district-council/south-lakeland,01/11/2016,Business Support Community Services,Internal Trading Accounts,,FAUN ZOELLER (UK) LTD,751804,10/10/2016,62312,550,0,Cylinder,381400,Vehicle Mgt Maintenance
South Lakeland District Council,http://opendatacommunities.org/id/district-council/south-lakeland,01/11/2016,Business Support Community Services,Internal Trading Accounts,,Licence Bureau Ltd,4819897,10/10/2016,62313,54.2,0,Licence checks,380000,Vehicle Management
South Lakeland District Council,http://opendatacommunities.org/id/district-council/south-lakeland,01/11/2016,Business Support Community Services,Environment Regulatory,,Great Green Systems Ltd,6632263,10/10/2016,62314,255.8,0,Replaces order 24352.,381206,Vehicle Mgt Heavy Construction Equip Pur
South Lakeland District Council,http://opendatacommunities.org/id/district-council/south-lakeland,01/11/2016,Business Support Community Services,Internal Trading Accounts,,Harry Park Tyres Ltd,8131208,10/10/2016,62315,10,0,Tyres - 8,381500,Vehicle Mgt Parts
South Lakeland District Council,http://opendatacommunities.org/id/district-council/south-lakeland,01/11/2016,Business Support Community Services,Internal Trading Accounts,,Harry Park Tyres Ltd,8131208,10/10/2016,62316,42.5,0,Tyres - 8,381500,Vehicle Mgt Parts
South Lakeland District Council,http://opendatacommunities.org/id/district-council/south-lakeland,01/11/2016,Business Support Community Services,Internal Trading Accounts,,Harry Park Tyres Ltd,8131208,10/10/2016,62317,12.5,0,Tyres - 8,381500,Vehicle Mgt Parts
South Lakeland District Council,http://opendatacommunities.org/id/district-council/south-lakeland,01/11/2016,Business Support Community Services,Internal Trading Accounts,,Harry Park Tyres Ltd,8131208,10/10/2016,62318,10,0,Tyres - 8,381500,Vehicle Mgt Parts
South Lakeland District Council,http://opendatacommunities.org/id/district-council/south-lakeland,01/11/2016,Business Support Community Services,Internal Trading Accounts,,Harry Park Tyres Ltd,8131208,10/10/2016,62319,25,0,Tyres - 8,381500,Vehicle Mgt Parts
South Lakeland District Council,http://opendatacommunities.org/id/district-council/south-lakeland,01/11/2016,Business Support Community Services,Internal Trading Accounts,,Harry Park Tyres Ltd,8131208,10/10/2016,62320,75,0,Tyres - 8,381500,Vehicle Mgt Parts
South Lakeland District Council,http://opendatacommunities.org/id/district-council/south-lakeland,01/11/2016,Business Support Community Services,Internal Trading Accounts,,Harry Park Tyres Ltd,8131208,10/10/2016,62321,20,0,Tyres - 8,381500,Vehicle Mgt Parts
South Lakeland District Council,http://opendatacommunities.org/id/district-council/south-lakeland,01/11/2016,Development Management,Cultural Environmental Regulatory & Planning Services,http://opendatacommunities.org/def/concept/finance/sercop/objective/104,Fire Risk Consultancy Limited,4550417,10/10/2016,62322,1590,0,Online Fire Safety Certificate Course to,151000,Consultancy Business
South Lakeland District Council,http://opendatacommunities.org/id/district-council/south-lakeland,01/11/2016,Kendal Town Hall,Highways & Transport Services,http://opendatacommunities.org/def/concept/finance/sercop/objective/107,BEMROSE BOOTH PARAGON LTD,4891375,10/10/2016,62323,2212.5,0,375000 Aura self-adhesive pay and,191600,Facilities Printing
South Lakeland District Council,http://opendatacommunities.org/id/district-council/south-lakeland,01/11/2016,Business Support Community Services,Internal Trading Accounts,,RIBBLESDALE AUTO ELECTRICS 1992 LTD,2732686,10/10/2016,62324,7.6,0,Bulbs,381500,Vehicle Mgt Parts
South Lakeland District Council,http://opendatacommunities.org/id/district-council/south-lakeland,01/11/2016,Business Support Community Services,Internal Trading Accounts,,EK MOTOR FACTORS LTD,838524,10/10/2016,62325,53.06,0,Blade,381400,Vehicle Mgt Maintenance
South Lakeland District Council,http://opendatacommunities.org/id/district-council/south-lakeland,01/11/2016,Business Support Community Services,Internal Trading Accounts,,EK MOTOR FACTORS LTD,838524,10/10/2016,62326,27.43,0,Blade,381400,Vehicle Mgt Maintenance
South Lakeland District Council,http://opendatacommunities.org/id/district-council/south-lakeland,01/11/2016,Business Support Community Services,Internal Trading Accounts,,EK MOTOR FACTORS LTD,838524,10/10/2016,62327,21.45,0,Blade,381400,Vehicle Mgt Maintenance
South Lakeland District Council,http://opendatacommunities.org/id/district-council/south-lakeland,01/11/2016,Business Support Community Services,Internal Trading Accounts,,EK MOTOR FACTORS LTD,838524,10/10/2016,62328,20.55,0,Blade,381400,Vehicle Mgt Maintenance
South Lakeland District Council,http://opendatacommunities.org/id/district-council/south-lakeland,01/11/2016,Business Support Community Services,Internal Trading Accounts,,EK MOTOR FACTORS LTD,838524,10/10/2016,62329,48.3,0,Blade,381400,Vehicle Mgt Maintenance
South Lakeland District Council,http://opendatacommunities.org/id/district-council/south-lakeland,01/11/2016,Business Support Community Services,Internal Trading Accounts,,DENNIS EAGLE LTD,3794455,10/10/2016,62330,12.62,0,Tube,381300,Vehicle Mgt Industrial
South Lakeland District Council,http://opendatacommunities.org/id/district-council/south-lakeland,01/11/2016,Business Support Community Services,Internal Trading Accounts,,EK MOTOR FACTORS LTD,838524,10/10/2016,62331,3.3,0,Blade,381400,Vehicle Mgt Maintenance
South Lakeland District Council,http://opendatacommunities.org/id/district-council/south-lakeland,01/11/2016,Business Support Community Services,Internal Trading Accounts,,EK MOTOR FACTORS LTD,838524,10/10/2016,62332,13.37,0,Blade,381400,Vehicle Mgt Maintenance
South Lakeland District Council,http://opendatacommunities.org/id/district-council/south-lakeland,01/11/2016,Business Support Community Services,Internal Trading Accounts,,Masterstaff Limited,2777593,10/10/2016,62333,3478.39,0,Agency staff - August 2016,261300,HR Recruitment & Assessment
South Lakeland District Council,http://opendatacommunities.org/id/district-council/south-lakeland,01/11/2016,Business Support Community Services,Internal Trading Accounts,,QPS PLASTIC LTD,,10/10/2016,62334,77.75,0,Curtains,109999,Building Not Elsewhere Classified
South Lakeland District Council,http://opendatacommunities.org/id/district-council/south-lakeland,01/11/2016,Business Support Community Services,Internal Trading Accounts,,TRAPEZE,,10/10/2016,62335,3015.04,0,Fleetmaster support 01/11/16 - 31/10/17,271600,ICT Software Customised & Bespoke
South Lakeland District Council,http://opendatacommunities.org/id/district-council/south-lakeland,01/11/2016,Business Support Community Services,Internal Trading Accounts,,ARCO LIMITED,133804,10/10/2016,62336,30.64,0,Cleaning materials,141100,Clothing Protective
South Lakeland District Council,http://opendatacommunities.org/id/district-council/south-lakeland,01/11/2016,Business Support Community Services,Internal Trading Accounts,,ARCO LIMITED,133804,10/10/2016,62337,46.56,0,Cleaning materials,141100,Clothing Protective
South Lakeland District Council,http://opendatacommunities.org/id/district-council/south-lakeland,01/11/2016,Business Support Community Services,Internal Trading Accounts,,ARCO LIMITED,133804,10/10/2016,62338,661.8,0,Cleaning materials,141100,Clothing Protective
South Lakeland District Council,http://opendatacommunities.org/id/district-council/south-lakeland,01/11/2016,Business Support Community Services,Internal Trading Accounts,,ARCO LIMITED,133804,10/10/2016,62339,25.86,0,Cleaning materials,141100,Clothing Protective
South Lakeland District Council,http://opendatacommunities.org/id/district-council/south-lakeland,01/11/2016,Business Support Community Services,Internal Trading Accounts,,ARCO LIMITED,133804,10/10/2016,62340,7.76,0,Cleaning materials,141100,Clothing Protective
South Lakeland District Council,http://opendatacommunities.org/id/district-council/south-lakeland,01/11/2016,Business Support Community Services,Internal Trading Accounts,,ARCO LIMITED,133804,10/10/2016,62341,6.08,0,Cleaning materials,141100,Clothing Protective
South Lakeland District Council,http://opendatacommunities.org/id/district-council/south-lakeland,01/11/2016,Business Support Community Services,Internal Trading Accounts,,FST CONSUMABLES LTD,1342012,10/10/2016,62342,108.39,0,Consumables 01/04/16 - 31/03/17,101600,Building Hand Tools
South Lakeland District Council,http://opendatacommunities.org/id/district-council/south-lakeland,01/11/2016,ICT Group,Central Services,http://opendatacommunities.org/def/concept/finance/sercop/objective/102,ITPS Professional Services Ltd (DD),,01/10/2016,62343,913.24,0,Lync Line Rental Charges,271700,ICT Telecommunications Fixed
South Lakeland District Council,http://opendatacommunities.org/id/district-council/south-lakeland,01/11/2016,ICT Group,Central Services,http://opendatacommunities.org/def/concept/finance/sercop/objective/102,ITPS Professional Services Ltd (DD),,01/10/2016,62343,45,0,Lync Line Rental Charges,271700,ICT Telecommunications Fixed
South Lakeland District Council,http://opendatacommunities.org/id/district-council/south-lakeland,01/11/2016,ICT Group,Central Services,http://opendatacommunities.org/def/concept/finance/sercop/objective/102,ITPS Professional Services Ltd (DD),,01/10/2016,62343,602.45,0,Lync Line Rental Charges,271700,ICT Telecommunications Fixed
South Lakeland District Council,http://opendatacommunities.org/id/district-council/south-lakeland,01/11/2016,ICT Group,Central Services,http://opendatacommunities.org/def/concept/finance/sercop/objective/102,ITPS Professional Services Ltd (DD),,01/10/2016,62344,53.6,0,Line rental and broadband charges for,271700,ICT Telecommunications Fixed
South Lakeland District Council,http://opendatacommunities.org/id/district-council/south-lakeland,01/11/2016,Policy & Partnerships,Cultural Environmental Regulatory & Planning Services,http://opendatacommunities.org/def/concept/finance/sercop/objective/104,KENDAL TOWN COUNCIL,,10/10/2016,62345,8000,0,2016/2017 LIPs funding for Kendal Trail,908000,Public Bodies Council support services
South Lakeland District Council,http://opendatacommunities.org/id/district-council/south-lakeland,01/11/2016,Legal Services,Central Services,http://opendatacommunities.org/def/concept/finance/sercop/objective/102,ANTHONY COLLINS SOLICITORS,OC313432,10/10/2016,62347,662,0,Fees re:  Yard 10 Stricklandgate,281300,Legal Services Legal Opinion
South Lakeland District Council,http://opendatacommunities.org/id/district-council/south-lakeland,01/11/2016,Development Management,Cultural Environmental Regulatory & Planning Services,http://opendatacommunities.org/def/concept/finance/sercop/objective/104,CHRIS BOWKER LTD,1642561,17/10/2016,62348,30,0,Check of electrical work under Part P of,101100,Building Electrical
South Lakeland District Council,http://opendatacommunities.org/id/district-council/south-lakeland,01/11/2016,Revenues and Benefits,SLDC as Agent,,ROYAL MAIL GROUP PLC,,10/10/2016,62349,1854.26,0,2016 - 17  Postal Charges a/c 0198123013,301200,Mail Services� Postage
South Lakeland District Council,http://opendatacommunities.org/id/district-council/south-lakeland,01/11/2016,Development Implementation,Cultural Environmental Regulatory & Planning Services,http://opendatacommunities.org/def/concept/finance/sercop/objective/104,LAKELAND ARTS,8162578,12/10/2016,62350,500,0,Participation in the Kendal Courtesy,201700,Financial Services Grants
South Lakeland District Council,http://opendatacommunities.org/id/district-council/south-lakeland,01/11/2016,Business Support Community Services,Transport Planning Policy,http://opendatacommunities.org/def/concept/finance/sercop/objective/107,KENDAL SECURITY CENTRE LTD,3179893,26/10/2016,62351,51.2,0,Keys,192212,Facilities Security Equipment
South Lakeland District Council,http://opendatacommunities.org/id/district-council/south-lakeland,01/11/2016,Business Support Community Services,Internal Trading Accounts,,KENDAL SECURITY CENTRE LTD,3179893,26/10/2016,62351,23.8,0,Keys,192212,Facilities Security Equipment
South Lakeland District Council,http://opendatacommunities.org/id/district-council/south-lakeland,01/11/2016,Development Strategy,Cultural Environmental Regulatory & Planning Services,http://opendatacommunities.org/def/concept/finance/sercop/objective/104,Abbot Hall Hotel,223776,10/10/2016,62352,150,0,Room hire for Phase 2 draft Dev Brief,192110,Facilities Room Hire
South Lakeland District Council,http://opendatacommunities.org/id/district-council/south-lakeland,01/11/2016,Kendal Town Hall,Cultural Environmental Regulatory & Planning Services,http://opendatacommunities.org/def/concept/finance/sercop/objective/104,CUMBRIA COUNTY COUNCIL,,17/10/2016,62353,50,0,4 flower troughts for ToB 2016 Finish,908000,Public Bodies Council support services
South Lakeland District Council,http://opendatacommunities.org/id/district-council/south-lakeland,01/11/2016,Social Enterprise Admin,Highways & Transport Services,http://opendatacommunities.org/def/concept/finance/sercop/objective/107,ALLSTAR BUSINESS SOLUTIONS LTD (NCR),2631112,01/10/2016,62355,102.71,0,Fuel for 3 CEO vehicles 1 April 2016 to,381600,Vehicle Mgt Leasing
South Lakeland District Council,http://opendatacommunities.org/id/district-council/south-lakeland,01/11/2016,Social Enterprise Admin,Highways & Transport Services,http://opendatacommunities.org/def/concept/finance/sercop/objective/107,ALLSTAR BUSINESS SOLUTIONS LTD (NCR),2631112,01/10/2016,62355,156.94,0,Fuel for 3 CEO vehicles 1 April 2016 to,381600,Vehicle Mgt Leasing
South Lakeland District Council,http://opendatacommunities.org/id/district-council/south-lakeland,01/11/2016,Social Enterprise Admin,Cultural Environmental Regulatory & Planning Services,http://opendatacommunities.org/def/concept/finance/sercop/objective/104,ALLSTAR BUSINESS SOLUTIONS LTD (NCR),2631112,01/10/2016,62357,79.06,0,Parks fuel,381600,Vehicle Mgt Leasing
South Lakeland District Council,http://opendatacommunities.org/id/district-council/south-lakeland,01/11/2016,Business Support Community Services,Cultural Environmental Regulatory & Planning Services,http://opendatacommunities.org/def/concept/finance/sercop/objective/104,Buckingham Futures,8329499,10/10/2016,62359,351.4,0,Payment of Cat D Inspections 26/09/16 to,182030,Environment Water Assessment & Treatment
South Lakeland District Council,http://opendatacommunities.org/id/district-council/south-lakeland,01/11/2016,Business Support Community Services,Cultural Environmental Regulatory & Planning Services,http://opendatacommunities.org/def/concept/finance/sercop/objective/104,Buckingham Futures,8329499,10/10/2016,62360,1227,0,Supply 1 Full Time Private Water Officer,182030,Environment Water Assessment & Treatment
South Lakeland District Council,http://opendatacommunities.org/id/district-council/south-lakeland,01/11/2016,Social Enterprise Admin,Central Services,http://opendatacommunities.org/def/concept/finance/sercop/objective/102,Lakes Laundry & Carpet Cleaning Service,,10/10/2016,62361,221.3,0,Carpet cleaning for parking services.,131310,Cleaning & Janitorial Cleaning Service
South Lakeland District Council,http://opendatacommunities.org/id/district-council/south-lakeland,01/11/2016,Social Enterprise Admin,Cultural Environmental Regulatory & Planning Services,http://opendatacommunities.org/def/concept/finance/sercop/objective/104,THE NATIONAL TRUST,,10/10/2016,62362,2650,0,Rent for Millerground sailing base,202100,Financial Services Subscriptions
South Lakeland District Council,http://opendatacommunities.org/id/district-council/south-lakeland,01/11/2016,Business Support Community Services,Cultural Environmental Regulatory & Planning Services,http://opendatacommunities.org/def/concept/finance/sercop/objective/104,ALLSTAR BUSINESS SOLUTIONS LTD (NCR),2631112,01/10/2016,62363,28.68,0,Private Water Van - Fuel,381600,Vehicle Mgt Leasing
South Lakeland District Council,http://opendatacommunities.org/id/district-council/south-lakeland,01/11/2016,Social Enterprise Admin,Cultural Environmental Regulatory & Planning Services,http://opendatacommunities.org/def/concept/finance/sercop/objective/104,CAPITA SYMONDS LTD,3173410,10/10/2016,62364,2551.92,0,ARBORICULTURE SERVICES,390000,Construction
South Lakeland District Council,http://opendatacommunities.org/id/district-council/south-lakeland,01/11/2016,Social Enterprise Admin,Cultural Environmental Regulatory & Planning Services,http://opendatacommunities.org/def/concept/finance/sercop/objective/104,CAPITA SYMONDS LTD,3173410,10/10/2016,62364,1701.28,0,ARBORICULTURE SERVICES,390000,Construction
South Lakeland District Council,http://opendatacommunities.org/id/district-council/south-lakeland,01/11/2016,Democratic and Member Services,Central Services,http://opendatacommunities.org/def/concept/finance/sercop/objective/102,MAJESTIC PUBLICATIONS LTD,4353962,10/10/2016,62365,255,0,support for St Mary's Hospice,171113,Education Library Books
South Lakeland District Council,http://opendatacommunities.org/id/district-council/south-lakeland,01/11/2016,Human Resources,Central Services,http://opendatacommunities.org/def/concept/finance/sercop/objective/102,EMPLOYMENT PAGES LTD,7363099,10/10/2016,62366,306,0,Public Protection Officers - Employment,261400,HR Temporary & Agency Staff
South Lakeland District Council,http://opendatacommunities.org/id/district-council/south-lakeland,01/11/2016,Policy & Partnerships,Cultural Environmental Regulatory & Planning Services,http://opendatacommunities.org/def/concept/finance/sercop/objective/104,S G Baker Ltd,555739,12/10/2016,62367,3000,0,For supply of 1840 sandbags delivered.,180000,Environmental Services
South Lakeland District Council,http://opendatacommunities.org/id/district-council/south-lakeland,01/11/2016,Policy & Partnerships,Central Services,http://opendatacommunities.org/def/concept/finance/sercop/objective/102,S G Baker Ltd,555739,12/10/2016,62367,128,0,For supply of 1840 sandbags delivered.,180000,Environmental Services
South Lakeland District Council,http://opendatacommunities.org/id/district-council/south-lakeland,01/11/2016,Social Enterprise Admin,Cultural Environmental Regulatory & Planning Services,http://opendatacommunities.org/def/concept/finance/sercop/objective/104,FURNESS NEWSPAPERS LTD,1155841,12/10/2016,62368,129.5,0,PUBLIC NOTICES FOR PLANNING 1 APRIL 2015,191000,Facilities Advertising
South Lakeland District Council,http://opendatacommunities.org/id/district-council/south-lakeland,01/11/2016,Social Enterprise Admin,Central Services,http://opendatacommunities.org/def/concept/finance/sercop/objective/102,Andrew Porter Ltd,,12/10/2016,62369,893.49,0,Parking Services relocation.,191900,Facilities Removals
South Lakeland District Council,http://opendatacommunities.org/id/district-council/south-lakeland,01/11/2016,Social Enterprise Admin,Highways & Transport Services,http://opendatacommunities.org/def/concept/finance/sercop/objective/107,MOUCHEL LTD,1686040,10/10/2016,62373,51.85,0,DVLA checks from 1 April 2016 to 31,351400,Street & Traffic Traffic Control
South Lakeland District Council,http://opendatacommunities.org/id/district-council/south-lakeland,01/11/2016,Environment and Housing,Housing Services,http://opendatacommunities.org/def/concept/finance/sercop/objective/108,The Oyster Partnership,5020374,10/10/2016,62374,964.11,0,Officer,261300,HR Recruitment & Assessment
South Lakeland District Council,http://opendatacommunities.org/id/district-council/south-lakeland,01/11/2016,Environment and Housing,Housing Services,http://opendatacommunities.org/def/concept/finance/sercop/objective/108,The Oyster Partnership,5020374,10/10/2016,62375,931.2,0,Officer,261300,HR Recruitment & Assessment
South Lakeland District Council,http://opendatacommunities.org/id/district-council/south-lakeland,01/11/2016,Environment and Housing,Housing Services,http://opendatacommunities.org/def/concept/finance/sercop/objective/108,The Oyster Partnership,5020374,10/10/2016,62376,939.05,0,Officer,261300,HR Recruitment & Assessment
South Lakeland District Council,http://opendatacommunities.org/id/district-council/south-lakeland,01/11/2016,Development Implementation,Cultural Environmental Regulatory & Planning Services,http://opendatacommunities.org/def/concept/finance/sercop/objective/104,PS BUSINESS MATTERS,8147185,17/10/2016,62377,2000,0,Kendal Futures Programme Support,151900,Consultancy Management
South Lakeland District Council,http://opendatacommunities.org/id/district-council/south-lakeland,01/11/2016,Development Implementation,Central Services,http://opendatacommunities.org/def/concept/finance/sercop/objective/102,HYGIENE CLEANING SUPPLIES LTD,4753934,17/10/2016,62378,532.64,0,2 x 5l Jangro Lemon Floor Gel,131011,Cleaning & Janitorial Cleaning Materials
South Lakeland District Council,http://opendatacommunities.org/id/district-council/south-lakeland,01/11/2016,Democratic and Member Services,Cultural Environmental Regulatory & Planning Services,http://opendatacommunities.org/def/concept/finance/sercop/objective/104,Hallgarth Young Person's Organisation,,10/10/2016,62379,200,0,donation for Christmas and Halloween,201710,Financial Services-Grants-Charitable
South Lakeland District Council,http://opendatacommunities.org/id/district-council/south-lakeland,01/11/2016,Social Enterprise Admin,Highways & Transport Services,http://opendatacommunities.org/def/concept/finance/sercop/objective/107,ALLSTAR BUSINESS SOLUTIONS LTD (NCR),2631112,01/10/2016,62382,100.24,0,Fuel for 3 CEO vehicles 1 April 2016 to,381600,Vehicle Mgt Leasing
South Lakeland District Council,http://opendatacommunities.org/id/district-council/south-lakeland,01/11/2016,Social Enterprise Admin,Highways & Transport Services,http://opendatacommunities.org/def/concept/finance/sercop/objective/107,ALLSTAR BUSINESS SOLUTIONS LTD (NCR),2631112,01/10/2016,62382,219.73,0,Fuel for 3 CEO vehicles 1 April 2016 to,381600,Vehicle Mgt Leasing
South Lakeland District Council,http://opendatacommunities.org/id/district-council/south-lakeland,01/11/2016,Customer Services,Cultural Environmental Regulatory & Planning Services,http://opendatacommunities.org/def/concept/finance/sercop/objective/104,NEWSQUEST MEDIA GROUP LTD,3102566,10/10/2016,62384,500,0,Advert for the flood grants flood fair,191000,Facilities Advertising
South Lakeland District Council,http://opendatacommunities.org/id/district-council/south-lakeland,01/11/2016,Development Implementation,Cultural Environmental Regulatory & Planning Services,http://opendatacommunities.org/def/concept/finance/sercop/objective/104,THE PLAIN CREATIVE AGENCY LTD,6867950,17/10/2016,62385,140,0,Design of the Kendal Futures Annual,191000,Facilities Advertising
South Lakeland District Council,http://opendatacommunities.org/id/district-council/south-lakeland,01/11/2016,Lake Wardens,Cultural Environmental Regulatory & Planning Services,http://opendatacommunities.org/def/concept/finance/sercop/objective/104,TECHNIJET LTD,2776601,10/10/2016,62386,96.19,0,Bi-Annual Service of Pressure Washers,139999,Cleaning & Janitorial Not Elsewhere Clas
South Lakeland District Council,http://opendatacommunities.org/id/district-council/south-lakeland,01/11/2016,Business Support Community Services,Housing Services,http://opendatacommunities.org/def/concept/finance/sercop/objective/108,Landlord,,10/10/2016,62394,500,0,Monthly rent payment ,202000,Financial Services Rents
South Lakeland District Council,http://opendatacommunities.org/id/district-council/south-lakeland,01/11/2016,Development Implementation,Cultural Environmental Regulatory & Planning Services,http://opendatacommunities.org/def/concept/finance/sercop/objective/104,CHERIE J FOX,,10/10/2016,62395,350,0,Marketing for Invest & Explore Websites,270000,Information Communications Technology
South Lakeland District Council,http://opendatacommunities.org/id/district-council/south-lakeland,01/11/2016,Policy & Partnerships,Cultural Environmental Regulatory & Planning Services,http://opendatacommunities.org/def/concept/finance/sercop/objective/104,SEDBERGH PEOPLE'S HALL,,10/10/2016,62396,18,0,Room Hire for 15-09-16 Respect Meeting,201700,Financial Services Grants
South Lakeland District Council,http://opendatacommunities.org/id/district-council/south-lakeland,01/11/2016,Printing Section,Central Services,http://opendatacommunities.org/def/concept/finance/sercop/objective/102,Konica Minolta Bus Solutions (UK) Ltd,,17/10/2016,62397,4351.56,0,Konica Embedded License,192000,Facilities Reprographics
South Lakeland District Council,http://opendatacommunities.org/id/district-council/south-lakeland,01/11/2016,Printing Section,Central Services,http://opendatacommunities.org/def/concept/finance/sercop/objective/102,Konica Minolta Bus Solutions (UK) Ltd,,10/10/2016,62398,3610.29,0,Konica Embedded License,192000,Facilities Reprographics
South Lakeland District Council,http://opendatacommunities.org/id/district-council/south-lakeland,01/11/2016,Environment and Housing,SLDC as Agent,,TWO CASTLES HOUSING ASSOCIATION LIMITED,IP17663R,12/10/2016,62399,1320.8,0,Cumbria Choice Co-Ordinator Costs 15-16,250000,Housing
South Lakeland District Council,http://opendatacommunities.org/id/district-council/south-lakeland,01/11/2016,Policy & Partnerships,Cultural Environmental Regulatory & Planning Services,http://opendatacommunities.org/def/concept/finance/sercop/objective/104,Holme Parish Hall,,12/10/2016,62400,6931.38,0,2015-2016 Locally Important Projects,201700,Financial Services Grants
South Lakeland District Council,http://opendatacommunities.org/id/district-council/south-lakeland,01/11/2016,Business Support Community Services,Housing Services,http://opendatacommunities.org/def/concept/finance/sercop/objective/108,Ashberry Recruitment,7202591,12/10/2016,62401,94.5,0,Agency temp at Town View Fields Hostel,261300,HR Recruitment & Assessment
South Lakeland District Council,http://opendatacommunities.org/id/district-council/south-lakeland,01/11/2016,Social Enterprise Admin,SLDC as Agent,,PAY BY PHONE (PAYPOINT),,12/10/2016,62402,273.41,0,Pay-by-phone charges from 1 April 2016,351400,Street & Traffic Traffic Control
South Lakeland District Council,http://opendatacommunities.org/id/district-council/south-lakeland,01/11/2016,Kendal Town Hall,Highways & Transport Services,http://opendatacommunities.org/def/concept/finance/sercop/objective/107,ADECCO UK LIMITED,593232,19/10/2016,62403,126.28,0,Agency cover for WMMSCP,261400,HR Temporary & Agency Staff
South Lakeland District Council,http://opendatacommunities.org/id/district-council/south-lakeland,01/11/2016,Kendal Town Hall,Highways & Transport Services,http://opendatacommunities.org/def/concept/finance/sercop/objective/107,ADECCO UK LIMITED,593232,19/10/2016,62404,344.4,0,Agency cover for WMMSCP,261400,HR Temporary & Agency Staff
South Lakeland District Council,http://opendatacommunities.org/id/district-council/south-lakeland,01/11/2016,Development Implementation,Cultural Environmental Regulatory & Planning Services,http://opendatacommunities.org/def/concept/finance/sercop/objective/104,ADECCO UK LIMITED,593232,12/10/2016,62405,384,0,SLDC Project Officer -,261400,HR Temporary & Agency Staff
South Lakeland District Council,http://opendatacommunities.org/id/district-council/south-lakeland,01/11/2016,ICT Group,Central Services,http://opendatacommunities.org/def/concept/finance/sercop/objective/102,ITPS Professional Services Ltd (DD),,01/10/2016,62406,913.26,0,Lync Line Rental Charges,271700,ICT Telecommunications Fixed
South Lakeland District Council,http://opendatacommunities.org/id/district-council/south-lakeland,01/11/2016,ICT Group,Central Services,http://opendatacommunities.org/def/concept/finance/sercop/objective/102,ITPS Professional Services Ltd (DD),,01/10/2016,62406,45,0,Lync Line Rental Charges,271700,ICT Telecommunications Fixed
South Lakeland District Council,http://opendatacommunities.org/id/district-council/south-lakeland,01/11/2016,ICT Group,Central Services,http://opendatacommunities.org/def/concept/finance/sercop/objective/102,ITPS Professional Services Ltd (DD),,01/10/2016,62406,648.88,0,Lync Line Rental Charges,271700,ICT Telecommunications Fixed
South Lakeland District Council,http://opendatacommunities.org/id/district-council/south-lakeland,01/11/2016,ICT Group,Central Services,http://opendatacommunities.org/def/concept/finance/sercop/objective/102,ITPS Professional Services Ltd (DD),,01/10/2016,62407,53.6,0,Line rental and broadband charges for,271700,ICT Telecommunications Fixed
South Lakeland District Council,http://opendatacommunities.org/id/district-council/south-lakeland,01/11/2016,Business Support Community Services,Internal Trading Accounts,,HYDRAIR TRUCK & TRAILER PARTS LTD,,12/10/2016,62408,252.39,0,Air driers,381500,Vehicle Mgt Parts
South Lakeland District Council,http://opendatacommunities.org/id/district-council/south-lakeland,01/11/2016,Business Support Community Services,Internal Trading Accounts,,DENNIS EAGLE LTD,3794455,12/10/2016,62409,76.21,0,Tube,381300,Vehicle Mgt Industrial
South Lakeland District Council,http://opendatacommunities.org/id/district-council/south-lakeland,01/11/2016,Business Support Community Services,Internal Trading Accounts,,HYDRAIR TRUCK & TRAILER PARTS LTD,,12/10/2016,62410,14.32,0,Plate holders,381500,Vehicle Mgt Parts
South Lakeland District Council,http://opendatacommunities.org/id/district-council/south-lakeland,01/11/2016,Business Support Community Services,Internal Trading Accounts,,HYDRAIR TRUCK & TRAILER PARTS LTD,,12/10/2016,62411,58.71,0,Plate holders,381500,Vehicle Mgt Parts
South Lakeland District Council,http://opendatacommunities.org/id/district-council/south-lakeland,01/11/2016,Business Support Community Services,Internal Trading Accounts,,DENNIS EAGLE LTD,3794455,12/10/2016,62412,192.36,0,Tube,381300,Vehicle Mgt Industrial
South Lakeland District Council,http://opendatacommunities.org/id/district-council/south-lakeland,01/11/2016,Business Support Community Services,Internal Trading Accounts,,DENNIS EAGLE LTD,3794455,12/10/2016,62413,94.36,0,Tube,381300,Vehicle Mgt Industrial
South Lakeland District Council,http://opendatacommunities.org/id/district-council/south-lakeland,01/11/2016,Business Support Community Services,Internal Trading Accounts,,HYDRAIR TRUCK & TRAILER PARTS LTD,,12/10/2016,62414,11.9,0,Plate holders,381500,Vehicle Mgt Parts
South Lakeland District Council,http://opendatacommunities.org/id/district-council/south-lakeland,01/11/2016,Business Support Community Services,Internal Trading Accounts,,HYDRAIR TRUCK & TRAILER PARTS LTD,,12/10/2016,62415,240,0,Plate holders,381500,Vehicle Mgt Parts
South Lakeland District Council,http://opendatacommunities.org/id/district-council/south-lakeland,01/11/2016,Business Support Community Services,Internal Trading Accounts,,HYDRAIR TRUCK & TRAILER PARTS LTD,,12/10/2016,62416,115,0,Plate holders,381500,Vehicle Mgt Parts
South Lakeland District Council,http://opendatacommunities.org/id/district-council/south-lakeland,01/11/2016,Revenues and Benefits,Central Services,http://opendatacommunities.org/def/concept/finance/sercop/objective/102,HER MAJESTY'S COURTS & TRIBUNAL SERVICE,,12/10/2016,62417,252,0,2016 - 2017 Council Tax Liability Orders,908001,Public Bodies Other Public Bodies
South Lakeland District Council,http://opendatacommunities.org/id/district-council/south-lakeland,01/11/2016,Revenues and Benefits,Central Services,http://opendatacommunities.org/def/concept/finance/sercop/objective/102,HER MAJESTY'S COURTS & TRIBUNAL SERVICE,,12/10/2016,62417,1602,0,2016 - 2017 Council Tax Liability Orders,908001,Public Bodies Other Public Bodies
South Lakeland District Council,http://opendatacommunities.org/id/district-council/south-lakeland,01/11/2016,Revenues and Benefits,,,HER MAJESTY'S COURTS & TRIBUNAL SERVICE,,12/10/2016,62417,96,0,2016 - 2017 Council Tax Liability Orders,908001,Public Bodies Other Public Bodies
South Lakeland District Council,http://opendatacommunities.org/id/district-council/south-lakeland,01/11/2016,Business Support Community Services,Internal Trading Accounts,,HYDRAIR TRUCK & TRAILER PARTS LTD,,12/10/2016,62418,11.28,0,Plate holders,381500,Vehicle Mgt Parts
South Lakeland District Council,http://opendatacommunities.org/id/district-council/south-lakeland,01/11/2016,Business Support Community Services,Internal Trading Accounts,,HYDRAIR TRUCK & TRAILER PARTS LTD,,12/10/2016,62419,22.56,0,Plate holders,381500,Vehicle Mgt Parts
South Lakeland District Council,http://opendatacommunities.org/id/district-council/south-lakeland,01/11/2016,Business Support Community Services,Internal Trading Accounts,,HYDRAIR TRUCK & TRAILER PARTS LTD,,12/10/2016,62420,10.16,0,Plate holders,381500,Vehicle Mgt Parts
South Lakeland District Council,http://opendatacommunities.org/id/district-council/south-lakeland,01/11/2016,Business Support Community Services,Internal Trading Accounts,,RIBBLESDALE AUTO ELECTRICS 1992 LTD,2732686,12/10/2016,62421,13.49,0,Bulbs,381500,Vehicle Mgt Parts
South Lakeland District Council,http://opendatacommunities.org/id/district-council/south-lakeland,01/11/2016,Business Support Community Services,Internal Trading Accounts,,Harry Park Tyres Ltd,8131208,12/10/2016,62422,373.5,0,Tyres - 8,381500,Vehicle Mgt Parts
South Lakeland District Council,http://opendatacommunities.org/id/district-council/south-lakeland,01/11/2016,Business Support Community Services,Central Services,http://opendatacommunities.org/def/concept/finance/sercop/objective/102,CRAEMER UK LTD,2574815,12/10/2016,62423,1380,0,"236L Plastic Wheeled Bin, Fully",182012,Environment Waste Management Recycling
South Lakeland District Council,http://opendatacommunities.org/id/district-council/south-lakeland,01/11/2016,Business Support Community Services,Internal Trading Accounts,,MYERSCOUGH COLLEGE,,12/10/2016,62424,900,0,Sustainable Waste Management Operative:,908999,Public Bodies Not Elsewhere Classified
South Lakeland District Council,http://opendatacommunities.org/id/district-council/south-lakeland,01/11/2016,Business Support Community Services,Cultural Environmental Regulatory & Planning Services,http://opendatacommunities.org/def/concept/finance/sercop/objective/104,PIER 1 METALWORKS LTD,4291520,12/10/2016,62425,45,0,Repair recycling banks 2016/17,391200,Construction Engineering
South Lakeland District Council,http://opendatacommunities.org/id/district-council/south-lakeland,01/11/2016,Lake Wardens,Cultural Environmental Regulatory & Planning Services,http://opendatacommunities.org/def/concept/finance/sercop/objective/104,ENVIROFIRST LTD,5999123,17/10/2016,62426,58.88,0,Rental & Emptying of Re-Cycling Bins at,182012,Environment Waste Management Recycling
South Lakeland District Council,http://opendatacommunities.org/id/district-council/south-lakeland,01/11/2016,Social Enterprise Admin,Highways & Transport Services,http://opendatacommunities.org/def/concept/finance/sercop/objective/107,ACS BPS LTD,,19/10/2016,62427,5183.42,0,Rectify invoicing errors made by ACS.,111200,Catering Food & Beverages
South Lakeland District Council,http://opendatacommunities.org/id/district-council/south-lakeland,01/11/2016,Social Enterprise Admin,Cultural Environmental Regulatory & Planning Services,http://opendatacommunities.org/def/concept/finance/sercop/objective/104,AUTOPARTS (CUMBRIA) LTD,2579204,12/10/2016,62428,134.2,0,1 x 5 metre sbs twin cable,381500,Vehicle Mgt Parts
South Lakeland District Council,http://opendatacommunities.org/id/district-council/south-lakeland,01/11/2016,Environment and Housing,SLDC as Agent,,SOUTH LAKES HOUSING,IP031419,17/10/2016,62429,6250,0,costs of the Cumbria Choice Co-Ordinator,191700,Facilities Property Management
South Lakeland District Council,http://opendatacommunities.org/id/district-council/south-lakeland,01/11/2016,Social Enterprise Admin,Cultural Environmental Regulatory & Planning Services,http://opendatacommunities.org/def/concept/finance/sercop/objective/104,4-5 GRAYS INN SQUARE BARRISTERS,,17/10/2016,62431,500,0,LEGAL ADVICE RE CASTERTON SCHOOL,281300,Legal Services Legal Opinion
South Lakeland District Council,http://opendatacommunities.org/id/district-council/south-lakeland,01/11/2016,Business Support Community Services,Internal Trading Accounts,,Masterstaff Limited,2777593,12/10/2016,62432,-170.9,0,Agency staff - August 2016,261300,HR Recruitment & Assessment
South Lakeland District Council,http://opendatacommunities.org/id/district-council/south-lakeland,01/11/2016,Business Support Community Services,Internal Trading Accounts,,Masterstaff Limited,2777593,12/10/2016,62433,3380.54,0,Agency staff - August 2016,261300,HR Recruitment & Assessment
South Lakeland District Council,http://opendatacommunities.org/id/district-council/south-lakeland,01/11/2016,Environment and Housing,Housing Services,http://opendatacommunities.org/def/concept/finance/sercop/objective/108,GROWING CONCERNS LTD,,12/10/2016,62434,1163.99,0,Payments for Handy Person Scheme,391200,Construction Engineering
South Lakeland District Council,http://opendatacommunities.org/id/district-council/south-lakeland,01/11/2016,Environment and Housing,Housing,http://opendatacommunities.org/def/concept/finance/sercop/objective/108,C W COX & SONS (KENDAL) LTD,3498844,12/10/2016,62435,4338.9,0,"Kent Court, Kendal, LA9 5AN",101000,Building Bathrooms
South Lakeland District Council,http://opendatacommunities.org/id/district-council/south-lakeland,01/11/2016,Business Support Community Services,Internal Trading Accounts,,H WICKS (LINDAL) LTD,754590,12/10/2016,62436,300,0,"Gate fees, handling, transport & baling",182012,Environment Waste Management Recycling
South Lakeland District Council,http://opendatacommunities.org/id/district-council/south-lakeland,01/11/2016,Business Support Community Services,Internal Trading Accounts,,RIBBLE FUEL OILS,,12/10/2016,62437,1497.33,0,Gas oil 2016/17,381100,Vehicle Mgt Fuel
South Lakeland District Council,http://opendatacommunities.org/id/district-council/south-lakeland,01/11/2016,Environment and Housing,Housing,http://opendatacommunities.org/def/concept/finance/sercop/objective/108,DOLPHIN MOBILITY YORKS & CUMBRIA,,12/10/2016,62438,400,0,"The Meadows, Silverdale Road,",321311,Social Care Supplies Equipment
South Lakeland District Council,http://opendatacommunities.org/id/district-council/south-lakeland,01/11/2016,Business Support Community Services,Internal Trading Accounts,,FUCHS LUBRICANTS (UK) PLC,2412689,12/10/2016,62439,1834.3,0,Oil,381100,Vehicle Mgt Fuel
South Lakeland District Council,http://opendatacommunities.org/id/district-council/south-lakeland,01/11/2016,Business Support Community Services,Internal Trading Accounts,,RIBBLESDALE AUTO ELECTRICS 1992 LTD,2732686,12/10/2016,62440,63.66,0,Bulbs,381500,Vehicle Mgt Parts
South Lakeland District Council,http://opendatacommunities.org/id/district-council/south-lakeland,01/11/2016,Business Support Community Services,Internal Trading Accounts,,TAYLOR ENGINEERING & FABRICATIONS LTD,4989359,12/10/2016,62441,38.45,0,Contacts,391200,Construction Engineering
South Lakeland District Council,http://opendatacommunities.org/id/district-council/south-lakeland,01/11/2016,Cemeteries Office,Cultural Environmental Regulatory & Planning Services,http://opendatacommunities.org/def/concept/finance/sercop/objective/104,Kirkby Lonsdale District Church Council,3298067,12/10/2016,62442,1300,0,Grant 2016/2017 towards maintenance of,121000,Cemetery & Crematorium Burial & Crem
South Lakeland District Council,http://opendatacommunities.org/id/district-council/south-lakeland,01/11/2016,Cemeteries Office,Cultural Environmental Regulatory & Planning Services,http://opendatacommunities.org/def/concept/finance/sercop/objective/104,KIRKBY IRELETH PAROCHIAL CHURCH COUNCIL,,12/10/2016,62443,500,0,Grant 2016/2017 towards maintenance of,121000,Cemetery & Crematorium Burial & Crem
South Lakeland District Council,http://opendatacommunities.org/id/district-council/south-lakeland,01/11/2016,Business Support Community Services,Internal Trading Accounts,,TAYLOR ENGINEERING & FABRICATIONS LTD,4989359,12/10/2016,62444,508.85,0,Contacts,391200,Construction Engineering
South Lakeland District Council,http://opendatacommunities.org/id/district-council/south-lakeland,01/11/2016,Cemeteries Office,Cultural Environmental Regulatory & Planning Services,http://opendatacommunities.org/def/concept/finance/sercop/objective/104,Grasmere Parochial Church Council,,12/10/2016,62445,520,0,2016-2017 Grant towards maintenance of,121000,Cemetery & Crematorium Burial & Crem
South Lakeland District Council,http://opendatacommunities.org/id/district-council/south-lakeland,01/11/2016,Cemeteries Office,Cultural Environmental Regulatory & Planning Services,http://opendatacommunities.org/def/concept/finance/sercop/objective/104,Coniston St Andrew's PCC,,12/10/2016,62446,810,0,2016/2017 Grant towards maintenance of,121000,Cemetery & Crematorium Burial & Crem
South Lakeland District Council,http://opendatacommunities.org/id/district-council/south-lakeland,01/11/2016,Cemeteries Office,Cultural Environmental Regulatory & Planning Services,http://opendatacommunities.org/def/concept/finance/sercop/objective/104,Beetham Parochial Church Council,,12/10/2016,62447,510,0,Grant 2016/2017 towards maintenance of,121000,Cemetery & Crematorium Burial & Crem
South Lakeland District Council,http://opendatacommunities.org/id/district-council/south-lakeland,01/11/2016,Cemeteries Office,Cultural Environmental Regulatory & Planning Services,http://opendatacommunities.org/def/concept/finance/sercop/objective/104,ARNSIDE PARISH COUNCIL,,12/10/2016,62448,1750,0,2016/2017 Grant towards maintenance of,908000,Public Bodies Council support services
South Lakeland District Council,http://opendatacommunities.org/id/district-council/south-lakeland,01/11/2016,Cemeteries Office,Cultural Environmental Regulatory & Planning Services,http://opendatacommunities.org/def/concept/finance/sercop/objective/104,ST THOMAS P.C.C.,,12/10/2016,62449,445,0,2016-2017 Grant towards maintenance of,121000,Cemetery & Crematorium Burial & Crem
South Lakeland District Council,http://opendatacommunities.org/id/district-council/south-lakeland,01/11/2016,Business Support Community Services,Internal Trading Accounts,,ALAN MYERSCOUGH LTD,2027076,12/10/2016,62450,250,0,Repair SL081,381400,Vehicle Mgt Maintenance
South Lakeland District Council,http://opendatacommunities.org/id/district-council/south-lakeland,01/11/2016,Business Support Community Services,Housing Services,http://opendatacommunities.org/def/concept/finance/sercop/objective/108,Landlord,,12/10/2016,62451,400,0,Monthly rent ,250000,Housing
South Lakeland District Council,http://opendatacommunities.org/id/district-council/south-lakeland,01/11/2016,Business Support Community Services,Housing Services,http://opendatacommunities.org/def/concept/finance/sercop/objective/108,Landlord,,12/10/2016,62452,520,0,Monthly rent ,202000,Financial Services Rents
South Lakeland District Council,http://opendatacommunities.org/id/district-council/south-lakeland,01/11/2016,Business Support Community Services,Internal Trading Accounts,,A & W COMMERCIALS LTD,2630625,12/10/2016,62453,25.14,0,Hose,381400,Vehicle Mgt Maintenance
South Lakeland District Council,http://opendatacommunities.org/id/district-council/south-lakeland,01/11/2016,Business Support Community Services,Internal Trading Accounts,,A & W COMMERCIALS LTD,2630625,12/10/2016,62453,475,0,Hose,381400,Vehicle Mgt Maintenance
South Lakeland District Council,http://opendatacommunities.org/id/district-council/south-lakeland,01/11/2016,Business Support Community Services,Housing Services,http://opendatacommunities.org/def/concept/finance/sercop/objective/108,Landlord,,12/10/2016,62454,520,0,Monthly rent ,202000,Financial Services Rents
South Lakeland District Council,http://opendatacommunities.org/id/district-council/south-lakeland,01/11/2016,Business Support Community Services,Housing Services,http://opendatacommunities.org/def/concept/finance/sercop/objective/108,Landlord,7121028,12/10/2016,62455,400,0,Monthly rent ,202000,Financial Services Rents
South Lakeland District Council,http://opendatacommunities.org/id/district-council/south-lakeland,01/11/2016,Business Support Community Services,Housing Services,http://opendatacommunities.org/def/concept/finance/sercop/objective/108,Landlord,,12/10/2016,62456,520,0,Monthly rent ,202000,Financial Services Rents
South Lakeland District Council,http://opendatacommunities.org/id/district-council/south-lakeland,01/11/2016,Business Support Community Services,Internal Trading Accounts,,GEESINK NORBA LTD,306452,17/10/2016,62457,117.46,0,Switches,399999,Construction Not Elsewhere Classified
South Lakeland District Council,http://opendatacommunities.org/id/district-council/south-lakeland,01/11/2016,Business Support Community Services,Housing Services,http://opendatacommunities.org/def/concept/finance/sercop/objective/108,Landlord,,12/10/2016,62458,520,0,Monthly rent ,202000,Financial Services Rents
South Lakeland District Council,http://opendatacommunities.org/id/district-council/south-lakeland,01/11/2016,Business Support Community Services,Housing Services,http://opendatacommunities.org/def/concept/finance/sercop/objective/108,Landlord,,12/10/2016,62459,600,0,Monthly rent ,250000,Housing
South Lakeland District Council,http://opendatacommunities.org/id/district-council/south-lakeland,01/11/2016,Business Support Community Services,Cultural Environmental Regulatory & Planning Services,http://opendatacommunities.org/def/concept/finance/sercop/objective/104,MILNTHORPE KENNELS & CATTERY,8932302,12/10/2016,62460,2574.71,0,Stray dog kennelling fees 1 April 2016 -,181500,Environment Animal Services
South Lakeland District Council,http://opendatacommunities.org/id/district-council/south-lakeland,01/11/2016,Business Support Community Services,Internal Trading Accounts,,FAUN ZOELLER (UK) LTD,751804,12/10/2016,62461,313.13,0,Repair VU11 HRE,381400,Vehicle Mgt Maintenance
South Lakeland District Council,http://opendatacommunities.org/id/district-council/south-lakeland,01/11/2016,Legal Services,Central Services,http://opendatacommunities.org/def/concept/finance/sercop/objective/102,Legal Counsel Ltd,10147194,12/10/2016,62462,1560,0,Employee W. Mitchell,281200,Legal Services General Support
South Lakeland District Council,http://opendatacommunities.org/id/district-council/south-lakeland,01/11/2016,Legal Services,Central Services,http://opendatacommunities.org/def/concept/finance/sercop/objective/102,Eventus Legal Recruitment,,12/10/2016,62463,253.5,0,Commission Fees for W.Mitchell from,261300,HR Recruitment & Assessment
South Lakeland District Council,http://opendatacommunities.org/id/district-council/south-lakeland,01/11/2016,Development Implementation,Cultural Environmental Regulatory & Planning Services,http://opendatacommunities.org/def/concept/finance/sercop/objective/104,LAKELAND ARTS,8162578,12/10/2016,62464,50,0,Participation in the Kendal Courtesy,201700,Financial Services Grants
South Lakeland District Council,http://opendatacommunities.org/id/district-council/south-lakeland,01/11/2016,Business Support Community Services,Internal Trading Accounts,,C T HAYTON LTD,1212766,12/10/2016,62465,14.82,0,Coupling,391200,Construction Engineering
South Lakeland District Council,http://opendatacommunities.org/id/district-council/south-lakeland,01/11/2016,Policy & Partnerships,Cultural Environmental Regulatory & Planning Services,http://opendatacommunities.org/def/concept/finance/sercop/objective/104,LOWER ALLITHWAITE PARISH COUNCIL,,12/10/2016,62466,30000,0,50% of 2016-2017 Locally Important,908000,Public Bodies Council support services
South Lakeland District Council,http://opendatacommunities.org/id/district-council/south-lakeland,01/11/2016,Social Enterprise Admin,Central Services,http://opendatacommunities.org/def/concept/finance/sercop/objective/102,LAKE DISTRICT NATIONAL PARK AUTHORITY,,17/10/2016,62467,3255,0,LAND CHARGE SEARCH ENQUIRIES LDNPA,201700,Financial Services Grants
South Lakeland District Council,http://opendatacommunities.org/id/district-council/south-lakeland,01/11/2016,Democratic Services,Central Services,http://opendatacommunities.org/def/concept/finance/sercop/objective/102,RIBA BOOKSHOP,,12/10/2016,62468,42.93,0,JCT Measured Term Contract 2011,171114,Education Literature
South Lakeland District Council,http://opendatacommunities.org/id/district-council/south-lakeland,01/11/2016,Development Implementation,Central Services,http://opendatacommunities.org/def/concept/finance/sercop/objective/102,CRUDEN PROPERTY SERVICES LTD,3851237,17/10/2016,62470,5176.57,0,"Conversion of Brogden Street, Ulverston",391111,Construction Buildings Repair & Mtce
South Lakeland District Council,http://opendatacommunities.org/id/district-council/south-lakeland,01/11/2016,Development Implementation,SLDC as Agent,,DHE ASSOCIATES,,12/10/2016,62471,1250,0,Admin work for Japan Forum website,202100,Financial Services Subscriptions
South Lakeland District Council,http://opendatacommunities.org/id/district-council/south-lakeland,01/11/2016,Development Implementation,Cultural Environmental Regulatory & Planning Services,http://opendatacommunities.org/def/concept/finance/sercop/objective/104,Mickledore Ltd,6651481,12/10/2016,62472,500,0,Professional fees for procurement brief,151000,Consultancy Business
South Lakeland District Council,http://opendatacommunities.org/id/district-council/south-lakeland,01/11/2016,Social Enterprise Admin,Highways & Transport Services,http://opendatacommunities.org/def/concept/finance/sercop/objective/107,CREDIT CALL LTD (NCR),,01/10/2016,62473,922.63,0,Credit Call Commission 2016/17,209999,Financial Services Not Elsewhere Classif
South Lakeland District Council,http://opendatacommunities.org/id/district-council/south-lakeland,01/11/2016,Business Support Community Services,Cultural Environmental Regulatory & Planning Services,http://opendatacommunities.org/def/concept/finance/sercop/objective/104,INTELLIGENT DATA SYSTEMS (UK) LTD,5148878,12/10/2016,62474,51.75,0,IDS checks for Taxi Drivers,271510,ICT Application Service Provision
South Lakeland District Council,http://opendatacommunities.org/id/district-council/south-lakeland,01/11/2016,Financial Services,Central Services,http://opendatacommunities.org/def/concept/finance/sercop/objective/102,KING & SHAXSON LTD,869780,12/10/2016,62475,151.74,0,Custodian Fees April to March 16/17,209999,Financial Services Not Elsewhere Classif
South Lakeland District Council,http://opendatacommunities.org/id/district-council/south-lakeland,01/11/2016,Kendal Town Hall,Cultural Environmental Regulatory & Planning Services,http://opendatacommunities.org/def/concept/finance/sercop/objective/104,LDA Cleaning Services Ltd,8917986,12/10/2016,62476,175,0,Cleaning Ferry Nab public toilets until,131310,Cleaning & Janitorial Cleaning Service
South Lakeland District Council,http://opendatacommunities.org/id/district-council/south-lakeland,01/11/2016,Kendal Town Hall,Cultural Environmental Regulatory & Planning Services,http://opendatacommunities.org/def/concept/finance/sercop/objective/104,STEVEN BARBER PHOTOGRAPHY LTD,6058535,12/10/2016,62477,300,0,Photography for Tour of Britain 2016,191100,Facilities Design & Photography
South Lakeland District Council,http://opendatacommunities.org/id/district-council/south-lakeland,01/11/2016,Democratic and Member Services,Cultural Environmental Regulatory & Planning Services,http://opendatacommunities.org/def/concept/finance/sercop/objective/104,ROTARY CLUB OF ULVERSTON,,17/10/2016,62482,100,0,Daffodil Planting,201700,Financial Services Grants
South Lakeland District Council,http://opendatacommunities.org/id/district-council/south-lakeland,01/11/2016,ICT Group,Central Services,http://opendatacommunities.org/def/concept/finance/sercop/objective/102,Insight Direct (Uk) Ltd,2579852,17/10/2016,62484,81.3,0,Insight Part Number: 0005723393,271200,ICT Hardware
South Lakeland District Council,http://opendatacommunities.org/id/district-council/south-lakeland,01/11/2016,Policy & Partnerships,Cultural Environmental Regulatory & Planning Services,http://opendatacommunities.org/def/concept/finance/sercop/objective/104,Ulverston Methodist Church,,19/10/2016,62485,15,0,Low Furness and Ulverston LAP room hire.,192110,Facilities Room Hire
South Lakeland District Council,http://opendatacommunities.org/id/district-council/south-lakeland,01/11/2016,Business Support Community Services,Cultural Environmental Regulatory & Planning Services,http://opendatacommunities.org/def/concept/finance/sercop/objective/104,Klipspringer Ltd,7676073,17/10/2016,62486,90,0,Recalibration & cert of Comark Reference,119999,Catering Not Elsewhere Classified
South Lakeland District Council,http://opendatacommunities.org/id/district-council/south-lakeland,01/11/2016,Revenues and Benefits,Central Services,http://opendatacommunities.org/def/concept/finance/sercop/objective/102,BADENOCH & CLARK,1356186,17/10/2016,62487,266.7,0,revs and Bens  (April & May 2016),261300,HR Recruitment & Assessment
South Lakeland District Council,http://opendatacommunities.org/id/district-council/south-lakeland,01/11/2016,Democratic and Member Services,Central Services,http://opendatacommunities.org/def/concept/finance/sercop/objective/102,ROYAL TOWN PLANNING INSTITUTE,,17/10/2016,62488,25,0,planning conference booking for Cllr,908999,Public Bodies Not Elsewhere Classified
South Lakeland District Council,http://opendatacommunities.org/id/district-council/south-lakeland,01/11/2016,Cemeteries Office,Cultural Environmental Regulatory & Planning Services,http://opendatacommunities.org/def/concept/finance/sercop/objective/104,CUMBRIA WASTE RECYCLING LTD,3162439,17/10/2016,62489,103,0,SLDC Cemetery waste bin emptying from,182012,Environment Waste Management Recycling
South Lakeland District Council,http://opendatacommunities.org/id/district-council/south-lakeland,01/11/2016,Social Enterprise Admin,Central Services,http://opendatacommunities.org/def/concept/finance/sercop/objective/102,CUMBRIA WASTE RECYCLING LTD,3162439,17/10/2016,62490,39.75,0,Langstone House 360 ltr wheelie bin,182012,Environment Waste Management Recycling
South Lakeland District Council,http://opendatacommunities.org/id/district-council/south-lakeland,01/11/2016,Cemeteries Office,Cultural Environmental Regulatory & Planning Services,http://opendatacommunities.org/def/concept/finance/sercop/objective/104,CUMBRIA WASTE RECYCLING LTD,3162439,17/10/2016,62491,51.65,0,SLDC Cemetery waste bin emptying from,182012,Environment Waste Management Recycling
South Lakeland District Council,http://opendatacommunities.org/id/district-council/south-lakeland,01/11/2016,Cemeteries Office,Cultural Environmental Regulatory & Planning Services,http://opendatacommunities.org/def/concept/finance/sercop/objective/104,CUMBRIA WASTE RECYCLING LTD,3162439,17/10/2016,62492,61.25,0,SLDC Cemetery waste bin emptying from,182012,Environment Waste Management Recycling
South Lakeland District Council,http://opendatacommunities.org/id/district-council/south-lakeland,01/11/2016,Cemeteries Office,Cultural Environmental Regulatory & Planning Services,http://opendatacommunities.org/def/concept/finance/sercop/objective/104,CUMBRIA WASTE RECYCLING LTD,3162439,17/10/2016,62493,79.5,0,SLDC Cemetery waste bin emptying from,182012,Environment Waste Management Recycling
South Lakeland District Council,http://opendatacommunities.org/id/district-council/south-lakeland,01/11/2016,Lake Wardens,Cultural Environmental Regulatory & Planning Services,http://opendatacommunities.org/def/concept/finance/sercop/objective/104,CUMBRIA WASTE RECYCLING LTD,3162439,17/10/2016,62494,259.72,0,Rental & Emptying of Refuse Wheelie,182012,Environment Waste Management Recycling
South Lakeland District Council,http://opendatacommunities.org/id/district-council/south-lakeland,01/11/2016,Cemeteries Office,Cultural Environmental Regulatory & Planning Services,http://opendatacommunities.org/def/concept/finance/sercop/objective/104,CUMBRIA WASTE RECYCLING LTD,3162439,17/10/2016,62495,83.04,0,SLDC Cemetery waste bin emptying from,182012,Environment Waste Management Recycling
South Lakeland District Council,http://opendatacommunities.org/id/district-council/south-lakeland,01/11/2016,Social Enterprise Admin,Central Services,http://opendatacommunities.org/def/concept/finance/sercop/objective/102,CUMBRIA WASTE RECYCLING LTD,3162439,17/10/2016,62496,244.4,0,SLH Wheelie bin and skip emptying,182012,Environment Waste Management Recycling
South Lakeland District Council,http://opendatacommunities.org/id/district-council/south-lakeland,01/11/2016,Kendal Town Hall,Cultural Environmental Regulatory & Planning Services,http://opendatacommunities.org/def/concept/finance/sercop/objective/104,CUMBRIA WASTE RECYCLING LTD,3162439,19/10/2016,62497,162.5,0,Weekly collection of bins for KTH,182012,Environment Waste Management Recycling
South Lakeland District Council,http://opendatacommunities.org/id/district-council/south-lakeland,01/11/2016,Social Enterprise Admin,Central Services,http://opendatacommunities.org/def/concept/finance/sercop/objective/102,CUMBRIA WASTE RECYCLING LTD,3162439,17/10/2016,62498,58.9,0,"Ulverston Town Hall, Queen Street 1",182012,Environment Waste Management Recycling
South Lakeland District Council,http://opendatacommunities.org/id/district-council/south-lakeland,01/11/2016,Business Support Community Services,Internal Trading Accounts,,CUMBRIA WASTE RECYCLING LTD,3162439,26/10/2016,62499,336,0,Skip emptying at Ecclerigg & Ulverston,182012,Environment Waste Management Recycling
South Lakeland District Council,http://opendatacommunities.org/id/district-council/south-lakeland,01/11/2016,Business Support Community Services,Internal Trading Accounts,,CUMBRIA WASTE RECYCLING LTD,3162439,26/10/2016,62500,2081.54,0,Skip emptying at Ecclerigg & Ulverston,182012,Environment Waste Management Recycling
South Lakeland District Council,http://opendatacommunities.org/id/district-council/south-lakeland,01/11/2016,Cemeteries Office,Cultural Environmental Regulatory & Planning Services,http://opendatacommunities.org/def/concept/finance/sercop/objective/104,CUMBRIA WASTE RECYCLING LTD,3162439,17/10/2016,62501,34.5,0,SLDC Cemetery waste bin emptying from,182012,Environment Waste Management Recycling
South Lakeland District Council,http://opendatacommunities.org/id/district-council/south-lakeland,01/11/2016,Cemeteries Office,Cultural Environmental Regulatory & Planning Services,http://opendatacommunities.org/def/concept/finance/sercop/objective/104,CUMBRIA WASTE RECYCLING LTD,3162439,17/10/2016,62502,39.75,0,SLDC Cemetery waste bin emptying from,182012,Environment Waste Management Recycling
South Lakeland District Council,http://opendatacommunities.org/id/district-council/south-lakeland,01/11/2016,Social Enterprise Admin,Highways & Transport Services,http://opendatacommunities.org/def/concept/finance/sercop/objective/107,CUMBRIA WASTE RECYCLING LTD,3162439,17/10/2016,62503,59.77,0,Westmorland Multi-storey 660Ltr bin,182012,Environment Waste Management Recycling
South Lakeland District Council,http://opendatacommunities.org/id/district-council/south-lakeland,01/11/2016,Lake Wardens,Cultural Environmental Regulatory & Planning Services,http://opendatacommunities.org/def/concept/finance/sercop/objective/104,CUMBRIA WASTE RECYCLING LTD,3162439,24/10/2016,62504,140.68,0,Rental & Emptying of Refuse Wheelie,182012,Environment Waste Management Recycling
South Lakeland District Council,http://opendatacommunities.org/id/district-council/south-lakeland,01/11/2016,Development Implementation,Cultural Environmental Regulatory & Planning Services,http://opendatacommunities.org/def/concept/finance/sercop/objective/104,CUMBRIA WASTE RECYCLING LTD,3162439,17/10/2016,62505,106.9,0,"Waste Collection @ 124 Highgate, Kendal",182012,Environment Waste Management Recycling
South Lakeland District Council,http://opendatacommunities.org/id/district-council/south-lakeland,01/11/2016,ICT Group,Central Services,http://opendatacommunities.org/def/concept/finance/sercop/objective/102,SWITCHSHOP LTD,3771032,17/10/2016,62506,1068.43,0,JG936A HP 5130-24G-PoE+-4SFP+EI switch,270000,Information Communications Technology
South Lakeland District Council,http://opendatacommunities.org/id/district-council/south-lakeland,01/11/2016,Human Resources,Central Services,http://opendatacommunities.org/def/concept/finance/sercop/objective/102,Lattitude Productions Ltd,5719509,17/10/2016,62507,197.5,0,"Training Film ""It Will Never Happen To",220000,Health and Safety
South Lakeland District Council,http://opendatacommunities.org/id/district-council/south-lakeland,01/11/2016,Democratic and Member Services,Cultural Environmental Regulatory & Planning Services,http://opendatacommunities.org/def/concept/finance/sercop/objective/104,RIGHT 2 WORK,,17/10/2016,62508,540,0,The funding will be used toward a,321010,Social Care Adult Advice & Counselling
South Lakeland District Council,http://opendatacommunities.org/id/district-council/south-lakeland,01/11/2016,Development Strategy,Cultural Environmental Regulatory & Planning Services,http://opendatacommunities.org/def/concept/finance/sercop/objective/104,Lucy Gibson Consulting,,17/10/2016,62509,1648,0,Badger survey of Allithwaite Road site.,181500,Environment Animal Services
South Lakeland District Council,http://opendatacommunities.org/id/district-council/south-lakeland,01/11/2016,Business Support Community Services,Housing Services,http://opendatacommunities.org/def/concept/finance/sercop/objective/108,Vigilant Security Services UK Ltd,5914271,19/10/2016,62510,3300,0,Payment for security guard at TVF,192213,Facilities Security Manned Guarding
South Lakeland District Council,http://opendatacommunities.org/id/district-council/south-lakeland,01/11/2016,Financial Services,Central Services,http://opendatacommunities.org/def/concept/finance/sercop/objective/102,RIVERBANK HOSPITALITY CATERING,,17/10/2016,62511,27.65,0,7 @3.95 Simple selection CWAG meeting,111000,Catering Banquet & Catering
South Lakeland District Council,http://opendatacommunities.org/id/district-council/south-lakeland,01/11/2016,Environment and Housing,SLDC as Agent,,ABRITAS LTD,4101079,17/10/2016,62512,84.24,0,Costs with Disc Charge 2016-17 - Cumbria,151200,Consultancy Efficiency
South Lakeland District Council,http://opendatacommunities.org/id/district-council/south-lakeland,01/11/2016,Kendal Town Hall,Highways & Transport Services,http://opendatacommunities.org/def/concept/finance/sercop/objective/107,ADECCO UK LIMITED,593232,17/10/2016,62513,275.52,0,Agency cover for WMMSCP,261400,HR Temporary & Agency Staff
South Lakeland District Council,http://opendatacommunities.org/id/district-council/south-lakeland,01/11/2016,Lake Wardens,Cultural Environmental Regulatory & Planning Services,http://opendatacommunities.org/def/concept/finance/sercop/objective/104,SMS (SALCOMBE) LTD,4558962,24/10/2016,62514,93.56,0,4 x Haweshole Skin Fittings,381500,Vehicle Mgt Parts
South Lakeland District Council,http://opendatacommunities.org/id/district-council/south-lakeland,01/11/2016,Business Support Community Services,Internal Trading Accounts,,EK MOTOR FACTORS LTD,838524,31/10/2016,62515,6.65,0,Blade,381400,Vehicle Mgt Maintenance
South Lakeland District Council,http://opendatacommunities.org/id/district-council/south-lakeland,01/11/2016,Business Support Community Services,Internal Trading Accounts,,EK MOTOR FACTORS LTD,838524,17/10/2016,62516,44.53,0,Blade,381400,Vehicle Mgt Maintenance
South Lakeland District Council,http://opendatacommunities.org/id/district-council/south-lakeland,01/11/2016,Business Support Community Services,Internal Trading Accounts,,EK MOTOR FACTORS LTD,838524,17/10/2016,62517,29.1,0,Blade,381400,Vehicle Mgt Maintenance
South Lakeland District Council,http://opendatacommunities.org/id/district-council/south-lakeland,01/11/2016,Business Support Community Services,Internal Trading Accounts,,COMPASS COMPONENTS,,17/10/2016,62518,256.69,0,Consumables 01/04/16 - 31/03/17,101400,Building General Materials
South Lakeland District Council,http://opendatacommunities.org/id/district-council/south-lakeland,01/11/2016,Business Support Community Services,Internal Trading Accounts,,ARCO LIMITED,133804,17/10/2016,62519,95.93,0,Cleaning materials,141100,Clothing Protective
South Lakeland District Council,http://opendatacommunities.org/id/district-council/south-lakeland,01/11/2016,Business Support Community Services,Transport Planning Policy,http://opendatacommunities.org/def/concept/finance/sercop/objective/107,ARCO LIMITED,133804,17/10/2016,62520,78.11,0,Cleaning materials,141100,Clothing Protective
South Lakeland District Council,http://opendatacommunities.org/id/district-council/south-lakeland,01/11/2016,Business Support Community Services,Internal Trading Accounts,,LANCASTER TRAINING SERVICES LTD,1447612,17/10/2016,62521,100,0,Training 2016/17 (SWK),261500,HR Training & Conferences
South Lakeland District Council,http://opendatacommunities.org/id/district-council/south-lakeland,01/11/2016,Business Support Community Services,Internal Trading Accounts,,LANCASTER TRAINING SERVICES LTD,1447612,17/10/2016,62522,155,0,Training 2016/17 (SWK),261500,HR Training & Conferences
South Lakeland District Council,http://opendatacommunities.org/id/district-council/south-lakeland,01/11/2016,Business Support Community Services,Internal Trading Accounts,,H WICKS (LINDAL) LTD,754590,17/10/2016,62523,2144.56,0,"Gate fees, handling, transport & baling",182012,Environment Waste Management Recycling
South Lakeland District Council,http://opendatacommunities.org/id/district-council/south-lakeland,01/11/2016,Business Support Community Services,Internal Trading Accounts,,M G D LTD,,17/10/2016,62524,35,0,MOTs 01/04/16 - 31/03/17,381400,Vehicle Mgt Maintenance
South Lakeland District Council,http://opendatacommunities.org/id/district-council/south-lakeland,01/11/2016,Business Support Community Services,Internal Trading Accounts,,M G D LTD,,17/10/2016,62525,35,0,MOTs 01/04/16 - 31/03/17,381400,Vehicle Mgt Maintenance
South Lakeland District Council,http://opendatacommunities.org/id/district-council/south-lakeland,01/11/2016,Business Support Community Services,Cultural Environmental Regulatory & Planning Services,http://opendatacommunities.org/def/concept/finance/sercop/objective/104,LAKELAND SUPPLIES,,17/10/2016,62526,34.25,0,Parts,101610,Building Hand Tools
South Lakeland District Council,http://opendatacommunities.org/id/district-council/south-lakeland,01/11/2016,Business Support Community Services,Internal Trading Accounts,,Harry Park Tyres Ltd,8131208,17/10/2016,62527,2700,0,Tyres - 7,381500,Vehicle Mgt Parts
South Lakeland District Council,http://opendatacommunities.org/id/district-council/south-lakeland,01/11/2016,Business Support Community Services,Internal Trading Accounts,,DENNIS EAGLE LTD,3794455,17/10/2016,62528,49.62,0,Buckles,381300,Vehicle Mgt Industrial
South Lakeland District Council,http://opendatacommunities.org/id/district-council/south-lakeland,01/11/2016,Business Support Community Services,Internal Trading Accounts,,DENNIS EAGLE LTD,3794455,17/10/2016,62529,120.54,0,Buckles,381300,Vehicle Mgt Industrial
South Lakeland District Council,http://opendatacommunities.org/id/district-council/south-lakeland,01/11/2016,Business Support Community Services,Internal Trading Accounts,,DENNIS EAGLE LTD,3794455,17/10/2016,62530,100.72,0,Buckles,381300,Vehicle Mgt Industrial
South Lakeland District Council,http://opendatacommunities.org/id/district-council/south-lakeland,01/11/2016,Business Support Community Services,Internal Trading Accounts,,TEAL PATENTS LTD,3212208,17/10/2016,62531,233.1,0,Handwash unit,111100,Catering Equipment & Utensils
South Lakeland District Council,http://opendatacommunities.org/id/district-council/south-lakeland,01/11/2016,Business Support Community Services,Internal Trading Accounts,,EK MOTOR FACTORS LTD,838524,17/10/2016,62532,89.55,0,Blade,381400,Vehicle Mgt Maintenance
South Lakeland District Council,http://opendatacommunities.org/id/district-council/south-lakeland,01/11/2016,Business Support Community Services,Internal Trading Accounts,,CUMBRIA TRUCK CENTRE LTD,4298488,17/10/2016,62533,33.76,0,Nuts,381300,Vehicle Mgt Industrial
South Lakeland District Council,http://opendatacommunities.org/id/district-council/south-lakeland,01/11/2016,Business Support Community Services,Internal Trading Accounts,,EK MOTOR FACTORS LTD,838524,17/10/2016,62534,20.37,0,Blade,381400,Vehicle Mgt Maintenance
South Lakeland District Council,http://opendatacommunities.org/id/district-council/south-lakeland,01/11/2016,Business Support Community Services,Internal Trading Accounts,,ARCO LIMITED,133804,17/10/2016,62535,15.52,0,Cleaning materials,141100,Clothing Protective
South Lakeland District Council,http://opendatacommunities.org/id/district-council/south-lakeland,01/11/2016,Business Support Community Services,Internal Trading Accounts,,J R RICHARDSON LTD,2225792,17/10/2016,62536,88.21,0,Vehicle washing consumables,381500,Vehicle Mgt Parts
South Lakeland District Council,http://opendatacommunities.org/id/district-council/south-lakeland,01/11/2016,Business Support Community Services,Internal Trading Accounts,,ARCO LIMITED,133804,17/10/2016,62537,6.44,0,Cleaning materials,141100,Clothing Protective
South Lakeland District Council,http://opendatacommunities.org/id/district-council/south-lakeland,01/11/2016,Business Support Community Services,Transport Planning Policy,http://opendatacommunities.org/def/concept/finance/sercop/objective/107,ARCO LIMITED,133804,17/10/2016,62538,30.26,0,Cleaning materials,141100,Clothing Protective
South Lakeland District Council,http://opendatacommunities.org/id/district-council/south-lakeland,01/11/2016,Business Support Community Services,Internal Trading Accounts,,EK MOTOR FACTORS LTD,838524,31/10/2016,62539,525,0,Blade,381400,Vehicle Mgt Maintenance
South Lakeland District Council,http://opendatacommunities.org/id/district-council/south-lakeland,01/11/2016,Business Support Community Services,Internal Trading Accounts,,VOLVO GROUP UK LTD,2190944,17/10/2016,62540,90,0,Starter,381000,Vehicle Mgt Commercial
South Lakeland District Council,http://opendatacommunities.org/id/district-council/south-lakeland,01/11/2016,Business Support Community Services,Internal Trading Accounts,,EK MOTOR FACTORS LTD,838524,17/10/2016,62541,39.93,0,Blade,381400,Vehicle Mgt Maintenance
South Lakeland District Council,http://opendatacommunities.org/id/district-council/south-lakeland,01/11/2016,Environment and Housing,Housing,http://opendatacommunities.org/def/concept/finance/sercop/objective/108,ENVIRONMENT & HOUSING GRANTS,,17/10/2016,62550,2820,0,Disabled Adaptations at 16 Greenbanks,201700,Financial Services Grants
South Lakeland District Council,http://opendatacommunities.org/id/district-council/south-lakeland,01/11/2016,Environment and Housing,Housing,http://opendatacommunities.org/def/concept/finance/sercop/objective/108,ENVIRONMENT & HOUSING GRANTS,,17/10/2016,62551,1800,0,Disabled Adaptations at 16 Greenbanks,201700,Financial Services Grants
South Lakeland District Council,http://opendatacommunities.org/id/district-council/south-lakeland,01/11/2016,Human Resources,Non-Service Payments,,BUSY BEES BENEFITS LTD,6758298,17/10/2016,62552,563,0,child care vouchers,202100,Financial Services Subscriptions
South Lakeland District Council,http://opendatacommunities.org/id/district-council/south-lakeland,01/11/2016,Human Resources,Central Services,http://opendatacommunities.org/def/concept/finance/sercop/objective/102,BUSY BEES BENEFITS LTD,6758298,17/10/2016,62553,19.7,0,child care vouchers,202100,Financial Services Subscriptions
South Lakeland District Council,http://opendatacommunities.org/id/district-council/south-lakeland,01/11/2016,Financial Services,Non-Service Payments,,COMPUTERSHARE VOUCHER SERVICES LTD,4968447,17/10/2016,62554,1000,0,child care vouchers,202100,Financial Services Subscriptions
South Lakeland District Council,http://opendatacommunities.org/id/district-council/south-lakeland,01/11/2016,Financial Services,Central Services,http://opendatacommunities.org/def/concept/finance/sercop/objective/102,The Salary Exchange Limited,6784632,17/10/2016,62555,41.63,0,Service charge for Computershare,260000,HR
South Lakeland District Council,http://opendatacommunities.org/id/district-council/south-lakeland,01/11/2016,Human Resources,Cultural Environmental Regulatory & Planning Services,http://opendatacommunities.org/def/concept/finance/sercop/objective/104,MARCHESI CENTRE,,17/10/2016,62556,20,0,Hire of Marchesi Centre for Planning,321000,Social Care Adult
South Lakeland District Council,http://opendatacommunities.org/id/district-council/south-lakeland,01/11/2016,Social Enterprise Admin,Highways & Transport Services,http://opendatacommunities.org/def/concept/finance/sercop/objective/107,G4S SECURE SOLUTIONS (UK) LTD,1046019,17/10/2016,62557,874.84,0,Patrol Services for South Lakeland House,192213,Facilities Security Manned Guarding
South Lakeland District Council,http://opendatacommunities.org/id/district-council/south-lakeland,01/11/2016,Social Enterprise Admin,Cultural Environmental Regulatory & Planning Services,http://opendatacommunities.org/def/concept/finance/sercop/objective/104,NEWSQUEST MEDIA GROUP LTD,3102566,17/10/2016,62558,95,0,PUBLIC NOTICES FOR PLANNING 1 APRIL - 31,191000,Facilities Advertising
South Lakeland District Council,http://opendatacommunities.org/id/district-council/south-lakeland,01/11/2016,Customer Services,Cultural Environmental Regulatory & Planning Services,http://opendatacommunities.org/def/concept/finance/sercop/objective/104,RIGHT 2 WORK,,17/10/2016,62559,3479,0,for removal of bulky waste,321010,Social Care Adult Advice & Counselling
South Lakeland District Council,http://opendatacommunities.org/id/district-council/south-lakeland,01/11/2016,Revenues and Benefits,Central Services,http://opendatacommunities.org/def/concept/finance/sercop/objective/102,STRICKLANDGATE HOUSE,2856983,17/10/2016,62560,403.75,0,Capita Demonstration 5.10.16,201700,Financial Services Grants
South Lakeland District Council,http://opendatacommunities.org/id/district-council/south-lakeland,01/11/2016,Kendal Town Hall,Highways & Transport Services,http://opendatacommunities.org/def/concept/finance/sercop/objective/107,ACS BPS LTD,,17/10/2016,62561,343.5,0,4 packs of 20 cards 099-0304 Magnetic,111200,Catering Food & Beverages
South Lakeland District Council,http://opendatacommunities.org/id/district-council/south-lakeland,01/11/2016,Development Management,Cultural Environmental Regulatory & Planning Services,http://opendatacommunities.org/def/concept/finance/sercop/objective/104,SALFORD CITY COUNCIL,,17/10/2016,62562,161.31,0,Checking of Structural Information in,908000,Public Bodies Council support services
South Lakeland District Council,http://opendatacommunities.org/id/district-council/south-lakeland,01/11/2016,Business Support Community Services,Cultural Environmental Regulatory & Planning Services,http://opendatacommunities.org/def/concept/finance/sercop/objective/104,Buckingham Futures,8329499,17/10/2016,62563,336,0,Payment of Cat D Inspections completed,182030,Environment Water Assessment & Treatment
South Lakeland District Council,http://opendatacommunities.org/id/district-council/south-lakeland,01/11/2016,Business Support Community Services,Cultural Environmental Regulatory & Planning Services,http://opendatacommunities.org/def/concept/finance/sercop/objective/104,Buckingham Futures,8329499,17/10/2016,62564,1151.05,0,Supply 1 Full Time Private Water Officer,182030,Environment Water Assessment & Treatment
South Lakeland District Council,http://opendatacommunities.org/id/district-council/south-lakeland,01/11/2016,Social Enterprise Admin,Cultural Environmental Regulatory & Planning Services,http://opendatacommunities.org/def/concept/finance/sercop/objective/104,WINDERMERE TOWN COUNCIL,,17/10/2016,62565,680.13,0,For contribution from SLDC for water use,908000,Public Bodies Council support services
South Lakeland District Council,http://opendatacommunities.org/id/district-council/south-lakeland,01/11/2016,Social Enterprise Admin,Cultural Environmental Regulatory & Planning Services,http://opendatacommunities.org/def/concept/finance/sercop/objective/104,CONTINENTAL LANDSCAPES LTD,2108452,17/10/2016,62566,3647.15,0,Gravedigging  for April 2016 -March 2017,391310,Construction Open Spaces Construction
South Lakeland District Council,http://opendatacommunities.org/id/district-council/south-lakeland,01/11/2016,Social Enterprise Admin,Highways & Transport Services,http://opendatacommunities.org/def/concept/finance/sercop/objective/107,CONTINENTAL LANDSCAPES LTD,2108452,17/10/2016,62567,12.15,0,Parks Routine maintenance,391310,Construction Open Spaces Construction
South Lakeland District Council,http://opendatacommunities.org/id/district-council/south-lakeland,01/11/2016,Social Enterprise Admin,Highways & Transport Services,http://opendatacommunities.org/def/concept/finance/sercop/objective/107,CONTINENTAL LANDSCAPES LTD,2108452,17/10/2016,62567,12.15,0,Parks Routine maintenance,391310,Construction Open Spaces Construction
South Lakeland District Council,http://opendatacommunities.org/id/district-council/south-lakeland,01/11/2016,Social Enterprise Admin,Highways & Transport Services,http://opendatacommunities.org/def/concept/finance/sercop/objective/107,CONTINENTAL LANDSCAPES LTD,2108452,17/10/2016,62567,1.22,0,Parks Routine maintenance,391310,Construction Open Spaces Construction
South Lakeland District Council,http://opendatacommunities.org/id/district-council/south-lakeland,01/11/2016,Social Enterprise Admin,Highways & Transport Services,http://opendatacommunities.org/def/concept/finance/sercop/objective/107,CONTINENTAL LANDSCAPES LTD,2108452,17/10/2016,62567,12.15,0,Parks Routine maintenance,391310,Construction Open Spaces Construction
South Lakeland District Council,http://opendatacommunities.org/id/district-council/south-lakeland,01/11/2016,Social Enterprise Admin,Highways & Transport Services,http://opendatacommunities.org/def/concept/finance/sercop/objective/107,CONTINENTAL LANDSCAPES LTD,2108452,17/10/2016,62567,12.15,0,Parks Routine maintenance,391310,Construction Open Spaces Construction
South Lakeland District Council,http://opendatacommunities.org/id/district-council/south-lakeland,01/11/2016,Social Enterprise Admin,Highways & Transport Services,http://opendatacommunities.org/def/concept/finance/sercop/objective/107,CONTINENTAL LANDSCAPES LTD,2108452,17/10/2016,62567,12.15,0,Parks Routine maintenance,391310,Construction Open Spaces Construction
South Lakeland District Council,http://opendatacommunities.org/id/district-council/south-lakeland,01/11/2016,Social Enterprise Admin,Highways & Transport Services,http://opendatacommunities.org/def/concept/finance/sercop/objective/107,CONTINENTAL LANDSCAPES LTD,2108452,17/10/2016,62567,36.46,0,Parks Routine maintenance,391310,Construction Open Spaces Construction
South Lakeland District Council,http://opendatacommunities.org/id/district-council/south-lakeland,01/11/2016,Social Enterprise Admin,Highways & Transport Services,http://opendatacommunities.org/def/concept/finance/sercop/objective/107,CONTINENTAL LANDSCAPES LTD,2108452,17/10/2016,62567,243.05,0,Parks Routine maintenance,391310,Construction Open Spaces Construction
South Lakeland District Council,http://opendatacommunities.org/id/district-council/south-lakeland,01/11/2016,Social Enterprise Admin,Highways & Transport Services,http://opendatacommunities.org/def/concept/finance/sercop/objective/107,CONTINENTAL LANDSCAPES LTD,2108452,17/10/2016,62567,151.91,0,Parks Routine maintenance,391310,Construction Open Spaces Construction
South Lakeland District Council,http://opendatacommunities.org/id/district-council/south-lakeland,01/11/2016,Social Enterprise Admin,Highways & Transport Services,http://opendatacommunities.org/def/concept/finance/sercop/objective/107,CONTINENTAL LANDSCAPES LTD,2108452,17/10/2016,62567,6.08,0,Parks Routine maintenance,391310,Construction Open Spaces Construction
South Lakeland District Council,http://opendatacommunities.org/id/district-council/south-lakeland,01/11/2016,Social Enterprise Admin,Highways & Transport Services,http://opendatacommunities.org/def/concept/finance/sercop/objective/107,CONTINENTAL LANDSCAPES LTD,2108452,17/10/2016,62567,60.76,0,Parks Routine maintenance,391310,Construction Open Spaces Construction
South Lakeland District Council,http://opendatacommunities.org/id/district-council/south-lakeland,01/11/2016,Social Enterprise Admin,Highways & Transport Services,http://opendatacommunities.org/def/concept/finance/sercop/objective/107,CONTINENTAL LANDSCAPES LTD,2108452,17/10/2016,62567,60.76,0,Parks Routine maintenance,391310,Construction Open Spaces Construction
South Lakeland District Council,http://opendatacommunities.org/id/district-council/south-lakeland,01/11/2016,Social Enterprise Admin,Highways & Transport Services,http://opendatacommunities.org/def/concept/finance/sercop/objective/107,CONTINENTAL LANDSCAPES LTD,2108452,17/10/2016,62567,121.53,0,Parks Routine maintenance,391310,Construction Open Spaces Construction
South Lakeland District Council,http://opendatacommunities.org/id/district-council/south-lakeland,01/11/2016,Social Enterprise Admin,Highways & Transport Services,http://opendatacommunities.org/def/concept/finance/sercop/objective/107,CONTINENTAL LANDSCAPES LTD,2108452,17/10/2016,62567,48.61,0,Parks Routine maintenance,391310,Construction Open Spaces Construction
South Lakeland District Council,http://opendatacommunities.org/id/district-council/south-lakeland,01/11/2016,Social Enterprise Admin,Highways & Transport Services,http://opendatacommunities.org/def/concept/finance/sercop/objective/107,CONTINENTAL LANDSCAPES LTD,2108452,17/10/2016,62567,6.08,0,Parks Routine maintenance,391310,Construction Open Spaces Construction
South Lakeland District Council,http://opendatacommunities.org/id/district-council/south-lakeland,01/11/2016,Social Enterprise Admin,Highways & Transport Services,http://opendatacommunities.org/def/concept/finance/sercop/objective/107,CONTINENTAL LANDSCAPES LTD,2108452,17/10/2016,62567,6.08,0,Parks Routine maintenance,391310,Construction Open Spaces Construction
South Lakeland District Council,http://opendatacommunities.org/id/district-council/south-lakeland,01/11/2016,Social Enterprise Admin,Highways & Transport Services,http://opendatacommunities.org/def/concept/finance/sercop/objective/107,CONTINENTAL LANDSCAPES LTD,2108452,17/10/2016,62567,3.04,0,Parks Routine maintenance,391310,Construction Open Spaces Construction
South Lakeland District Council,http://opendatacommunities.org/id/district-council/south-lakeland,01/11/2016,Social Enterprise Admin,Highways & Transport Services,http://opendatacommunities.org/def/concept/finance/sercop/objective/107,CONTINENTAL LANDSCAPES LTD,2108452,17/10/2016,62567,54.69,0,Parks Routine maintenance,391310,Construction Open Spaces Construction
South Lakeland District Council,http://opendatacommunities.org/id/district-council/south-lakeland,01/11/2016,Social Enterprise Admin,Highways & Transport Services,http://opendatacommunities.org/def/concept/finance/sercop/objective/107,CONTINENTAL LANDSCAPES LTD,2108452,17/10/2016,62567,66.84,0,Parks Routine maintenance,391310,Construction Open Spaces Construction
South Lakeland District Council,http://opendatacommunities.org/id/district-council/south-lakeland,01/11/2016,Social Enterprise Admin,Highways & Transport Services,http://opendatacommunities.org/def/concept/finance/sercop/objective/107,CONTINENTAL LANDSCAPES LTD,2108452,17/10/2016,62567,127.6,0,Parks Routine maintenance,391310,Construction Open Spaces Construction
South Lakeland District Council,http://opendatacommunities.org/id/district-council/south-lakeland,01/11/2016,Social Enterprise Admin,Highways & Transport Services,http://opendatacommunities.org/def/concept/finance/sercop/objective/107,CONTINENTAL LANDSCAPES LTD,2108452,17/10/2016,62567,121.53,0,Parks Routine maintenance,391310,Construction Open Spaces Construction
South Lakeland District Council,http://opendatacommunities.org/id/district-council/south-lakeland,01/11/2016,Social Enterprise Admin,Highways & Transport Services,http://opendatacommunities.org/def/concept/finance/sercop/objective/107,CONTINENTAL LANDSCAPES LTD,2108452,17/10/2016,62567,12.15,0,Parks Routine maintenance,391310,Construction Open Spaces Construction
South Lakeland District Council,http://opendatacommunities.org/id/district-council/south-lakeland,01/11/2016,Social Enterprise Admin,Highways & Transport Services,http://opendatacommunities.org/def/concept/finance/sercop/objective/107,CONTINENTAL LANDSCAPES LTD,2108452,17/10/2016,62567,12.15,0,Parks Routine maintenance,391310,Construction Open Spaces Construction
South Lakeland District Council,http://opendatacommunities.org/id/district-council/south-lakeland,01/11/2016,Social Enterprise Admin,Highways & Transport Services,http://opendatacommunities.org/def/concept/finance/sercop/objective/107,CONTINENTAL LANDSCAPES LTD,2108452,17/10/2016,62567,36.46,0,Parks Routine maintenance,391310,Construction Open Spaces Construction
South Lakeland District Council,http://opendatacommunities.org/id/district-council/south-lakeland,01/11/2016,Social Enterprise Admin,Highways & Transport Services,http://opendatacommunities.org/def/concept/finance/sercop/objective/107,CONTINENTAL LANDSCAPES LTD,2108452,17/10/2016,62567,60.76,0,Parks Routine maintenance,391310,Construction Open Spaces Construction
South Lakeland District Council,http://opendatacommunities.org/id/district-council/south-lakeland,01/11/2016,Social Enterprise Admin,Highways & Transport Services,http://opendatacommunities.org/def/concept/finance/sercop/objective/107,CONTINENTAL LANDSCAPES LTD,2108452,17/10/2016,62567,60.76,0,Parks Routine maintenance,391310,Construction Open Spaces Construction
South Lakeland District Council,http://opendatacommunities.org/id/district-council/south-lakeland,01/11/2016,Social Enterprise Admin,Highways & Transport Services,http://opendatacommunities.org/def/concept/finance/sercop/objective/107,CONTINENTAL LANDSCAPES LTD,2108452,17/10/2016,62567,108.1,0,Parks Routine maintenance,391310,Construction Open Spaces Construction
South Lakeland District Council,http://opendatacommunities.org/id/district-council/south-lakeland,01/11/2016,Social Enterprise Admin,Highways & Transport Services,http://opendatacommunities.org/def/concept/finance/sercop/objective/107,CONTINENTAL LANDSCAPES LTD,2108452,17/10/2016,62567,121.53,0,Parks Routine maintenance,391310,Construction Open Spaces Construction
South Lakeland District Council,http://opendatacommunities.org/id/district-council/south-lakeland,01/11/2016,Social Enterprise Admin,Highways & Transport Services,http://opendatacommunities.org/def/concept/finance/sercop/objective/107,CONTINENTAL LANDSCAPES LTD,2108452,17/10/2016,62567,224.83,0,Parks Routine maintenance,391310,Construction Open Spaces Construction
South Lakeland District Council,http://opendatacommunities.org/id/district-council/south-lakeland,01/11/2016,Social Enterprise Admin,Highways & Transport Services,http://opendatacommunities.org/def/concept/finance/sercop/objective/107,CONTINENTAL LANDSCAPES LTD,2108452,17/10/2016,62567,121.53,0,Parks Routine maintenance,391310,Construction Open Spaces Construction
South Lakeland District Council,http://opendatacommunities.org/id/district-council/south-lakeland,01/11/2016,Social Enterprise Admin,Highways & Transport Services,http://opendatacommunities.org/def/concept/finance/sercop/objective/107,CONTINENTAL LANDSCAPES LTD,2108452,17/10/2016,62567,182.29,0,Parks Routine maintenance,391310,Construction Open Spaces Construction
South Lakeland District Council,http://opendatacommunities.org/id/district-council/south-lakeland,01/11/2016,Social Enterprise Admin,Cultural Environmental Regulatory & Planning Services,http://opendatacommunities.org/def/concept/finance/sercop/objective/104,CONTINENTAL LANDSCAPES LTD,2108452,17/10/2016,62567,9722.17,0,Parks Routine maintenance,391310,Construction Open Spaces Construction
South Lakeland District Council,http://opendatacommunities.org/id/district-council/south-lakeland,01/11/2016,Social Enterprise Admin,Cultural Environmental Regulatory & Planning Services,http://opendatacommunities.org/def/concept/finance/sercop/objective/104,CONTINENTAL LANDSCAPES LTD,2108452,17/10/2016,62567,24.31,0,Parks Routine maintenance,391310,Construction Open Spaces Construction
South Lakeland District Council,http://opendatacommunities.org/id/district-council/south-lakeland,01/11/2016,Social Enterprise Admin,Cultural Environmental Regulatory & Planning Services,http://opendatacommunities.org/def/concept/finance/sercop/objective/104,CONTINENTAL LANDSCAPES LTD,2108452,17/10/2016,62567,46119.57,0,Parks Routine maintenance,391310,Construction Open Spaces Construction
South Lakeland District Council,http://opendatacommunities.org/id/district-council/south-lakeland,01/11/2016,Social Enterprise Admin,Cultural Environmental Regulatory & Planning Services,http://opendatacommunities.org/def/concept/finance/sercop/objective/104,CONTINENTAL LANDSCAPES LTD,2108452,17/10/2016,62567,364.58,0,Parks Routine maintenance,391310,Construction Open Spaces Construction
South Lakeland District Council,http://opendatacommunities.org/id/district-council/south-lakeland,01/11/2016,Social Enterprise Admin,Cultural Environmental Regulatory & Planning Services,http://opendatacommunities.org/def/concept/finance/sercop/objective/104,CONTINENTAL LANDSCAPES LTD,2108452,17/10/2016,62567,2309.02,0,Parks Routine maintenance,391310,Construction Open Spaces Construction
South Lakeland District Council,http://opendatacommunities.org/id/district-council/south-lakeland,01/11/2016,Social Enterprise Admin,External Trading Accounts,,CONTINENTAL LANDSCAPES LTD,2108452,17/10/2016,62567,106.34,0,Parks Routine maintenance,391310,Construction Open Spaces Construction
South Lakeland District Council,http://opendatacommunities.org/id/district-council/south-lakeland,01/11/2016,Lake Wardens,Cultural Environmental Regulatory & Planning Services,http://opendatacommunities.org/def/concept/finance/sercop/objective/104,VODAFONE LTD (PAGING),,17/10/2016,62570,146.61,0,Annual Rental of Lake Wardens Emergency,271800,ICT Telecommunications Mobile
South Lakeland District Council,http://opendatacommunities.org/id/district-council/south-lakeland,01/11/2016,Lake Wardens,Highways & Transport Services,http://opendatacommunities.org/def/concept/finance/sercop/objective/107,SHORROCK TRICHEM,4179799,17/10/2016,62571,110.99,0,6 x Tins of Sunflower Air Freshener,131312,Cleaning & Janitorial Washroom Sanitat
South Lakeland District Council,http://opendatacommunities.org/id/district-council/south-lakeland,01/11/2016,Lake Wardens,Cultural Environmental Regulatory & Planning Services,http://opendatacommunities.org/def/concept/finance/sercop/objective/104,AUTOPARTS (CUMBRIA) LTD,2579204,17/10/2016,62572,12.7,0,1 x Battery Charge Clip.,381500,Vehicle Mgt Parts
South Lakeland District Council,http://opendatacommunities.org/id/district-council/south-lakeland,01/11/2016,Customer Services,Central Services,http://opendatacommunities.org/def/concept/finance/sercop/objective/102,STEVEN BARBER PHOTOGRAPHY LTD,6058535,24/10/2016,62573,150,0,photography on spring south lakeland,191100,Facilities Design & Photography
South Lakeland District Council,http://opendatacommunities.org/id/district-council/south-lakeland,01/11/2016,Social Enterprise Admin,Central Services,http://opendatacommunities.org/def/concept/finance/sercop/objective/102,RESOLUTION DATA MANAGEMENT LTD,1910045,17/10/2016,62574,2478.72,0,SCANNING OF BUILDING CONTROL FILES AND,271600,ICT Software Customised & Bespoke
South Lakeland District Council,http://opendatacommunities.org/id/district-council/south-lakeland,01/11/2016,Social Enterprise Admin,Central Services,http://opendatacommunities.org/def/concept/finance/sercop/objective/102,Land Data Community Interest Company,5417694,17/10/2016,62575,340,0,Conference Acc - 2 Persons,201700,Financial Services Grants
South Lakeland District Council,http://opendatacommunities.org/id/district-council/south-lakeland,01/11/2016,Social Enterprise Admin,Central Services,http://opendatacommunities.org/def/concept/finance/sercop/objective/102,Land Data Community Interest Company,5417694,17/10/2016,62576,340,0,Conference Acc - 2 Persons,201700,Financial Services Grants
South Lakeland District Council,http://opendatacommunities.org/id/district-council/south-lakeland,01/11/2016,Development Implementation,Cultural Environmental Regulatory & Planning Services,http://opendatacommunities.org/def/concept/finance/sercop/objective/104,KENDAL TOWN COUNCIL,,24/10/2016,62577,2000,0,Group Travel Guide - Kendal Leaflet,908000,Public Bodies Council support services
South Lakeland District Council,http://opendatacommunities.org/id/district-council/south-lakeland,01/11/2016,Business Support Community Services,Central Services,http://opendatacommunities.org/def/concept/finance/sercop/objective/102,PLASTIC CARD SOLUTIONS LTD,4849000,17/10/2016,62578,50,0,Hackney Carriage Driver Badges,192200,Facilities Security
South Lakeland District Council,http://opendatacommunities.org/id/district-council/south-lakeland,01/11/2016,Business Support Community Services,Central Services,http://opendatacommunities.org/def/concept/finance/sercop/objective/102,PLASTIC CARD SOLUTIONS LTD,4849000,17/10/2016,62578,9.5,0,Hackney Carriage Driver Badges,192200,Facilities Security
South Lakeland District Council,http://opendatacommunities.org/id/district-council/south-lakeland,01/11/2016,Kendal Town Hall,Highways & Transport Services,http://opendatacommunities.org/def/concept/finance/sercop/objective/107,BEMROSE BOOTH PARAGON LTD,4891375,19/10/2016,62579,371.75,0,Blank Aura Self-Adhesive tickets for P&D,191600,Facilities Printing
South Lakeland District Council,http://opendatacommunities.org/id/district-council/south-lakeland,01/11/2016,Environment and Housing,Housing Services,http://opendatacommunities.org/def/concept/finance/sercop/objective/108,The Oyster Partnership,5020374,17/10/2016,62580,979.05,0,Officer,261300,HR Recruitment & Assessment
South Lakeland District Council,http://opendatacommunities.org/id/district-council/south-lakeland,01/11/2016,Social Enterprise Admin,Central Services,http://opendatacommunities.org/def/concept/finance/sercop/objective/102,Land Data Community Interest Company,5417694,17/10/2016,62581,260,0,Conference Acc - 2 Persons,201700,Financial Services Grants
South Lakeland District Council,http://opendatacommunities.org/id/district-council/south-lakeland,01/11/2016,Business Support Community Services,Internal Trading Accounts,,ARCO LIMITED,133804,17/10/2016,62582,7.76,0,Cleaning materials,141100,Clothing Protective
South Lakeland District Council,http://opendatacommunities.org/id/district-council/south-lakeland,01/11/2016,Business Support Community Services,Transport Planning Policy,http://opendatacommunities.org/def/concept/finance/sercop/objective/107,ARCO LIMITED,133804,17/10/2016,62583,85.61,0,Cleaning materials,141100,Clothing Protective
South Lakeland District Council,http://opendatacommunities.org/id/district-council/south-lakeland,01/11/2016,Business Support Community Services,Internal Trading Accounts,,ARCO LIMITED,133804,17/10/2016,62583,1.24,0,Cleaning materials,141100,Clothing Protective
South Lakeland District Council,http://opendatacommunities.org/id/district-council/south-lakeland,01/11/2016,Business Support Community Services,Internal Trading Accounts,,ARCO LIMITED,133804,17/10/2016,62583,228.59,0,Cleaning materials,141100,Clothing Protective
South Lakeland District Council,http://opendatacommunities.org/id/district-council/south-lakeland,01/11/2016,Business Support Community Services,Internal Trading Accounts,,ARCO LIMITED,133804,17/10/2016,62584,12.93,0,Cleaning materials,141100,Clothing Protective
South Lakeland District Council,http://opendatacommunities.org/id/district-council/south-lakeland,01/11/2016,Social Enterprise Admin,Central Services,http://opendatacommunities.org/def/concept/finance/sercop/objective/102,Land Data Community Interest Company,5417694,17/10/2016,62585,260,0,Conference Acc - 2 Persons,201700,Financial Services Grants
South Lakeland District Council,http://opendatacommunities.org/id/district-council/south-lakeland,01/11/2016,Business Support Community Services,Internal Trading Accounts,,EK MOTOR FACTORS LTD,838524,31/10/2016,62586,70.86,0,Blade,381400,Vehicle Mgt Maintenance
South Lakeland District Council,http://opendatacommunities.org/id/district-council/south-lakeland,01/11/2016,Revenues and Benefits,Central Services,http://opendatacommunities.org/def/concept/finance/sercop/objective/102,CIVICA UK LTD,1628868,17/10/2016,62587,250,0,NFI Extract CTRS,271600,ICT Software Customised & Bespoke
South Lakeland District Council,http://opendatacommunities.org/id/district-council/south-lakeland,01/11/2016,Social Enterprise Admin,Central Services,http://opendatacommunities.org/def/concept/finance/sercop/objective/102,MARGARET BARROW INTERIORS LTD T/A MBI,,26/10/2016,62588,270,0,1 x Pedestal 3 drawer with metal sides,211200,Furniture & Soft Furn Office Furniture
South Lakeland District Council,http://opendatacommunities.org/id/district-council/south-lakeland,01/11/2016,Business Support Community Services,Internal Trading Accounts,,EK MOTOR FACTORS LTD,838524,31/10/2016,62590,105.86,0,Blade,381400,Vehicle Mgt Maintenance
South Lakeland District Council,http://opendatacommunities.org/id/district-council/south-lakeland,01/11/2016,Business Support Community Services,Internal Trading Accounts,,Preston Trade Parts Specialists,,24/10/2016,62592,32.59,0,Spring,381400,Vehicle Mgt Maintenance
South Lakeland District Council,http://opendatacommunities.org/id/district-council/south-lakeland,01/11/2016,Business Support Community Services,Internal Trading Accounts,,HAKO MACHINES LIMITED,1414225,24/10/2016,62593,335.52,0,Bracket,131000,Cleaning & Janitorial Cleaning Materials
South Lakeland District Council,http://opendatacommunities.org/id/district-council/south-lakeland,01/11/2016,Business Support Community Services,Internal Trading Accounts,,HAKO MACHINES LIMITED,1414225,24/10/2016,62594,42.05,0,Bracket,131000,Cleaning & Janitorial Cleaning Materials
South Lakeland District Council,http://opendatacommunities.org/id/district-council/south-lakeland,01/11/2016,Business Support Community Services,Internal Trading Accounts,,Preston Trade Parts Specialists,,24/10/2016,62595,161.95,0,Spring,381400,Vehicle Mgt Maintenance
South Lakeland District Council,http://opendatacommunities.org/id/district-council/south-lakeland,01/11/2016,Business Support Community Services,Internal Trading Accounts,,Preston Trade Parts Specialists,,24/10/2016,62596,3,0,Spring,381400,Vehicle Mgt Maintenance
South Lakeland District Council,http://opendatacommunities.org/id/district-council/south-lakeland,01/11/2016,Development Implementation,Cultural Environmental Regulatory & Planning Services,http://opendatacommunities.org/def/concept/finance/sercop/objective/104,ADECCO UK LIMITED,593232,19/10/2016,62597,403.2,0,SLDC Project Officer - ,261400,HR Temporary & Agency Staff
South Lakeland District Council,http://opendatacommunities.org/id/district-council/south-lakeland,01/11/2016,Kendal Town Hall,Highways & Transport Services,http://opendatacommunities.org/def/concept/finance/sercop/objective/107,ADECCO UK LIMITED,593232,31/10/2016,62598,430.5,0,Agency cover for WMMSCP,261400,HR Temporary & Agency Staff
South Lakeland District Council,http://opendatacommunities.org/id/district-council/south-lakeland,01/11/2016,Development Strategy,Planning and Development,,KIRKBY IRELETH PARISH COUNCIL,,19/10/2016,62603,756.75,0,Neighbourhood Funding Portion ,908000,Public Bodies Council support services
South Lakeland District Council,http://opendatacommunities.org/id/district-council/south-lakeland,01/11/2016,Development Strategy,Planning and Development,,ULVERSTON TOWN COUNCIL,,19/10/2016,62604,335.29,0,Neighbourhood Funding Portion ,908000,Public Bodies Council support services
South Lakeland District Council,http://opendatacommunities.org/id/district-council/south-lakeland,01/11/2016,Development Strategy,Planning and Development,,GRANGE OVER SANDS TOWN COUNCIL,,19/10/2016,62605,498.75,0,Neighbourhood Funding Portion ,908000,Public Bodies Council support services
South Lakeland District Council,http://opendatacommunities.org/id/district-council/south-lakeland,01/11/2016,Development Strategy,Planning and Development,,KIRKBY LONSDALE TOWN COUNCIL,,19/10/2016,62606,361.5,0,Neighbourhood Funding Portion ,908000,Public Bodies Council support services
South Lakeland District Council,http://opendatacommunities.org/id/district-council/south-lakeland,01/11/2016,Development Strategy,Planning and Development,,CASTERTON PARISH COUNCIL,,19/10/2016,62607,14.25,0,Neighbourhood Funding Portion ,908000,Public Bodies Council support services
South Lakeland District Council,http://opendatacommunities.org/id/district-council/south-lakeland,01/11/2016,Development Strategy,Planning and Development,,KENDAL TOWN COUNCIL,,19/10/2016,62608,602.77,0,Neighbourhood Funding Portion ,908000,Public Bodies Council support services
South Lakeland District Council,http://opendatacommunities.org/id/district-council/south-lakeland,01/11/2016,Human Resources,Central Services,http://opendatacommunities.org/def/concept/finance/sercop/objective/102,FORBES SOLICITORS,,19/10/2016,62609,138.5,0,General advice,281300,Legal Services Legal Opinion
South Lakeland District Council,http://opendatacommunities.org/id/district-council/south-lakeland,01/11/2016,Human Resources,Central Services,http://opendatacommunities.org/def/concept/finance/sercop/objective/102,MILNE MOSER SOLICITORS,,19/10/2016,62610,180,0,Settlement Agreement October 2016,281300,Legal Services Legal Opinion
South Lakeland District Council,http://opendatacommunities.org/id/district-council/south-lakeland,01/11/2016,ICT Group,Central Services,http://opendatacommunities.org/def/concept/finance/sercop/objective/102,PHOENIX SOFTWARE LTD,2548628,19/10/2016,62611,61515.05,0,"Microsoft Enterprise agreement, as per",271600,ICT Software Customised & Bespoke
South Lakeland District Council,http://opendatacommunities.org/id/district-council/south-lakeland,01/11/2016,Policy & Partnerships,Cultural Environmental Regulatory & Planning Services,http://opendatacommunities.org/def/concept/finance/sercop/objective/104,THE WORDSWORTH TRUST,3442086,19/10/2016,62612,10000,0,Strategic Cultural Partnership grant,201700,Financial Services Grants
South Lakeland District Council,http://opendatacommunities.org/id/district-council/south-lakeland,01/11/2016,Revenues and Benefits,Central Services,http://opendatacommunities.org/def/concept/finance/sercop/objective/102,MERITEC LTD,3224622,19/10/2016,62613,418.5,0,2016 - 2017  RAB Processing Contract and,391200,Construction Engineering
South Lakeland District Council,http://opendatacommunities.org/id/district-council/south-lakeland,01/11/2016,Revenues and Benefits,SLDC as Agent,,ROYAL MAIL GROUP PLC,,24/10/2016,62615,1656.52,0,2016 - 17  Postal Charges a/c 0198123013,301200,Mail Services� Postage
South Lakeland District Council,http://opendatacommunities.org/id/district-council/south-lakeland,01/11/2016,Social Enterprise Admin,Central Services,http://opendatacommunities.org/def/concept/finance/sercop/objective/102,ENVIROFIRST LTD,5999123,17/10/2016,62616,165.4,0,Lowther Street Wheelie bin mixed,182012,Environment Waste Management Recycling
South Lakeland District Council,http://opendatacommunities.org/id/district-council/south-lakeland,01/11/2016,Business Support Community Services,Housing Services,http://opendatacommunities.org/def/concept/finance/sercop/objective/108,LAKELAND CARPET CLEANING,,17/10/2016,62617,95,0,Carpet cleaning at Flat 3 Thornthwaite,131320,Cleaning & Janitorial Cleaning Service
South Lakeland District Council,http://opendatacommunities.org/id/district-council/south-lakeland,01/11/2016,Development Implementation,Cultural Environmental Regulatory & Planning Services,http://opendatacommunities.org/def/concept/finance/sercop/objective/104,WiFi Spark Ltd,,24/10/2016,62618,402.18,0,Kendal Town Centre Wifi - 12 months,271800,ICT Telecommunications Mobile
South Lakeland District Council,http://opendatacommunities.org/id/district-council/south-lakeland,01/11/2016,Business Support Community Services,Central Services,http://opendatacommunities.org/def/concept/finance/sercop/objective/102,APP USER GROUP,,17/10/2016,62620,110,0,APP User Group Membership 2016-2017,202100,Financial Services Subscriptions
South Lakeland District Council,http://opendatacommunities.org/id/district-council/south-lakeland,01/11/2016,Public Health and Licensing,Central Services,http://opendatacommunities.org/def/concept/finance/sercop/objective/102,INSTITUTE OF LICENSING (EVENTS) LTD,5710898,26/10/2016,62626,250,0,Scrap Metal Dealers Act,202100,Financial Services Subscriptions
South Lakeland District Council,http://opendatacommunities.org/id/district-council/south-lakeland,01/11/2016,Lake Wardens,Highways & Transport Services,http://opendatacommunities.org/def/concept/finance/sercop/objective/107,SHORROCK TRICHEM,4179799,17/10/2016,62637,89.87,0,6 x Tins of Sunflower Air Freshener,131312,Cleaning & Janitorial Washroom Sanitat
South Lakeland District Council,http://opendatacommunities.org/id/district-council/south-lakeland,01/11/2016,Business Support Community Services,Housing Services,http://opendatacommunities.org/def/concept/finance/sercop/objective/108,Landlord,,17/10/2016,62638,890,0,Monthly rent ,250000,Housing
South Lakeland District Council,http://opendatacommunities.org/id/district-council/south-lakeland,01/11/2016,Business Support Community Services,Housing Services,http://opendatacommunities.org/def/concept/finance/sercop/objective/108,Landlord,,17/10/2016,62639,1190,0,Monthly rent ,202000,Financial Services Rents
South Lakeland District Council,http://opendatacommunities.org/id/district-council/south-lakeland,01/11/2016,Business Support Community Services,Housing Services,http://opendatacommunities.org/def/concept/finance/sercop/objective/108,Landlord,8672920,17/10/2016,62640,400,0,Monthly rent ,202000,Financial Services Rents
South Lakeland District Council,http://opendatacommunities.org/id/district-council/south-lakeland,01/11/2016,Business Support Community Services,Housing Services,http://opendatacommunities.org/def/concept/finance/sercop/objective/108,Landlord,,17/10/2016,62641,520,0,Monthly rent ,250010,Housing Letting Agents
South Lakeland District Council,http://opendatacommunities.org/id/district-council/south-lakeland,01/11/2016,Social Enterprise Admin,Cultural Environmental Regulatory & Planning Services,http://opendatacommunities.org/def/concept/finance/sercop/objective/104,FMG CONSULTING LTD,7309324,17/10/2016,62642,3950,0,Ulverston Leisure Site master Plan -,151900,Consultancy Management
South Lakeland District Council,http://opendatacommunities.org/id/district-council/south-lakeland,01/11/2016,Development Implementation,Cultural Environmental Regulatory & Planning Services,http://opendatacommunities.org/def/concept/finance/sercop/objective/104,Ulverston Community Partnership,,17/10/2016,62643,4000,0,Contribution to Shop Front Grants,201700,Financial Services Grants
South Lakeland District Council,http://opendatacommunities.org/id/district-council/south-lakeland,01/11/2016,Social Enterprise Admin,Central Services,http://opendatacommunities.org/def/concept/finance/sercop/objective/102,YORKSHIRE DALES NATIONAL PARK AUTHY,,26/10/2016,62644,426.65,0,LAND CHARGE SEARCH CHARGES YDNPA,202100,Financial Services Subscriptions
South Lakeland District Council,http://opendatacommunities.org/id/district-council/south-lakeland,01/11/2016,Revenues and Benefits,,,Ulverston BID Company Ltd,9761005,19/10/2016,62645,3096.52,0,Collection figures for September 2016,201700,Financial Services Grants
South Lakeland District Council,http://opendatacommunities.org/id/district-council/south-lakeland,01/11/2016,Democratic Services,Central Services,http://opendatacommunities.org/def/concept/finance/sercop/objective/102,MARCHESI CENTRE,,19/10/2016,62646,37,0,Marchesi Centre room hire for meeting of,321000,Social Care Adult
South Lakeland District Council,http://opendatacommunities.org/id/district-council/south-lakeland,01/11/2016,ICT Group,Central Services,http://opendatacommunities.org/def/concept/finance/sercop/objective/102,PROBRAND LTD,2653446,19/10/2016,62647,153.8,0,Logitech Wireless Combo MK270 - Keyboard,271600,ICT Software Customised & Bespoke
South Lakeland District Council,http://opendatacommunities.org/id/district-council/south-lakeland,01/11/2016,Social Enterprise Admin,Cultural Environmental Regulatory & Planning Services,http://opendatacommunities.org/def/concept/finance/sercop/objective/104,HYGIENE CLEANING SUPPLIES LTD,4753934,19/10/2016,62648,9.63,0,Lobby brush pan CA003,131011,Cleaning & Janitorial Cleaning Materials
South Lakeland District Council,http://opendatacommunities.org/id/district-council/south-lakeland,01/11/2016,Business Support Community Services,Internal Trading Accounts,,RIBBLE FUEL OILS,,19/10/2016,62649,1260.68,0,Gas oil 2016/17,381100,Vehicle Mgt Fuel
South Lakeland District Council,http://opendatacommunities.org/id/district-council/south-lakeland,01/11/2016,Business Support Community Services,Internal Trading Accounts,,Blackpool Trim Ltd,8665678,19/10/2016,62650,55,0,Repair seat,381400,Vehicle Mgt Maintenance
South Lakeland District Council,http://opendatacommunities.org/id/district-council/south-lakeland,01/11/2016,Business Support Community Services,Internal Trading Accounts,,RIBBLESDALE AUTO ELECTRICS 1992 LTD,2732686,19/10/2016,62651,65.8,0,Bezel,381500,Vehicle Mgt Parts
South Lakeland District Council,http://opendatacommunities.org/id/district-council/south-lakeland,01/11/2016,Business Support Community Services,Internal Trading Accounts,,RIBBLESDALE AUTO ELECTRICS 1992 LTD,2732686,19/10/2016,62652,71,0,Bezel,381500,Vehicle Mgt Parts
South Lakeland District Council,http://opendatacommunities.org/id/district-council/south-lakeland,01/11/2016,Business Support Community Services,Internal Trading Accounts,,ARCO LIMITED,133804,19/10/2016,62653,15.07,0,Cleaning materials,141100,Clothing Protective
South Lakeland District Council,http://opendatacommunities.org/id/district-council/south-lakeland,01/11/2016,Business Support Community Services,Cultural Environmental Regulatory & Planning Services,http://opendatacommunities.org/def/concept/finance/sercop/objective/104,GB Sign Solutions Ltd,9609330,19/10/2016,62654,65,0,Street Nameplates 2016/17,102400,Building Signage
South Lakeland District Council,http://opendatacommunities.org/id/district-council/south-lakeland,01/11/2016,Business Support Community Services,Cultural Environmental Regulatory & Planning Services,http://opendatacommunities.org/def/concept/finance/sercop/objective/104,CUMBRIA WASTE RECYCLING LTD,3162439,19/10/2016,62655,15017.3,0,Empty recycling banks in 2016/17,182012,Environment Waste Management Recycling
South Lakeland District Council,http://opendatacommunities.org/id/district-council/south-lakeland,01/11/2016,Business Support Community Services,Internal Trading Accounts,,M G D LTD,,19/10/2016,62656,35,0,MOTs 01/04/16 - 31/03/17,381400,Vehicle Mgt Maintenance
South Lakeland District Council,http://opendatacommunities.org/id/district-council/south-lakeland,01/11/2016,Business Support Community Services,Internal Trading Accounts,,BRIAN ARMISTEAD LTD T/A SINKFALL RECYCLI,4133280,19/10/2016,62657,1204.58,0,Green waste tipping - 2016/17,391110,Construction Buildings Construction
South Lakeland District Council,http://opendatacommunities.org/id/district-council/south-lakeland,01/11/2016,Business Support Community Services,Internal Trading Accounts,,Masterstaff Limited,2777593,19/10/2016,62658,2864.12,0,Agency staff - August 2016,261300,HR Recruitment & Assessment
South Lakeland District Council,http://opendatacommunities.org/id/district-council/south-lakeland,01/11/2016,Business Support Community Services,Internal Trading Accounts,,HYDRAIR TRUCK & TRAILER PARTS LTD,,19/10/2016,62659,23.92,0,Cable,381500,Vehicle Mgt Parts
South Lakeland District Council,http://opendatacommunities.org/id/district-council/south-lakeland,01/11/2016,Business Support Community Services,Internal Trading Accounts,,HYDRAIR TRUCK & TRAILER PARTS LTD,,19/10/2016,62660,208,0,Air driers,381500,Vehicle Mgt Parts
South Lakeland District Council,http://opendatacommunities.org/id/district-council/south-lakeland,01/11/2016,Business Support Community Services,Internal Trading Accounts,,Harry Park Tyres Ltd,8131208,19/10/2016,62661,10,0,Turns,381500,Vehicle Mgt Parts
South Lakeland District Council,http://opendatacommunities.org/id/district-council/south-lakeland,01/11/2016,Business Support Community Services,Internal Trading Accounts,,K S INTERNATIONAL LTD,2703321,19/10/2016,62662,109,0,Rubbers,381500,Vehicle Mgt Parts
South Lakeland District Council,http://opendatacommunities.org/id/district-council/south-lakeland,01/11/2016,Business Support Community Services,Internal Trading Accounts,,Harry Park Tyres Ltd,8131208,19/10/2016,62663,30,0,Turns,381500,Vehicle Mgt Parts
South Lakeland District Council,http://opendatacommunities.org/id/district-council/south-lakeland,01/11/2016,Business Support Community Services,Internal Trading Accounts,,HYDRAIR TRUCK & TRAILER PARTS LTD,,19/10/2016,62664,27.9,0,Cable,381500,Vehicle Mgt Parts
South Lakeland District Council,http://opendatacommunities.org/id/district-council/south-lakeland,01/11/2016,Business Support Community Services,Internal Trading Accounts,,HYDRAIR TRUCK & TRAILER PARTS LTD,,19/10/2016,62665,47.53,0,Cable,381500,Vehicle Mgt Parts
South Lakeland District Council,http://opendatacommunities.org/id/district-council/south-lakeland,01/11/2016,Business Support Community Services,Internal Trading Accounts,,RIBBLESDALE AUTO ELECTRICS 1992 LTD,2732686,19/10/2016,62666,99.83,0,Bezel,381500,Vehicle Mgt Parts
South Lakeland District Council,http://opendatacommunities.org/id/district-council/south-lakeland,01/11/2016,Business Support Community Services,Internal Trading Accounts,,Harry Park Tyres Ltd,8131208,19/10/2016,62667,20,0,Turns,381500,Vehicle Mgt Parts
South Lakeland District Council,http://opendatacommunities.org/id/district-council/south-lakeland,01/11/2016,Business Support Community Services,Internal Trading Accounts,,TAYLOR ENGINEERING & FABRICATIONS LTD,4989359,19/10/2016,62668,303.19,0,Joints,391200,Construction Engineering
South Lakeland District Council,http://opendatacommunities.org/id/district-council/south-lakeland,01/11/2016,Business Support Community Services,Internal Trading Accounts,,SOLWAY DAF,1393710,19/10/2016,62669,51.46,0,Mirror,381000,Vehicle Mgt Commercial
South Lakeland District Council,http://opendatacommunities.org/id/district-council/south-lakeland,01/11/2016,Revenues and Benefits,Central Services,http://opendatacommunities.org/def/concept/finance/sercop/objective/102,Victoria Pink Transcription,,19/10/2016,62670,45.68,0,Transcription 29.09.16  - Rye,271400,ICT Office & Reprographics Equipment
South Lakeland District Council,http://opendatacommunities.org/id/district-council/south-lakeland,01/11/2016,Revenues and Benefits,Central Services,http://opendatacommunities.org/def/concept/finance/sercop/objective/102,JACOBS,,19/10/2016,62671,75,0,2016-2017 Vat only,152200,Consultancy Technical & Feasibility
South Lakeland District Council,http://opendatacommunities.org/id/district-council/south-lakeland,01/11/2016,ICT Group,Central Services,http://opendatacommunities.org/def/concept/finance/sercop/objective/102,Insight Direct (Uk) Ltd,2579852,19/10/2016,62672,65.5,0,Insight Part Number:  0001469775,271200,ICT Hardware
South Lakeland District Council,http://opendatacommunities.org/id/district-council/south-lakeland,01/11/2016,Financial Services,Central Services,http://opendatacommunities.org/def/concept/finance/sercop/objective/102,CUMBRIA LGPS,,26/10/2016,62673,72982.1,0,Qtr contribution re past pendsions April,908999,Public Bodies Not Elsewhere Classified
South Lakeland District Council,http://opendatacommunities.org/id/district-council/south-lakeland,01/11/2016,Revenues and Benefits,Central Services,http://opendatacommunities.org/def/concept/finance/sercop/objective/102,ROYAL MAIL GROUP PLC,,26/10/2016,62674,343.94,0,2016 - 2017  Postal Charges a/c,301200,Mail Services� Postage
South Lakeland District Council,http://opendatacommunities.org/id/district-council/south-lakeland,01/11/2016,Kendal Town Hall,Cultural Environmental Regulatory & Planning Services,http://opendatacommunities.org/def/concept/finance/sercop/objective/104,LDA Cleaning Services Ltd,8917986,19/10/2016,62675,175,0,Cleaning Ferry Nab public toilets until,131310,Cleaning & Janitorial Cleaning Service
South Lakeland District Council,http://opendatacommunities.org/id/district-council/south-lakeland,01/11/2016,Social Enterprise Admin,Highways & Transport Services,http://opendatacommunities.org/def/concept/finance/sercop/objective/107,ALLSTAR BUSINESS SOLUTIONS LTD (NCR),2631112,01/10/2016,62676,125.35,0,Fuel for 3 CEO vehicles 1 April 2016 to,381600,Vehicle Mgt Leasing
South Lakeland District Council,http://opendatacommunities.org/id/district-council/south-lakeland,01/11/2016,Social Enterprise Admin,Highways & Transport Services,http://opendatacommunities.org/def/concept/finance/sercop/objective/107,ALLSTAR BUSINESS SOLUTIONS LTD (NCR),2631112,01/10/2016,62676,215.53,0,Fuel for 3 CEO vehicles 1 April 2016 to,381600,Vehicle Mgt Leasing
South Lakeland District Council,http://opendatacommunities.org/id/district-council/south-lakeland,01/11/2016,Social Enterprise Admin,Cultural Environmental Regulatory & Planning Services,http://opendatacommunities.org/def/concept/finance/sercop/objective/104,ALLSTAR BUSINESS SOLUTIONS LTD (NCR),2631112,01/10/2016,62676,81.38,0,Fuel for 3 CEO vehicles 1 April 2016 to,381600,Vehicle Mgt Leasing
South Lakeland District Council,http://opendatacommunities.org/id/district-council/south-lakeland,01/11/2016,Development Implementation,Central Services,http://opendatacommunities.org/def/concept/finance/sercop/objective/102,NPS NORTH WEST LTD,6614601,19/10/2016,62678,38333.37,0,Professional Property Services - August,391110,Construction Buildings Construction
South Lakeland District Council,http://opendatacommunities.org/id/district-council/south-lakeland,01/11/2016,Human Resources,Central Services,http://opendatacommunities.org/def/concept/finance/sercop/objective/102,EMPLOYMENT PAGES LTD,7363099,19/10/2016,62679,275.4,0,Solicitor - Employment Pages,261400,HR Temporary & Agency Staff
South Lakeland District Council,http://opendatacommunities.org/id/district-council/south-lakeland,01/11/2016,Policy & Partnerships,Central Services,http://opendatacommunities.org/def/concept/finance/sercop/objective/102,INFORMATION COMMISSIONERS OFFICE,,19/10/2016,62684,500,0,Data Protection Registration Renewal,202100,Financial Services Subscriptions
South Lakeland District Council,http://opendatacommunities.org/id/district-council/south-lakeland,01/11/2016,Revenues and Benefits,Central Services,http://opendatacommunities.org/def/concept/finance/sercop/objective/102,BADENOCH & CLARK,1356186,19/10/2016,62702,160.02,0,Revs and Bens  (April & May 2016),261300,HR Recruitment & Assessment
South Lakeland District Council,http://opendatacommunities.org/id/district-council/south-lakeland,01/11/2016,Social Enterprise Admin,Highways & Transport Services,http://opendatacommunities.org/def/concept/finance/sercop/objective/107,ACS BPS LTD,,19/10/2016,62703,-5032.44,0,Quarterly maintenance charges for,111200,Catering Food & Beverages
South Lakeland District Council,http://opendatacommunities.org/id/district-council/south-lakeland,01/11/2016,Policy & Partnerships,Cultural Environmental Regulatory & Planning Services,http://opendatacommunities.org/def/concept/finance/sercop/objective/104,STAVELEY WITH INGS PARISH COUNCIL,,19/10/2016,62704,7500,0,LIPs Grant - Refurbishment of Ings,908000,Public Bodies Council support services
South Lakeland District Council,http://opendatacommunities.org/id/district-council/south-lakeland,01/11/2016,Legal Services,Central Services,http://opendatacommunities.org/def/concept/finance/sercop/objective/102,Eventus Legal Recruitment,,19/10/2016,62705,245.38,0,Commission Fees for W.Mitchell from,261300,HR Recruitment & Assessment
South Lakeland District Council,http://opendatacommunities.org/id/district-council/south-lakeland,01/11/2016,Legal Services,Central Services,http://opendatacommunities.org/def/concept/finance/sercop/objective/102,Legal Counsel Ltd,10147194,19/10/2016,62706,1510,0,Employee W. Mitchell,281200,Legal Services General Support
South Lakeland District Council,http://opendatacommunities.org/id/district-council/south-lakeland,01/11/2016,Legal Services,Central Services,http://opendatacommunities.org/def/concept/finance/sercop/objective/102,WEIGHTMANS LLP,OC326117,19/10/2016,62707,550,0,Additional fees re:  Dispute with,281300,Legal Services Legal Opinion
South Lakeland District Council,http://opendatacommunities.org/id/district-council/south-lakeland,01/11/2016,Legal Services,Central Services,http://opendatacommunities.org/def/concept/finance/sercop/objective/102,HILL DICKINSON LLP,OC314079,19/10/2016,62708,1000,0,Legal Fees re: Kendal Parks Farm Phase 2,281300,Legal Services Legal Opinion
South Lakeland District Council,http://opendatacommunities.org/id/district-council/south-lakeland,01/11/2016,Social Enterprise Admin,Cultural Environmental Regulatory & Planning Services,http://opendatacommunities.org/def/concept/finance/sercop/objective/104,FURNESS NEWSPAPERS LTD,1155841,19/10/2016,62714,129.5,0,PUBLIC NOTICES FOR PLANNING 1 APRIL 2015,191000,Facilities Advertising
South Lakeland District Council,http://opendatacommunities.org/id/district-council/south-lakeland,01/11/2016,Environment and Housing,Housing,http://opendatacommunities.org/def/concept/finance/sercop/objective/108,C W COX & SONS (KENDAL) LTD,3498844,19/10/2016,62719,3907,0,"Claife Avenue,",101000,Building Bathrooms
South Lakeland District Council,http://opendatacommunities.org/id/district-council/south-lakeland,01/11/2016,Environment and Housing,Housing,http://opendatacommunities.org/def/concept/finance/sercop/objective/108,ENVIRONMENT & HOUSING GRANTS,,19/10/2016,62720,7980,0,Disabled Adaptations at Greenbanks,201700,Financial Services Grants
South Lakeland District Council,http://opendatacommunities.org/id/district-council/south-lakeland,01/11/2016,Social Enterprise Admin,Cultural Environmental Regulatory & Planning Services,http://opendatacommunities.org/def/concept/finance/sercop/objective/104,KOMPAN Scotland Ltd,SC127228,19/10/2016,62722,1464,0,"Mobility Tri Table, anchorage",331000,Sports Playground Equipment
South Lakeland District Council,http://opendatacommunities.org/id/district-council/south-lakeland,01/11/2016,Policy & Partnerships,Central Services,http://opendatacommunities.org/def/concept/finance/sercop/objective/102,GATES TRAVEL SERVICE,,31/10/2016,62723,46.6,0,Train Tickets ,261600,HR Travel & Subsistence
South Lakeland District Council,http://opendatacommunities.org/id/district-council/south-lakeland,01/11/2016,Business Support Community Services,Housing Services,http://opendatacommunities.org/def/concept/finance/sercop/objective/108,G B BURROW & SON,,19/10/2016,62724,104,0,Storage costs ,192300,Facilities Storage
South Lakeland District Council,http://opendatacommunities.org/id/district-council/south-lakeland,01/11/2016,Business Support Community Services,Housing Services,http://opendatacommunities.org/def/concept/finance/sercop/objective/108,G B BURROW & SON,,24/10/2016,62725,165,0,Storage of belongings ,192300,Facilities Storage
South Lakeland District Council,http://opendatacommunities.org/id/district-council/south-lakeland,01/11/2016,Business Support Community Services,Housing Services,http://opendatacommunities.org/def/concept/finance/sercop/objective/108,THE JAMES COCHRANE PRACTICE,,24/10/2016,62726,25,0,Medical advice ,311600,Healthcare Services
South Lakeland District Council,http://opendatacommunities.org/id/district-council/south-lakeland,01/11/2016,Development Implementation,Cultural Environmental Regulatory & Planning Services,http://opendatacommunities.org/def/concept/finance/sercop/objective/104,ADECCO UK LIMITED,593232,24/10/2016,62727,292.5,0,Administrator - Renate Parker (24hrs,261400,HR Temporary & Agency Staff
South Lakeland District Council,http://opendatacommunities.org/id/district-council/south-lakeland,01/11/2016,Democratic Services,Central Services,http://opendatacommunities.org/def/concept/finance/sercop/objective/102,NBN International,,24/10/2016,62732,74.95,0,1 copy of Knowles on Local Authority,261500,HR Training & Conferences
South Lakeland District Council,http://opendatacommunities.org/id/district-council/south-lakeland,01/11/2016,Development Implementation,Cultural Environmental Regulatory & Planning Services,http://opendatacommunities.org/def/concept/finance/sercop/objective/104,GRANGE OVER SANDS TOWN COUNCIL,,24/10/2016,62733,2500,0,Shop Front Grant Funding,908000,Public Bodies Council support services
South Lakeland District Council,http://opendatacommunities.org/id/district-council/south-lakeland,01/11/2016,Development Implementation,Central Services,http://opendatacommunities.org/def/concept/finance/sercop/objective/102,Gatenby Sanderson Ltd - Interim Leadersh,,24/10/2016,62734,8192,0,Interim Asset Manager,261413,HR- Temporary Staff- Professional
South Lakeland District Council,http://opendatacommunities.org/id/district-council/south-lakeland,01/11/2016,Environment and Housing,Housing Services,http://opendatacommunities.org/def/concept/finance/sercop/objective/108,National Landlords Association,4601987,24/10/2016,62736,130,0,Payment for membership of NLA,159999,Consultancy Not Elsewhere Classified
South Lakeland District Council,http://opendatacommunities.org/id/district-council/south-lakeland,01/11/2016,Printing Section,Central Services,http://opendatacommunities.org/def/concept/finance/sercop/objective/102,Konica Minolta Bus Solutions (UK) Ltd,,24/10/2016,62737,3591.85,0,Konica Embedded License,192000,Facilities Reprographics
South Lakeland District Council,http://opendatacommunities.org/id/district-council/south-lakeland,01/11/2016,Business Support Community Services,Internal Trading Accounts,,MYERSCOUGH COLLEGE,,24/10/2016,62738,133.33,0,Principles of Sustainable Resource,908999,Public Bodies Not Elsewhere Classified
South Lakeland District Council,http://opendatacommunities.org/id/district-council/south-lakeland,01/11/2016,Business Support Community Services,Internal Trading Accounts,,MYERSCOUGH COLLEGE,,24/10/2016,62738,266.67,0,Principles of Sustainable Resource,908999,Public Bodies Not Elsewhere Classified
South Lakeland District Council,http://opendatacommunities.org/id/district-council/south-lakeland,01/11/2016,Business Support Community Services,Internal Trading Accounts,,EK MOTOR FACTORS LTD,838524,24/10/2016,62739,28.04,0,Pads,381400,Vehicle Mgt Maintenance
South Lakeland District Council,http://opendatacommunities.org/id/district-council/south-lakeland,01/11/2016,Business Support Community Services,Internal Trading Accounts,,EK MOTOR FACTORS LTD,838524,24/10/2016,62740,34.25,0,Pads,381400,Vehicle Mgt Maintenance
South Lakeland District Council,http://opendatacommunities.org/id/district-council/south-lakeland,01/11/2016,Business Support Community Services,Internal Trading Accounts,,EK MOTOR FACTORS LTD,838524,24/10/2016,62741,30.48,0,Pads,381400,Vehicle Mgt Maintenance
South Lakeland District Council,http://opendatacommunities.org/id/district-council/south-lakeland,01/11/2016,Business Support Community Services,Internal Trading Accounts,,DENNIS EAGLE LTD,3794455,24/10/2016,62742,188.8,0,Conectors,381300,Vehicle Mgt Industrial
South Lakeland District Council,http://opendatacommunities.org/id/district-council/south-lakeland,01/11/2016,Business Support Community Services,Internal Trading Accounts,,EK MOTOR FACTORS LTD,838524,24/10/2016,62743,28.04,0,Pads,381400,Vehicle Mgt Maintenance
South Lakeland District Council,http://opendatacommunities.org/id/district-council/south-lakeland,01/11/2016,Business Support Community Services,Internal Trading Accounts,,CUMBRIA TRUCK CENTRE LTD,4298488,24/10/2016,62744,421.9,0,Nuts,381300,Vehicle Mgt Industrial
South Lakeland District Council,http://opendatacommunities.org/id/district-council/south-lakeland,01/11/2016,Business Support Community Services,Internal Trading Accounts,,EK MOTOR FACTORS LTD,838524,24/10/2016,62745,41.08,0,Pads,381400,Vehicle Mgt Maintenance
South Lakeland District Council,http://opendatacommunities.org/id/district-council/south-lakeland,01/11/2016,Business Support Community Services,Internal Trading Accounts,,DENNIS EAGLE LTD,3794455,24/10/2016,62746,56.58,0,Conectors,381300,Vehicle Mgt Industrial
South Lakeland District Council,http://opendatacommunities.org/id/district-council/south-lakeland,01/11/2016,Business Support Community Services,Internal Trading Accounts,,EK MOTOR FACTORS LTD,838524,24/10/2016,62747,11.09,0,Pads,381400,Vehicle Mgt Maintenance
South Lakeland District Council,http://opendatacommunities.org/id/district-council/south-lakeland,01/11/2016,Business Support Community Services,Internal Trading Accounts,,CUMBRIA COUNTY COUNCIL,,24/10/2016,62748,40642.38,0,"Tipping & disposal charges, recyclables",908000,Public Bodies Council support services
South Lakeland District Council,http://opendatacommunities.org/id/district-council/south-lakeland,01/11/2016,Business Support Community Services,Internal Trading Accounts,,H WICKS (LINDAL) LTD,754590,24/10/2016,62749,300,0,"Gate fees, handling, transport & baling",182012,Environment Waste Management Recycling
South Lakeland District Council,http://opendatacommunities.org/id/district-council/south-lakeland,01/11/2016,Business Support Community Services,Internal Trading Accounts,,ATV CONTRACT SERVICES,,24/10/2016,62751,8487.5,0,Weed Spraying,391311,Construction Open Spaces Repair & Mtce
South Lakeland District Council,http://opendatacommunities.org/id/district-council/south-lakeland,01/11/2016,Business Support Community Services,Internal Trading Accounts,,ATV CONTRACT SERVICES,,24/10/2016,62752,850,0,Weed Spraying,391311,Construction Open Spaces Repair & Mtce
South Lakeland District Council,http://opendatacommunities.org/id/district-council/south-lakeland,01/11/2016,Business Support Community Services,Internal Trading Accounts,,STAGECOACH NORTHWEST,,24/10/2016,62753,225,0,Steam cleaning 01/04/16 - 31/03/17,361300,Public Transport Passenger Transport
South Lakeland District Council,http://opendatacommunities.org/id/district-council/south-lakeland,01/11/2016,Business Support Community Services,Internal Trading Accounts,,STAGECOACH NORTHWEST,,24/10/2016,62754,200,0,Steam cleaning 01/04/16 - 31/03/17,361300,Public Transport Passenger Transport
South Lakeland District Council,http://opendatacommunities.org/id/district-council/south-lakeland,01/11/2016,Business Support Community Services,Internal Trading Accounts,,STAGECOACH NORTHWEST,,24/10/2016,62755,150,0,Steam cleaning 01/04/16 - 31/03/17,361300,Public Transport Passenger Transport
South Lakeland District Council,http://opendatacommunities.org/id/district-council/south-lakeland,01/11/2016,Business Support Community Services,Internal Trading Accounts,,STAGECOACH NORTHWEST,,24/10/2016,62756,250,0,Steam cleaning 01/04/16 - 31/03/17,361300,Public Transport Passenger Transport
South Lakeland District Council,http://opendatacommunities.org/id/district-council/south-lakeland,01/11/2016,Business Support Community Services,Internal Trading Accounts,,STAGECOACH NORTHWEST,,24/10/2016,62757,200,0,Steam cleaning 01/04/16 - 31/03/17,361300,Public Transport Passenger Transport
South Lakeland District Council,http://opendatacommunities.org/id/district-council/south-lakeland,01/11/2016,Business Support Community Services,Internal Trading Accounts,,STAGECOACH NORTHWEST,,24/10/2016,62758,250,0,Steam cleaning 01/04/16 - 31/03/17,361300,Public Transport Passenger Transport
South Lakeland District Council,http://opendatacommunities.org/id/district-council/south-lakeland,01/11/2016,Business Support Community Services,Internal Trading Accounts,,H WICKS (LINDAL) LTD,754590,24/10/2016,62759,600,0,"Gate fees, handling, transport & baling",182012,Environment Waste Management Recycling
South Lakeland District Council,http://opendatacommunities.org/id/district-council/south-lakeland,01/11/2016,Business Support Community Services,Internal Trading Accounts,,MYERSCOUGH COLLEGE,,24/10/2016,62760,266.67,0,Principles of Sustainable Resource,908999,Public Bodies Not Elsewhere Classified
South Lakeland District Council,http://opendatacommunities.org/id/district-council/south-lakeland,01/11/2016,Business Support Community Services,Internal Trading Accounts,,MYERSCOUGH COLLEGE,,24/10/2016,62760,833.33,0,Principles of Sustainable Resource,908999,Public Bodies Not Elsewhere Classified
